{"text_format":"1","workbook":"xlsx","n_sheets":4,"sheets":["Proceso Judicial","Información Pólizas","Coberturas y Proceso","Intereses"],"not_rendered":{"charts":0,"images":0,"macros":1,"external_links":0,"defined_names":20,"comments":2,"pivot_tables":0},"unopened":[],"bounds":{"document_bytes":16777216,"sheet_cells":100000,"rows_first":2000,"rows_last":500,"rows_between":2000,"halvings":0,"cell_chars":16384,"cell_head_chars":4096},"cells_cut":0,"cells_raw":0,"read":"whole","date_system":"1900"}

{"sheet":"Proceso Judicial","index":0,"n_rows":75,"n_cols":10,"rows_kept":75,"cut":false,"hidden":false,"merged":[]}
[null,null,null,"Concepto","Prob Ramo","Prob sin segmentar"]
[null,null,null,"Valor PML, Pretensión o Sentencia",{"$f":"IF(AND('Proceso Judicial'!$E$38=\"SÍ\",'Proceso Judicial'!$E$45=FALSE),'Proceso Judicial'!$E$39,MIN('Proceso Judicial'!$E$35:$E$36))","v":556665499}]
[null,null,null,"Cumple criterios",{"$f":"IF(AND('Proceso Judicial'!$E$24=\"SÍ\",'Proceso Judicial'!$E$25=\"SÍ\"),\"SÍ\",\"NO\")","v":"SÍ"}]
[null,null,null,"Puntaje cumplimiento",{"$f":"IF($E$3=\"NO\",\"NA\",$E$54)","v":5}]
[null,null,null,"Puntaje tipo del proceso",{"$f":"IF($E$3=\"NO\",\"NA\",'Proceso Judicial'!E55)","v":-1}]
[null,null,null,"Puntaje etapa del proceso",{"$f":"IF($E$3=\"NO\",\"NA\",'Proceso Judicial'!E56)","v":2}]
[null,null,null,"Puntaje territorialidad",{"$f":"IF($E$3=\"NO\",\"NA\",'Proceso Judicial'!E57)","v":-0.5}]
[null,null,null,"Puntaje garantizado y garantías",{"$f":"IF($E$3=\"NO\",\"NA\",SUM('Proceso Judicial'!E58:E59))","v":0}]
[null,null,null,"Puntaje total",{"$f":"IF($E$3=\"NO\",10,'Proceso Judicial'!E60)","v":5.5}]
[null,null,null,"Clasificación",{"$f":"VLOOKUP(E9,Tabla_Puntaje[],2,1)","v":"Eventual"}]
[null,null,null,"Probabilidad de pérdida",{"$f":"IF($E$3=\"NO\",0.01%,VLOOKUP($E$9,Tabla_Puntaje[],3,1))","v":0.10982228847403006},{"$f":"IF($E$3=\"NO\",0.01%,VLOOKUP($E$9,Tabla_Puntaje[],4,1))","v":0.1803694079717629}]
[null,null,null,"Reserva antes de última instancia",{"$f":"E2*E11","v":61134279.014717892},{"$f":"E2*F11","v":100405426.49293597}]
[null,null,null,"Fallo última instancia",{"$f":"IF(AND('Proceso Judicial'!$E$38=\"SÍ\",'Proceso Judicial'!$E$45=TRUE),'Proceso Judicial'!$E$39,\"ND\")","v":"ND"},{"$f":"IF(AND('Proceso Judicial'!$E$38=\"SÍ\",'Proceso Judicial'!$E$45=TRUE),'Proceso Judicial'!$E$39,\"ND\")","v":"ND"}]
[null,null,null,"Conciliación aceptada",{"$f":"IF('Proceso Judicial'!$E$27=\"Responsabilidad_Fiscal\",\"ND\",IF('Proceso Judicial'!$E$41=\"SÍ\",'Proceso Judicial'!$E$42,\"ND\"))","v":"ND"},{"$f":"IF('Proceso Judicial'!$E$27=\"Responsabilidad_Fiscal\",\"ND\",IF('Proceso Judicial'!$E$41=\"SÍ\",'Proceso Judicial'!$E$42,\"ND\"))","v":"ND"}]
[null,null,null,"Reserva del siniestro",{"$f":"IF(AND($E$13=\"ND\",$E$14=\"ND\"),$E$12,IF(AND($E$13<>\"ND\",$E$14<>\"ND\"),$E$13,IF($E$13=\"ND\",$E$14,$E$13)))","v":61134279.014717892},{"$f":"IF(AND($F$13=\"ND\",$F$14=\"ND\"),$F$12,IF(AND($F$13<>\"ND\",$F$14<>\"ND\"),$F$13,IF($F$13=\"ND\",$F$14,$F$13)))","v":100405426.49293597}]
[null,null,null,"Reserva de honorarios",{"$f":"IF('Proceso Judicial'!$E$49=\"SÍ\",'Proceso Judicial'!$E$50*(1-'Proceso Judicial'!$E$51),0)","v":11133310},{"$f":"IF('Proceso Judicial'!$E$49=\"SÍ\",'Proceso Judicial'!$E$50*(1-'Proceso Judicial'!$E$51),0)","v":11133310}]
[null,null,null,"Reserva Total",{"$f":"E15+E16","v":72267589.014717892},{"$f":"F15+F16","v":111538736.49293597}]
[]
["Identificación"]
[null,null,null,"Ramo","CUMPLIMIENTO"]
[null,null,null,"ID del siniestro-póliza",20017]
[]
["Análisis del proceso judicial"]
[null,null,null,"¿Existe la cobertura reclamada?","SÍ"]
[null,null,null,"¿El siniestro ocurrió dentro de la vigencia?","SÍ"]
[]
[null,null,null,"Tipo de Proceso","Proceso_Contractual"]
[null,null,null,"Etapa del Proceso Judicial","Presentación demanda - contestación"]
[null,null,null,"Jurisdicción","VALLE DEL CAUCA"]
[]
[null,null,null,"¿Existe incumplimiento del garantizado?","NO"]
[null,null,null,"Perfil del garantizado","Normal"]
[null,null,null,"Tipo de contragarantía","No hay Contragarantía"]
[]
[null,null,null,"Valor PML en COP",556665499]
[null,null,null,"Valor Pretensión en COP",695316219]
[]
[null,null,null,"¿Existe sentencia, laudo arbitral, fallo fiscal o administrativo DESFAVORABLE para Seguros Confianza?","NO"]
[null,null,null,"Valor condena a Confianza"]
[]
[null,null,null,"¿Se intentará llegar a un acuerdo con reclamante?"]
[null,null,null,"Valor Conciliación en COP"]
[]
[null,null,null,"¿Se concedió recurso de casación?","NO"]
[null,null,null,"Check última instancia",{"$f":"IF(ISNUMBER(SEARCH(\"CASACIÓN\",$E$28)),TRUE,IF($E$44=\"NO\",LEFT(E28,IFERROR(SEARCH(\" - \",E28),1)-1)=VLOOKUP($E$27,Tabla_Procesos[],2,0),IF(ISNUMBER(SEARCH(\"CASACIÓN\",$E$28)),TRUE,FALSE)))","v":false}]
[]
["Reserva de Honorarios"]
[null,"Honorarios"]
[null,null,null,"¿El proceso se tercerizó?","SÍ"]
[null,null,null,"Honorarios pactados en COP",11133310]
[null,null,null,"Porcentaje honorarios pagos"]
[]
["Puntaje"]
[null,null,null,"Incumplimiento",{"$f":"IF($E$27=\"Responsabilidad_Fiscal\",_xlfn.XLOOKUP($E$31,Tabla_Incumplimiento_RespFiscal[Incumplimiento_RespFiscal],Tabla_Incumplimiento_RespFiscal[Puntaje Inicial]),_xlfn.XLOOKUP($E$31,Tabla_Incumplimiento[Incumplimiento],Tabla_Incumplimiento[Puntaje Inicial]))","v":5}]
[null,null,null,"Tipo de proceso",{"$f":"VLOOKUP($E$27,Tabla_Procesos[],IF($E$27=\"Responsabilidad_Fiscal\",VLOOKUP($E$31,Tabla_Columnas_RespFisc,2,0)-1,VLOOKUP($E$31,Tabla_Columnas[],2,0))+1,0)","v":-1}]
[null,null,null,"Etapa del proceso",{"$f":"VLOOKUP($E$28,OFFSET(INDIRECT($E$27),0,0,,6),IF($E$27=\"Responsabilidad_Fiscal\",VLOOKUP($E$31,Tabla_Columnas_RespFisc,2,0),VLOOKUP($E$31,Tabla_Columnas[],2,0)),0)","v":2}]
[null,null,null,"Territorialidad",{"$f":"IF($E$27=\"Responsabilidad_Fiscal\",0,VLOOKUP($E$29,Tabla_territorialidad[],VLOOKUP($E$31,Tabla_Columnas[],2,0),0))","v":-0.5}]
[null,null,null,"Perfil garantizado",{"$f":"_xlfn.XLOOKUP($E$32,Perfil_afianzado,Tabla_perfil_afianzado[Puntaje])","v":0}]
[null,null,null,"Contragarantía",{"$f":"_xlfn.XLOOKUP($E$33,Contragarantía,Tabla_contragarantía[Puntaje])","v":0}]
[null,null,null,"TOTAL",{"$f":"MIN(10,MAX(0,SUM(E54:E59)))","v":5.5}]
[]
["Fechas"]
[null,null,null,"Fecha Ocurrencia Siniestro",null,{"$f":"+E64-E63","v":0},null,null,"y",{"$f":"D64","v":"Fecha Aviso Siniestro"}]
[null,null,null,"Fecha Aviso Siniestro",null,{"$f":"+E65-E64","v":0},null,null,"y",{"$f":"D65","v":"Fecha Apertura Reserva"}]
[null,null,null,"Fecha Apertura Reserva",null,{"$f":"E66-E64","v":0},null,null,"y",{"$f":"D66","v":"Fecha de Notificación del Proceso"}]
[null,null,null,"Fecha de Notificación del Proceso",null,{"$f":"+E74-E66","v":0},null,null,"y",{"$f":"$D$66","v":"Fecha de Notificación del Proceso"}]
[]
["Otros campos póliza"]
[null,null,null,"¿Se ha realizado pagos parciales?","SÍ"]
[null,null,null,"Valor Pago Parcial en COP"]
[null,null,null,"Método de distribución","Automático"]
[]
[null,null,null,"¿Aplica el calculo de intereses?","NO"]
[null,null,null,"Fecha de Inicio de Causación de Intereses",null,{"$f":"IF($E$73=\"NO\",0,MAX(0,DATEDIF(E74,E75,\"m\")-1))","v":0}]
[null,null,null,"Fecha Final para Causación de Intereses"]

{"sheet":"Información Pólizas","index":1,"n_rows":107,"n_cols":79,"rows_kept":107,"cut":false,"hidden":true,"merged":[]}
[null,"Reserva de siniestros",{"$f":"SUM(Tabla_Pólizas[RESERVA DEL SINIESTRO])","v":{"$error":"#REF!"}}]
[null,"Reserva de honorarios",{"$f":"SUM(Tabla_Pólizas[RESERVA DE HONORARIOS])","v":{"$error":"#REF!"}}]
[null,"Reserva de gastos direct.",{"$f":"SUM(Tabla_Pólizas[RESERVA DE GASTOS DIRECTOS])","v":0}]
[null,"Reserva de gastos indirect.",{"$f":"SUM(Tabla_Pólizas[RESERVA DE GASTOS INDIRECTOS])","v":0}]
[null,"RESERVA TOTAL",{"$f":"SUM(C1:C4)","v":{"$error":"#REF!"}}]
[null,null,null,null,null,null,null,null,null,null,null,null,null,null,null,null,null,null,null,null,null,{"$f":"SUM(Tabla_Pólizas[Porcentaje de distribución de honorarios])","v":0.5},{"$f":"SUM(Tabla_Pólizas[Porcentaje de distribución del pago parcial])","v":0},null,null,null,null,null,null,null,null,null,null,null,null,null,null,null,null,"PML",null,null,null,null,null,"% PÉRDIDA",null,null,null,null,null,"RSA SINIESTRO"]
["NOMBRE ITEM >","Nombre de Tomador","Nombre de Asegurado","Número de Póliza","Número de siniestro","Inicio de vigencia","Fin de vigencia","Ramo SFC","Cobertura","Unid Vlr Asegurado","Vlr Asegurado","SMLMV Fecha Ocurrencia Siniestro","Unid Sublímite","Valor Sublímite ","% Coaseguro de Confianza","Unid Deducible","Deducible","Unid de ejecución del contrato o inversión del anticipo","Ejecución del contrato y/o inversión del anticipo","Unid Conciliación","Valor Conciliación","Porcentaje de distribución de honorarios","Porcentaje de distribución del pago parcial","¿Existe la cobertura reclamada?","¿El siniestro ocurrió dentro de la vigencia?","¿Hay preescripción en este contrato de seguro?","Hay Culpabilidad","Hay Incumplimiento","Llave","CUMPLE CRITERIOS DE RECLAMACIÓN","DISTRIBUCIÓN PRETENSIÓN OTRAS COBERTURAS","VALOR ASEGURADO PESOS","VALOR SIN EJECUTAR","PRETENSIÓN PESOS","VALOR SUBLÍMITE PESOS","VALOR SIN DEDUCIBLE","VALOR DEDUCIBLE","VALOR MÁX PARÁMETROS PÓLIZA","INTERESES","PÉRDIDA MÁXIMA PROBABLE","PUNTAJE CULPABILIDAD","PUNTAJE INCUMPLIMIENTO","PUNTAJE ETAPA DEL PROCESO","PUNTAJE TERRITORIALIDAD","PUNTAJE TOTAL","PROBABILIDAD DE PÉRDIDA","RESERVA BRUTA PRELIMINAR DEL SINIESTRO","PAGOS PARCIALES","RESERVA PRELIMINAR DEL SINIESTRO","VALOR CONCILIACIÓN PESOS","VALOR SENTENCIA PESOS","RESERVA DEL SINIESTRO","RESERVA DE HONORARIOS","RESERVA DE GASTOS DIRECTOS","RESERVA DE GASTOS INDIRECTOS","RESERVA TOTAL",null,null,null,"RAMO SFC",null,null,null,null,"COBERTURA"]
[null,null,null,"06GU010878",11687,null,null,"CUMPLIMIENTO","CUMPLIMIENTO","COP",27000000000,689455,null,null,1,"%",10,"%",0,"COP",0,0.5,null,"SÍ","SÍ","NO","NO","Neutral",{"$f":"Tabla_Pólizas[[#This Row],[Ramo SFC]]&\"-\"&Tabla_Pólizas[[#This Row],[Cobertura]]","v":"CUMPLIMIENTO-CUMPLIMIENTO"},{"$f":"IF(AND(Tabla_Pólizas[[#This Row],[¿Existe la cobertura reclamada?]]=\"SÍ\",Tabla_Pólizas[[#This Row],[¿El siniestro ocurrió dentro de la vigencia?]]=\"SÍ\",Tabla_Pólizas[[#This Row],[¿Hay preescripción en este contrato de seguro?]]=\"NO\"),\"SÍ\",\"NO\")","v":"SÍ"},{"$f":"IF(COUNTA(Tabla_Pólizas[CUMPLE CRITERIOS DE RECLAMACIÓN])=COUNTIF(Tabla_Pólizas[CUMPLE CRITERIOS DE RECLAMACIÓN],\"NO\"),Tabla_Pólizas[[#This Row],[VALOR ASEGURADO PESOS]]/SUM(Tabla_Pólizas[VALOR ASEGURADO PESOS]),IF(Tabla_Pólizas[[#This Row],[CUMPLE CRITERIOS DE RECLAMACIÓN]]=\"NO\",0.5%,(1-(COUNTIF(Tabla_Pólizas[CUMPLE CRITERIOS DE RECLAMACIÓN],\"NO\")*0.5%))*(Tabla_Pólizas[[#This Row],[VALOR ASEGURADO PESOS]]/SUMIF(Tabla_Pólizas[CUMPLE CRITERIOS DE RECLAMACIÓN],\"SÍ\",Tabla_Pólizas[VALOR ASEGURADO PESOS]))))","v":1},{"$f":"IF(Tabla_Pólizas[[#This Row],[Unid Vlr Asegurado]]=\"COP\",Tabla_Pólizas[[#This Row],[Vlr Asegurado]],IF(Tabla_Pólizas[[#This Row],[Unid Vlr Asegurado]]=\"USD\",Tabla_Pólizas[[#This Row],[Vlr Asegurado]]*'Proceso Judicial'!#REF!,Tabla_Pólizas[[#This Row],[Vlr Asegurado]]*Tabla_Pólizas[[#This Row],[SMLMV Fecha Ocurrencia Siniestro]]))","v":27000000000},{"$f":"IF(OR(ISNUMBER(SEARCH(\"cumplimiento\",Tabla_Pólizas[[#This Row],[Ramo SFC]])),ISNUMBER(SEARCH(\"anticipo\",Tabla_Pólizas[[#This Row],[Cobertura]]))),IF(Tabla_Pólizas[[#This Row],[Unid de ejecución del contrato o inversión del anticipo]]=\"%\",Tabla_Pólizas[[#This Row],[VALOR ASEGURADO PESOS]]*(1-(Tabla_Pólizas[[#This Row],[Ejecución del contrato y/o inversión del anticipo]]/100)),Tabla_Pólizas[[#This Row],[VALOR ASEGURADO PESOS]]-Tabla_Pólizas[[#This Row],[Ejecución del contrato y/o inversión del anticipo]]),\"ND\")","v":27000000000},{"$f":"IF('Proceso Judicial'!$E$36=0,\"ND\",'Proceso Judicial'!#REF!*Tabla_Pólizas[[#This Row],[DISTRIBUCIÓN PRETENSIÓN OTRAS COBERTURAS]])","v":{"$error":"#REF!"}},{"$f":"IF(ISNUMBER(SEARCH(\"cumplimiento\",Tabla_Pólizas[[#This Row],[Ramo SFC]])),\"ND\",IF(Tabla_Pólizas[[#This Row],[Valor Sublímite ]]=0,\"ND\",IF(Tabla_Pólizas[[#This Row],[Unid Sublímite]]=\"COP\",Tabla_Pólizas[[#This Row],[Valor Sublímite ]],IF(Tabla_Pólizas[[#This Row],[Unid Sublímite]]=\"%\",Tabla_Pólizas[[#This Row],[VALOR ASEGURADO PESOS]]*Tabla_Pólizas[[#This Row],[Valor Sublímite ]]/100,Tabla_Pólizas[[#This Row],[Valor Sublímite ]]*Tabla_Pólizas[[#This Row],[SMLMV Fecha Ocurrencia Siniestro]]))))","v":"ND"},{"$f":"IF(ISNUMBER(SEARCH(\"cumplimiento\",Tabla_Pólizas[[#This Row],[Ramo SFC]])),MIN(Tabla_Pólizas[[#This Row],[VALOR ASEGURADO PESOS]:[PRETENSIÓN PESOS]]),MIN(Tabla_Pólizas[[#This Row],[VALOR ASEGURADO PESOS]:[VALOR SUBLÍMITE PESOS]]))*Tabla_Pólizas[[#This Row],[% Coaseguro de Confianza]]","v":{"$error":"#REF!"}},{"$f":"IF(ISNUMBER(SEARCH(\"cumplimiento\",Tabla_Pólizas[[#This Row],[Ramo SFC]])),0,IF(Tabla_Pólizas[[#This Row],[Deducible]]=0,0,IF(Tabla_Pólizas[[#This Row],[Unid Deducible]]=\"COP\",Tabla_Pólizas[[#This Row],[Deducible]],IF(Tabla_Pólizas[[#This Row],[Unid Deducible]]=\"SMMLV\",Tabla_Pólizas[[#This Row],[Deducible]]*Tabla_Pólizas[[#This Row],[SMLMV Fecha Ocurrencia Siniestro]],Tabla_Pólizas[[#This Row],[VALOR SIN DEDUCIBLE]]*Tabla_Pólizas[[#This Row],[Deducible]]/100))))","v":0},{"$f":"MAX(Tabla_Pólizas[[#This Row],[VALOR SIN DEDUCIBLE]]-Tabla_Pólizas[[#This Row],[VALOR DEDUCIBLE]],Tabla_Pólizas[[#This Row],[VALOR SIN DEDUCIBLE]]*1.5%)","v":{"$error":"#REF!"}},{"$f":"IF('Proceso Judicial'!$E$73=\"NO\",0,(Tabla_Pólizas[[#This Row],[VALOR MÁX PARÁMETROS PÓLIZA]]*(1+(_xlfn.XLOOKUP('Proceso Judicial'!$E$74,Intereses[Hasta],Intereses[TIB corriente (%EM)],,-1)))^'Proceso Judicial'!$F$74)-Tabla_Pólizas[[#This Row],[VALOR MÁX PARÁMETROS PÓLIZA]])","v":0},{"$f":"IF(AND(Tabla_Pólizas[[#This Row],[¿Existe la cobertura reclamada?]]=\"SÍ\",Tabla_Pólizas[[#This Row],[¿El siniestro ocurrió dentro de la vigencia?]]=\"SÍ\",Tabla_Pólizas[[#This Row],[¿Hay preescripción en este contrato de seguro?]]=\"NO\"),MAX(Tabla_Pólizas[[#This Row],[VALOR MÁX PARÁMETROS PÓLIZA]]+Tabla_Pólizas[[#This Row],[INTERESES]],'Proceso Judicial'!#REF!),MAX((Tabla_Pólizas[[#This Row],[VALOR MÁX PARÁMETROS PÓLIZA]]+Tabla_Pólizas[[#This Row],[INTERESES]])*1.5%,'Proceso Judicial'!#REF!))","v":{"$error":"#REF!"}},{"$f":"IF(ISNUMBER(SEARCH(\"cumplimiento\",Tabla_Pólizas[[#This Row],[Ramo SFC]])),\"ND\",VLOOKUP(Tabla_Pólizas[[#This Row],[Hay Culpabilidad]],#REF!,2,0))","v":"ND"},{"$f":"IF(ISNUMBER(SEARCH(\"cumplimiento\",Tabla_Pólizas[[#This Row],[Ramo SFC]])),VLOOKUP(Tabla_Pólizas[[#This Row],[Hay Incumplimiento]],Tabla_Incumplimiento[],2,0),\"ND\")","v":3},{"$f":"VLOOKUP('Proceso Judicial'!$E$28,OFFSET(INDIRECT('Proceso Judicial'!$E$27),0,0,,6),VLOOKUP(IF(Tabla_Pólizas[[#This Row],[Ramo SFC]]=\"Cumplimiento\",Tabla_Pólizas[[#This Row],[Hay Incumplimiento]],Tabla_Pólizas[[#This Row],[Hay Culpabilidad]]),Tabla_Columnas[],2,0),0)","v":1.2},{"$f":"VLOOKUP('Proceso Judicial'!$E$29,Tabla_territorialidad[],VLOOKUP(IF(ISNUMBER(SEARCH(\"cumplimiento\",Tabla_Pólizas[[#This Row],[Ramo SFC]])),Tabla_Pólizas[[#This Row],[Hay Incumplimiento]],Tabla_Pólizas[[#This Row],[Hay Culpabilidad]]),Tabla_Columnas[],2,0),0)","v":-0.25},{"$f":"MIN(MAX(SUM(Tabla_Pólizas[[#This Row],[PUNTAJE CULPABILIDAD]:[PUNTAJE TERRITORIALIDAD]]),0),10)","v":3.95},{"$f":"VLOOKUP(Tabla_Pólizas[[#This Row],[PUNTAJE TOTAL]],Tabla_Puntaje[],3,1)","v":0.29515184479707379},{"$f":"Tabla_Pólizas[[#This Row],[PÉRDIDA MÁXIMA PROBABLE]]*Tabla_Pólizas[[#This Row],[PROBABILIDAD DE PÉRDIDA]]","v":{"$error":"#REF!"}},{"$f":"IF('Proceso Judicial'!$E$69=\"NO\",0,'Proceso Judicial'!$E$70)*IF('Proceso Judicial'!$E$71=\"Automático\",(Tabla_Pólizas[[#This Row],[RESERVA BRUTA PRELIMINAR DEL SINIESTRO]]/SUM(Tabla_Pólizas[RESERVA BRUTA PRELIMINAR DEL SINIESTRO])),Tabla_Pólizas[[#This Row],[Porcentaje de distribución del pago parcial]])","v":{"$error":"#REF!"}},{"$f":"Tabla_Pólizas[[#This Row],[RESERVA BRUTA PRELIMINAR DEL SINIESTRO]]-Tabla_Pólizas[[#This Row],[PAGOS PARCIALES]]","v":{"$error":"#REF!"}},{"$f":"IF(OR(Tabla_Pólizas[[#This Row],[Valor Conciliación]]=0,NOT(ISNUMBER(Tabla_Pólizas[[#This Row],[Valor Conciliación]]))),\"ND\",IF(Tabla_Pólizas[[#This Row],[Unid Conciliación]]=\"COP\",Tabla_Pólizas[[#This Row],[Valor Conciliación]],Tabla_Pólizas[[#This Row],[Valor Conciliación]]*Tabla_Pólizas[[#This Row],[SMLMV Fecha Ocurrencia Siniestro]]))","v":"ND"},{"$f":"IF('Proceso Judicial'!$E$38=\"NO\",\"ND\",(Tabla_Pólizas[[#This Row],[RESERVA BRUTA PRELIMINAR DEL SINIESTRO]]/SUM(Tabla_Pólizas[RESERVA BRUTA PRELIMINAR DEL SINIESTRO]))*'Proceso Judicial'!#REF!)","v":"ND"},{"$f":"IF('Proceso Judicial'!$E$45=TRUE,Tabla_Pólizas[[#This Row],[VALOR SENTENCIA PESOS]],MAX(Tabla_Pólizas[[#This Row],[RESERVA PRELIMINAR DEL SINIESTRO]:[VALOR SENTENCIA PESOS]]))","v":{"$error":"#REF!"}},{"$f":"IF('Proceso Judicial'!$E$49=\"NO\",_xlfn.XLOOKUP(Tabla_Pólizas[[#This Row],[Llave]],Estructura[LLAVE],Estructura[HONORARIOS],\"ND\"),'Proceso Judicial'!#REF!*IF('Proceso Judicial'!#REF!=\"Automático\",(Tabla_Pólizas[[#This Row],[RESERVA DEL SINIESTRO]]/SUM(Tabla_Pólizas[RESERVA DEL SINIESTRO])),Tabla_Pólizas[[#This Row],[Porcentaje de distribución de honorarios]]))","v":{"$error":"#REF!"}},{"$f":"_xlfn.XLOOKUP(Tabla_Pólizas[[#This Row],[Llave]],Estructura[LLAVE],Estructura[GASTOS DIRECTOS],\"ND\")","v":0},{"$f":"_xlfn.XLOOKUP(Tabla_Pólizas[[#This Row],[Llave]],Estructura[LLAVE],Estructura[GASTOS INDIRECTOS],\"ND\")","v":0},{"$f":"SUM(Tabla_Pólizas[[#This Row],[RESERVA DEL SINIESTRO]:[RESERVA DE GASTOS INDIRECTOS]])","v":{"$error":"#REF!"}},null,null,null,{"$f":"TRANSPOSE(_xlfn.UNIQUE(Estructura[RAMO SFC],FALSE,FALSE))","v":"CUMPLIMIENTO"},"RESPONSABILIDAD CIVIL",null,null,null,{"$f":"TRANSPOSE(_xlfn.UNIQUE(_xlfn._xlws.FILTER(Estructura[COBERTURA],(Estructura[RAMO SFC]=Tabla_Pólizas[[#This Row],[Ramo SFC]])),FALSE,FALSE))","v":"ANTICIPO"},"ART. 513","ART. 599","CALIDAD","CALIDAD DE SERVICIO","CALIDAD DE SUMINISTRO","CAUCION JUDICIAL","CONTRATISTAS Y SUBCONTRATISTAS","CUMPLIMIENTO","DISPOSICIONES LEGALES","ESTABILIDAD DE LA OBRA","OTRAS","PLO","SALARIOS Y PRESTACIONES","SERIEDAD DE LA OFERTA"]
[null,null,null,null,null,null,null,null,null,null,null,null,null,null,null,null,null,null,null,null,null,null,null,null,null,null,null,null,null,null,null,null,null,null,null,null,null,null,null,null,null,null,null,null,null,null,null,null,null,null,null,null,null,null,null,null,null,null,null,{"$f":"TRANSPOSE(_xlfn.UNIQUE(Estructura[RAMO SFC],FALSE,FALSE))","v":"CUMPLIMIENTO"},"RESPONSABILIDAD CIVIL",null,null,null,{"$f":"TRANSPOSE(_xlfn.UNIQUE(_xlfn._xlws.FILTER(Estructura[COBERTURA],(Estructura[RAMO SFC]=Tabla_Pólizas[[#This Row],[Ramo SFC]])),FALSE,FALSE))","v":{"$error":"#VALUE!"}}]
[null,null,null,null,null,null,null,null,null,null,null,null,null,null,null,null,null,null,null,null,null,null,null,null,null,null,null,null,null,null,null,null,null,null,null,null,null,null,null,null,null,null,null,null,null,null,null,null,null,null,null,null,null,null,null,null,null,null,null,{"$f":"TRANSPOSE(_xlfn.UNIQUE(Estructura[RAMO SFC],FALSE,FALSE))","v":"CUMPLIMIENTO"},"RESPONSABILIDAD CIVIL",null,null,null,{"$f":"TRANSPOSE(_xlfn.UNIQUE(_xlfn._xlws.FILTER(Estructura[COBERTURA],(Estructura[RAMO SFC]=Tabla_Pólizas[[#This Row],[Ramo SFC]])),FALSE,FALSE))","v":{"$error":"#VALUE!"}}]
[null,null,null,null,null,null,null,null,null,null,null,null,null,null,null,null,null,null,null,null,null,null,null,null,null,null,null,null,null,null,null,null,null,null,null,null,null,null,null,null,null,null,null,null,null,null,null,null,null,null,null,null,null,null,null,null,null,null,null,{"$f":"TRANSPOSE(_xlfn.UNIQUE(Estructura[RAMO SFC],FALSE,FALSE))","v":"CUMPLIMIENTO"},"RESPONSABILIDAD CIVIL",null,null,null,{"$f":"TRANSPOSE(_xlfn.UNIQUE(_xlfn._xlws.FILTER(Estructura[COBERTURA],(Estructura[RAMO SFC]=Tabla_Pólizas[[#This Row],[Ramo SFC]])),FALSE,FALSE))","v":{"$error":"#VALUE!"}}]
[null,null,null,null,null,null,null,null,null,null,null,null,null,null,null,null,null,null,null,null,null,null,null,null,null,null,null,null,null,null,null,null,null,null,null,null,null,null,null,null,null,null,null,null,null,null,null,null,null,null,null,null,null,null,null,null,null,null,null,{"$f":"TRANSPOSE(_xlfn.UNIQUE(Estructura[RAMO SFC],FALSE,FALSE))","v":"CUMPLIMIENTO"},"RESPONSABILIDAD CIVIL",null,null,null,{"$f":"TRANSPOSE(_xlfn.UNIQUE(_xlfn._xlws.FILTER(Estructura[COBERTURA],(Estructura[RAMO SFC]=Tabla_Pólizas[[#This Row],[Ramo SFC]])),FALSE,FALSE))","v":{"$error":"#VALUE!"}}]
[null,null,null,null,null,null,null,null,null,null,null,null,null,null,null,null,null,null,null,null,null,null,null,null,null,null,null,null,null,null,null,null,null,null,null,null,null,null,null,null,null,null,null,null,null,null,null,null,null,null,null,null,null,null,null,null,null,null,null,{"$f":"TRANSPOSE(_xlfn.UNIQUE(Estructura[RAMO SFC],FALSE,FALSE))","v":"CUMPLIMIENTO"},"RESPONSABILIDAD CIVIL",null,null,null,{"$f":"TRANSPOSE(_xlfn.UNIQUE(_xlfn._xlws.FILTER(Estructura[COBERTURA],(Estructura[RAMO SFC]=Tabla_Pólizas[[#This Row],[Ramo SFC]])),FALSE,FALSE))","v":{"$error":"#VALUE!"}}]
[null,null,null,null,"SEPARAR RAMOS",null,null,null,null,null,null,null,null,null,null,null,null,null,null,null,null,null,null,null,null,null,null,null,null,null,null,null,null,null,null,null,null,null,null,null,null,null,null,null,null,null,null,null,null,null,null,null,null,null,null,null,null,null,null,{"$f":"TRANSPOSE(_xlfn.UNIQUE(Estructura[RAMO SFC],FALSE,FALSE))","v":"CUMPLIMIENTO"},"RESPONSABILIDAD CIVIL",null,null,null,{"$f":"TRANSPOSE(_xlfn.UNIQUE(_xlfn._xlws.FILTER(Estructura[COBERTURA],(Estructura[RAMO SFC]=Tabla_Pólizas[[#This Row],[Ramo SFC]])),FALSE,FALSE))","v":{"$error":"#VALUE!"}}]
[null,null,null,null,"CARATULA SENCILLA",null,null,null,null,null,null,null,null,null,null,null,null,null,null,null,null,null,null,null,null,null,null,null,null,null,null,null,null,null,null,null,null,null,null,null,null,null,null,null,null,null,null,null,null,null,null,null,null,null,null,null,null,null,null,{"$f":"TRANSPOSE(_xlfn.UNIQUE(Estructura[RAMO SFC],FALSE,FALSE))","v":"CUMPLIMIENTO"},"RESPONSABILIDAD CIVIL",null,null,null,{"$f":"TRANSPOSE(_xlfn.UNIQUE(_xlfn._xlws.FILTER(Estructura[COBERTURA],(Estructura[RAMO SFC]=Tabla_Pólizas[[#This Row],[Ramo SFC]])),FALSE,FALSE))","v":{"$error":"#VALUE!"}}]
[null,null,null,null,"ID DE SINIESTRO-PÓLIZA",null,null,null,null,null,null,null,null,null,null,null,null,null,null,null,null,null,null,null,null,null,null,null,null,null,null,null,null,null,null,null,null,null,null,null,null,null,null,null,null,null,null,null,null,null,null,null,null,null,null,null,null,null,null,{"$f":"TRANSPOSE(_xlfn.UNIQUE(Estructura[RAMO SFC],FALSE,FALSE))","v":"CUMPLIMIENTO"},"RESPONSABILIDAD CIVIL",null,null,null,{"$f":"TRANSPOSE(_xlfn.UNIQUE(_xlfn._xlws.FILTER(Estructura[COBERTURA],(Estructura[RAMO SFC]=Tabla_Pólizas[[#This Row],[Ramo SFC]])),FALSE,FALSE))","v":{"$error":"#VALUE!"}}]
[null,null,null,null,"PML DILIGENCIABLE",null,null,null,null,null,null,null,null,null,null,null,null,null,null,null,null,null,null,null,null,null,null,null,null,null,null,null,null,null,null,null,null,null,null,null,null,null,null,null,null,null,null,null,null,null,null,null,null,null,null,null,null,null,null,{"$f":"TRANSPOSE(_xlfn.UNIQUE(Estructura[RAMO SFC],FALSE,FALSE))","v":"CUMPLIMIENTO"},"RESPONSABILIDAD CIVIL",null,null,null,{"$f":"TRANSPOSE(_xlfn.UNIQUE(_xlfn._xlws.FILTER(Estructura[COBERTURA],(Estructura[RAMO SFC]=Tabla_Pólizas[[#This Row],[Ramo SFC]])),FALSE,FALSE))","v":{"$error":"#VALUE!"}}]
[null,null,null,null,"OCULTAR INFORMACIÓN QUE NO SEA NECESARIA EN EL MOMENTO",null,null,null,null,null,null,null,null,null,null,null,null,null,null,null,null,null,null,null,null,null,null,null,null,null,null,null,null,null,null,null,null,null,null,null,null,null,null,null,null,null,null,null,null,null,null,null,null,null,null,null,null,null,null,{"$f":"TRANSPOSE(_xlfn.UNIQUE(Estructura[RAMO SFC],FALSE,FALSE))","v":"CUMPLIMIENTO"},"RESPONSABILIDAD CIVIL",null,null,null,{"$f":"TRANSPOSE(_xlfn.UNIQUE(_xlfn._xlws.FILTER(Estructura[COBERTURA],(Estructura[RAMO SFC]=Tabla_Pólizas[[#This Row],[Ramo SFC]])),FALSE,FALSE))","v":{"$error":"#VALUE!"}}]
[null,null,null,null,"ENVIAR TABLAS CON PUNTAJES: ",null,null,null,null,null,null,null,null,null,null,null,null,null,null,null,null,null,null,null,null,null,null,null,null,null,null,null,null,null,null,null,null,null,null,null,null,null,null,null,null,null,null,null,null,null,null,null,null,null,null,null,null,null,null,{"$f":"TRANSPOSE(_xlfn.UNIQUE(Estructura[RAMO SFC],FALSE,FALSE))","v":"CUMPLIMIENTO"},"RESPONSABILIDAD CIVIL",null,null,null,{"$f":"TRANSPOSE(_xlfn.UNIQUE(_xlfn._xlws.FILTER(Estructura[COBERTURA],(Estructura[RAMO SFC]=Tabla_Pólizas[[#This Row],[Ramo SFC]])),FALSE,FALSE))","v":{"$error":"#VALUE!"}}]
[null,null,null,null,"SEPARAR JURISDICCIÓN ORDINARIA: CIVIL & LABORAL",null,null,null,null,null,null,null,null,null,null,null,null,null,null,null,null,null,null,null,null,null,null,null,null,null,null,null,null,null,null,null,null,null,null,null,null,null,null,null,null,null,null,null,null,null,null,null,null,null,null,null,null,null,null,{"$f":"TRANSPOSE(_xlfn.UNIQUE(Estructura[RAMO SFC],FALSE,FALSE))","v":"CUMPLIMIENTO"},"RESPONSABILIDAD CIVIL",null,null,null,{"$f":"TRANSPOSE(_xlfn.UNIQUE(_xlfn._xlws.FILTER(Estructura[COBERTURA],(Estructura[RAMO SFC]=Tabla_Pólizas[[#This Row],[Ramo SFC]])),FALSE,FALSE))","v":{"$error":"#VALUE!"}}]
[null,null,null,null,"SOLVENCIA DE CLIENTES CUMPLIMIENTO",null,null,null,null,null,null,null,null,null,null,null,null,null,null,null,null,null,null,null,null,null,null,null,null,null,null,null,null,null,null,null,null,null,null,null,null,null,null,null,null,null,null,null,null,null,null,null,null,null,null,null,null,null,null,{"$f":"TRANSPOSE(_xlfn.UNIQUE(Estructura[RAMO SFC],FALSE,FALSE))","v":"CUMPLIMIENTO"},"RESPONSABILIDAD CIVIL",null,null,null,{"$f":"TRANSPOSE(_xlfn.UNIQUE(_xlfn._xlws.FILTER(Estructura[COBERTURA],(Estructura[RAMO SFC]=Tabla_Pólizas[[#This Row],[Ramo SFC]])),FALSE,FALSE))","v":{"$error":"#VALUE!"}}]
[null,null,null,null,"CONTRAGARANTÍA CUMPLIMIENTO",null,null,null,null,null,null,null,null,null,null,null,null,null,null,null,null,null,null,null,null,null,null,null,null,null,null,null,null,null,null,null,null,null,null,null,null,null,null,null,null,null,null,null,null,null,null,null,null,null,null,null,null,null,null,{"$f":"TRANSPOSE(_xlfn.UNIQUE(Estructura[RAMO SFC],FALSE,FALSE))","v":"CUMPLIMIENTO"},"RESPONSABILIDAD CIVIL",null,null,null,{"$f":"TRANSPOSE(_xlfn.UNIQUE(_xlfn._xlws.FILTER(Estructura[COBERTURA],(Estructura[RAMO SFC]=Tabla_Pólizas[[#This Row],[Ramo SFC]])),FALSE,FALSE))","v":{"$error":"#VALUE!"}}]
[null,null,null,null,null,null,null,null,null,null,null,null,null,null,null,null,null,null,null,null,null,null,null,null,null,null,null,null,null,null,null,null,null,null,null,null,null,null,null,null,null,null,null,null,null,null,null,null,null,null,null,null,null,null,null,null,null,null,null,{"$f":"TRANSPOSE(_xlfn.UNIQUE(Estructura[RAMO SFC],FALSE,FALSE))","v":"CUMPLIMIENTO"},"RESPONSABILIDAD CIVIL",null,null,null,{"$f":"TRANSPOSE(_xlfn.UNIQUE(_xlfn._xlws.FILTER(Estructura[COBERTURA],(Estructura[RAMO SFC]=Tabla_Pólizas[[#This Row],[Ramo SFC]])),FALSE,FALSE))","v":{"$error":"#VALUE!"}}]
[null,null,null,null,null,null,null,null,null,null,null,null,null,null,null,null,null,null,null,null,null,null,null,null,null,null,null,null,null,null,null,null,null,null,null,null,null,null,null,null,null,null,null,null,null,null,null,null,null,null,null,null,null,null,null,null,null,null,null,{"$f":"TRANSPOSE(_xlfn.UNIQUE(Estructura[RAMO SFC],FALSE,FALSE))","v":"CUMPLIMIENTO"},"RESPONSABILIDAD CIVIL",null,null,null,{"$f":"TRANSPOSE(_xlfn.UNIQUE(_xlfn._xlws.FILTER(Estructura[COBERTURA],(Estructura[RAMO SFC]=Tabla_Pólizas[[#This Row],[Ramo SFC]])),FALSE,FALSE))","v":{"$error":"#VALUE!"}}]
[null,null,null,null,null,null,null,null,null,null,null,null,null,null,null,null,null,null,null,null,null,null,null,null,null,null,null,null,null,null,null,null,null,null,null,null,null,null,null,null,null,null,null,null,null,null,null,null,null,null,null,null,null,null,null,null,null,null,null,{"$f":"TRANSPOSE(_xlfn.UNIQUE(Estructura[RAMO SFC],FALSE,FALSE))","v":"CUMPLIMIENTO"},"RESPONSABILIDAD CIVIL",null,null,null,{"$f":"TRANSPOSE(_xlfn.UNIQUE(_xlfn._xlws.FILTER(Estructura[COBERTURA],(Estructura[RAMO SFC]=Tabla_Pólizas[[#This Row],[Ramo SFC]])),FALSE,FALSE))","v":{"$error":"#VALUE!"}}]
[null,null,null,null,null,null,null,null,null,null,null,null,null,null,null,null,null,null,null,null,null,null,null,null,null,null,null,null,null,null,null,null,null,null,null,null,null,null,null,null,null,null,null,null,null,null,null,null,null,null,null,null,null,null,null,null,null,null,null,{"$f":"TRANSPOSE(_xlfn.UNIQUE(Estructura[RAMO SFC],FALSE,FALSE))","v":"CUMPLIMIENTO"},"RESPONSABILIDAD CIVIL",null,null,null,{"$f":"TRANSPOSE(_xlfn.UNIQUE(_xlfn._xlws.FILTER(Estructura[COBERTURA],(Estructura[RAMO SFC]=Tabla_Pólizas[[#This Row],[Ramo SFC]])),FALSE,FALSE))","v":{"$error":"#VALUE!"}}]
[null,null,null,null,null,null,null,null,null,null,null,null,null,null,null,null,null,null,null,null,null,null,null,null,null,null,null,null,null,null,null,null,null,null,null,null,null,null,null,null,null,null,null,null,null,null,null,null,null,null,null,null,null,null,null,null,null,null,null,{"$f":"TRANSPOSE(_xlfn.UNIQUE(Estructura[RAMO SFC],FALSE,FALSE))","v":"CUMPLIMIENTO"},"RESPONSABILIDAD CIVIL",null,null,null,{"$f":"TRANSPOSE(_xlfn.UNIQUE(_xlfn._xlws.FILTER(Estructura[COBERTURA],(Estructura[RAMO SFC]=Tabla_Pólizas[[#This Row],[Ramo SFC]])),FALSE,FALSE))","v":{"$error":"#VALUE!"}}]
[null,null,null,null,null,null,null,null,null,null,null,null,null,null,null,null,null,null,null,null,null,null,null,null,null,null,null,null,null,null,null,null,null,null,null,null,null,null,null,null,null,null,null,null,null,null,null,null,null,null,null,null,null,null,null,null,null,null,null,{"$f":"TRANSPOSE(_xlfn.UNIQUE(Estructura[RAMO SFC],FALSE,FALSE))","v":"CUMPLIMIENTO"},"RESPONSABILIDAD CIVIL",null,null,null,{"$f":"TRANSPOSE(_xlfn.UNIQUE(_xlfn._xlws.FILTER(Estructura[COBERTURA],(Estructura[RAMO SFC]=Tabla_Pólizas[[#This Row],[Ramo SFC]])),FALSE,FALSE))","v":{"$error":"#VALUE!"}}]
[null,null,null,null,null,null,null,null,null,null,null,null,null,null,null,null,null,null,null,null,null,null,null,null,null,null,null,null,null,null,null,null,null,null,null,null,null,null,null,null,null,null,null,null,null,null,null,null,null,null,null,null,null,null,null,null,null,null,null,{"$f":"TRANSPOSE(_xlfn.UNIQUE(Estructura[RAMO SFC],FALSE,FALSE))","v":"CUMPLIMIENTO"},"RESPONSABILIDAD CIVIL",null,null,null,{"$f":"TRANSPOSE(_xlfn.UNIQUE(_xlfn._xlws.FILTER(Estructura[COBERTURA],(Estructura[RAMO SFC]=Tabla_Pólizas[[#This Row],[Ramo SFC]])),FALSE,FALSE))","v":{"$error":"#VALUE!"}}]
[null,null,null,null,null,null,null,null,null,null,null,null,null,null,null,null,null,null,null,null,null,null,null,null,null,null,null,null,null,null,null,null,null,null,null,null,null,null,null,null,null,null,null,null,null,null,null,null,null,null,null,null,null,null,null,null,null,null,null,{"$f":"TRANSPOSE(_xlfn.UNIQUE(Estructura[RAMO SFC],FALSE,FALSE))","v":"CUMPLIMIENTO"},"RESPONSABILIDAD CIVIL",null,null,null,{"$f":"TRANSPOSE(_xlfn.UNIQUE(_xlfn._xlws.FILTER(Estructura[COBERTURA],(Estructura[RAMO SFC]=Tabla_Pólizas[[#This Row],[Ramo SFC]])),FALSE,FALSE))","v":{"$error":"#VALUE!"}}]
[null,null,null,null,null,null,null,null,null,null,null,null,null,null,null,null,null,null,null,null,null,null,null,null,null,null,null,null,null,null,null,null,null,null,null,null,null,null,null,null,null,null,null,null,null,null,null,null,null,null,null,null,null,null,null,null,null,null,null,{"$f":"TRANSPOSE(_xlfn.UNIQUE(Estructura[RAMO SFC],FALSE,FALSE))","v":"CUMPLIMIENTO"},"RESPONSABILIDAD CIVIL",null,null,null,{"$f":"TRANSPOSE(_xlfn.UNIQUE(_xlfn._xlws.FILTER(Estructura[COBERTURA],(Estructura[RAMO SFC]=Tabla_Pólizas[[#This Row],[Ramo SFC]])),FALSE,FALSE))","v":{"$error":"#VALUE!"}}]
[null,null,null,null,null,null,null,null,null,null,null,null,null,null,null,null,null,null,null,null,null,null,null,null,null,null,null,null,null,null,null,null,null,null,null,null,null,null,null,null,null,null,null,null,null,null,null,null,null,null,null,null,null,null,null,null,null,null,null,{"$f":"TRANSPOSE(_xlfn.UNIQUE(Estructura[RAMO SFC],FALSE,FALSE))","v":"CUMPLIMIENTO"},"RESPONSABILIDAD CIVIL",null,null,null,{"$f":"TRANSPOSE(_xlfn.UNIQUE(_xlfn._xlws.FILTER(Estructura[COBERTURA],(Estructura[RAMO SFC]=Tabla_Pólizas[[#This Row],[Ramo SFC]])),FALSE,FALSE))","v":{"$error":"#VALUE!"}}]
[null,null,null,null,null,null,null,null,null,null,null,null,null,null,null,null,null,null,null,null,null,null,null,null,null,null,null,null,null,null,null,null,null,null,null,null,null,null,null,null,null,null,null,null,null,null,null,null,null,null,null,null,null,null,null,null,null,null,null,{"$f":"TRANSPOSE(_xlfn.UNIQUE(Estructura[RAMO SFC],FALSE,FALSE))","v":"CUMPLIMIENTO"},"RESPONSABILIDAD CIVIL",null,null,null,{"$f":"TRANSPOSE(_xlfn.UNIQUE(_xlfn._xlws.FILTER(Estructura[COBERTURA],(Estructura[RAMO SFC]=Tabla_Pólizas[[#This Row],[Ramo SFC]])),FALSE,FALSE))","v":{"$error":"#VALUE!"}}]
[null,null,null,null,null,null,null,null,null,null,null,null,null,null,null,null,null,null,null,null,null,null,null,null,null,null,null,null,null,null,null,null,null,null,null,null,null,null,null,null,null,null,null,null,null,null,null,null,null,null,null,null,null,null,null,null,null,null,null,{"$f":"TRANSPOSE(_xlfn.UNIQUE(Estructura[RAMO SFC],FALSE,FALSE))","v":"CUMPLIMIENTO"},"RESPONSABILIDAD CIVIL",null,null,null,{"$f":"TRANSPOSE(_xlfn.UNIQUE(_xlfn._xlws.FILTER(Estructura[COBERTURA],(Estructura[RAMO SFC]=Tabla_Pólizas[[#This Row],[Ramo SFC]])),FALSE,FALSE))","v":{"$error":"#VALUE!"}}]
[null,null,null,null,null,null,null,null,null,null,null,null,null,null,null,null,null,null,null,null,null,null,null,null,null,null,null,null,null,null,null,null,null,null,null,null,null,null,null,null,null,null,null,null,null,null,null,null,null,null,null,null,null,null,null,null,null,null,null,{"$f":"TRANSPOSE(_xlfn.UNIQUE(Estructura[RAMO SFC],FALSE,FALSE))","v":"CUMPLIMIENTO"},"RESPONSABILIDAD CIVIL",null,null,null,{"$f":"TRANSPOSE(_xlfn.UNIQUE(_xlfn._xlws.FILTER(Estructura[COBERTURA],(Estructura[RAMO SFC]=Tabla_Pólizas[[#This Row],[Ramo SFC]])),FALSE,FALSE))","v":{"$error":"#VALUE!"}}]
[null,null,null,null,null,null,null,null,null,null,null,null,null,null,null,null,null,null,null,null,null,null,null,null,null,null,null,null,null,null,null,null,null,null,null,null,null,null,null,null,null,null,null,null,null,null,null,null,null,null,null,null,null,null,null,null,null,null,null,{"$f":"TRANSPOSE(_xlfn.UNIQUE(Estructura[RAMO SFC],FALSE,FALSE))","v":"CUMPLIMIENTO"},"RESPONSABILIDAD CIVIL",null,null,null,{"$f":"TRANSPOSE(_xlfn.UNIQUE(_xlfn._xlws.FILTER(Estructura[COBERTURA],(Estructura[RAMO SFC]=Tabla_Pólizas[[#This Row],[Ramo SFC]])),FALSE,FALSE))","v":{"$error":"#VALUE!"}}]
[null,null,null,null,null,null,null,null,null,null,null,null,null,null,null,null,null,null,null,null,null,null,null,null,null,null,null,null,null,null,null,null,null,null,null,null,null,null,null,null,null,null,null,null,null,null,null,null,null,null,null,null,null,null,null,null,null,null,null,{"$f":"TRANSPOSE(_xlfn.UNIQUE(Estructura[RAMO SFC],FALSE,FALSE))","v":"CUMPLIMIENTO"},"RESPONSABILIDAD CIVIL",null,null,null,{"$f":"TRANSPOSE(_xlfn.UNIQUE(_xlfn._xlws.FILTER(Estructura[COBERTURA],(Estructura[RAMO SFC]=Tabla_Pólizas[[#This Row],[Ramo SFC]])),FALSE,FALSE))","v":{"$error":"#VALUE!"}}]
[null,null,null,null,null,null,null,null,null,null,null,null,null,null,null,null,null,null,null,null,null,null,null,null,null,null,null,null,null,null,null,null,null,null,null,null,null,null,null,null,null,null,null,null,null,null,null,null,null,null,null,null,null,null,null,null,null,null,null,{"$f":"TRANSPOSE(_xlfn.UNIQUE(Estructura[RAMO SFC],FALSE,FALSE))","v":"CUMPLIMIENTO"},"RESPONSABILIDAD CIVIL",null,null,null,{"$f":"TRANSPOSE(_xlfn.UNIQUE(_xlfn._xlws.FILTER(Estructura[COBERTURA],(Estructura[RAMO SFC]=Tabla_Pólizas[[#This Row],[Ramo SFC]])),FALSE,FALSE))","v":{"$error":"#VALUE!"}}]
[null,null,null,null,null,null,null,null,null,null,null,null,null,null,null,null,null,null,null,null,null,null,null,null,null,null,null,null,null,null,null,null,null,null,null,null,null,null,null,null,null,null,null,null,null,null,null,null,null,null,null,null,null,null,null,null,null,null,null,{"$f":"TRANSPOSE(_xlfn.UNIQUE(Estructura[RAMO SFC],FALSE,FALSE))","v":"CUMPLIMIENTO"},"RESPONSABILIDAD CIVIL",null,null,null,{"$f":"TRANSPOSE(_xlfn.UNIQUE(_xlfn._xlws.FILTER(Estructura[COBERTURA],(Estructura[RAMO SFC]=Tabla_Pólizas[[#This Row],[Ramo SFC]])),FALSE,FALSE))","v":{"$error":"#VALUE!"}}]
[null,null,null,null,null,null,null,null,null,null,null,null,null,null,null,null,null,null,null,null,null,null,null,null,null,null,null,null,null,null,null,null,null,null,null,null,null,null,null,null,null,null,null,null,null,null,null,null,null,null,null,null,null,null,null,null,null,null,null,{"$f":"TRANSPOSE(_xlfn.UNIQUE(Estructura[RAMO SFC],FALSE,FALSE))","v":"CUMPLIMIENTO"},"RESPONSABILIDAD CIVIL",null,null,null,{"$f":"TRANSPOSE(_xlfn.UNIQUE(_xlfn._xlws.FILTER(Estructura[COBERTURA],(Estructura[RAMO SFC]=Tabla_Pólizas[[#This Row],[Ramo SFC]])),FALSE,FALSE))","v":{"$error":"#VALUE!"}}]
[null,null,null,null,null,null,null,null,null,null,null,null,null,null,null,null,null,null,null,null,null,null,null,null,null,null,null,null,null,null,null,null,null,null,null,null,null,null,null,null,null,null,null,null,null,null,null,null,null,null,null,null,null,null,null,null,null,null,null,{"$f":"TRANSPOSE(_xlfn.UNIQUE(Estructura[RAMO SFC],FALSE,FALSE))","v":"CUMPLIMIENTO"},"RESPONSABILIDAD CIVIL",null,null,null,{"$f":"TRANSPOSE(_xlfn.UNIQUE(_xlfn._xlws.FILTER(Estructura[COBERTURA],(Estructura[RAMO SFC]=Tabla_Pólizas[[#This Row],[Ramo SFC]])),FALSE,FALSE))","v":{"$error":"#VALUE!"}}]
[null,null,null,null,null,null,null,null,null,null,null,null,null,null,null,null,null,null,null,null,null,null,null,null,null,null,null,null,null,null,null,null,null,null,null,null,null,null,null,null,null,null,null,null,null,null,null,null,null,null,null,null,null,null,null,null,null,null,null,{"$f":"TRANSPOSE(_xlfn.UNIQUE(Estructura[RAMO SFC],FALSE,FALSE))","v":"CUMPLIMIENTO"},"RESPONSABILIDAD CIVIL",null,null,null,{"$f":"TRANSPOSE(_xlfn.UNIQUE(_xlfn._xlws.FILTER(Estructura[COBERTURA],(Estructura[RAMO SFC]=Tabla_Pólizas[[#This Row],[Ramo SFC]])),FALSE,FALSE))","v":{"$error":"#VALUE!"}}]
[null,null,null,null,null,null,null,null,null,null,null,null,null,null,null,null,null,null,null,null,null,null,null,null,null,null,null,null,null,null,null,null,null,null,null,null,null,null,null,null,null,null,null,null,null,null,null,null,null,null,null,null,null,null,null,null,null,null,null,{"$f":"TRANSPOSE(_xlfn.UNIQUE(Estructura[RAMO SFC],FALSE,FALSE))","v":"CUMPLIMIENTO"},"RESPONSABILIDAD CIVIL",null,null,null,{"$f":"TRANSPOSE(_xlfn.UNIQUE(_xlfn._xlws.FILTER(Estructura[COBERTURA],(Estructura[RAMO SFC]=Tabla_Pólizas[[#This Row],[Ramo SFC]])),FALSE,FALSE))","v":{"$error":"#VALUE!"}}]
[null,null,null,null,null,null,null,null,null,null,null,null,null,null,null,null,null,null,null,null,null,null,null,null,null,null,null,null,null,null,null,null,null,null,null,null,null,null,null,null,null,null,null,null,null,null,null,null,null,null,null,null,null,null,null,null,null,null,null,{"$f":"TRANSPOSE(_xlfn.UNIQUE(Estructura[RAMO SFC],FALSE,FALSE))","v":"CUMPLIMIENTO"},"RESPONSABILIDAD CIVIL",null,null,null,{"$f":"TRANSPOSE(_xlfn.UNIQUE(_xlfn._xlws.FILTER(Estructura[COBERTURA],(Estructura[RAMO SFC]=Tabla_Pólizas[[#This Row],[Ramo SFC]])),FALSE,FALSE))","v":{"$error":"#VALUE!"}}]
[null,null,null,null,null,null,null,null,null,null,null,null,null,null,null,null,null,null,null,null,null,null,null,null,null,null,null,null,null,null,null,null,null,null,null,null,null,null,null,null,null,null,null,null,null,null,null,null,null,null,null,null,null,null,null,null,null,null,null,{"$f":"TRANSPOSE(_xlfn.UNIQUE(Estructura[RAMO SFC],FALSE,FALSE))","v":"CUMPLIMIENTO"},"RESPONSABILIDAD CIVIL",null,null,null,{"$f":"TRANSPOSE(_xlfn.UNIQUE(_xlfn._xlws.FILTER(Estructura[COBERTURA],(Estructura[RAMO SFC]=Tabla_Pólizas[[#This Row],[Ramo SFC]])),FALSE,FALSE))","v":{"$error":"#VALUE!"}}]
[null,null,null,null,null,null,null,null,null,null,null,null,null,null,null,null,null,null,null,null,null,null,null,null,null,null,null,null,null,null,null,null,null,null,null,null,null,null,null,null,null,null,null,null,null,null,null,null,null,null,null,null,null,null,null,null,null,null,null,{"$f":"TRANSPOSE(_xlfn.UNIQUE(Estructura[RAMO SFC],FALSE,FALSE))","v":"CUMPLIMIENTO"},"RESPONSABILIDAD CIVIL",null,null,null,{"$f":"TRANSPOSE(_xlfn.UNIQUE(_xlfn._xlws.FILTER(Estructura[COBERTURA],(Estructura[RAMO SFC]=Tabla_Pólizas[[#This Row],[Ramo SFC]])),FALSE,FALSE))","v":{"$error":"#VALUE!"}}]
[null,null,null,null,null,null,null,null,null,null,null,null,null,null,null,null,null,null,null,null,null,null,null,null,null,null,null,null,null,null,null,null,null,null,null,null,null,null,null,null,null,null,null,null,null,null,null,null,null,null,null,null,null,null,null,null,null,null,null,{"$f":"TRANSPOSE(_xlfn.UNIQUE(Estructura[RAMO SFC],FALSE,FALSE))","v":"CUMPLIMIENTO"},"RESPONSABILIDAD CIVIL",null,null,null,{"$f":"TRANSPOSE(_xlfn.UNIQUE(_xlfn._xlws.FILTER(Estructura[COBERTURA],(Estructura[RAMO SFC]=Tabla_Pólizas[[#This Row],[Ramo SFC]])),FALSE,FALSE))","v":{"$error":"#VALUE!"}}]
[null,null,null,null,null,null,null,null,null,null,null,null,null,null,null,null,null,null,null,null,null,null,null,null,null,null,null,null,null,null,null,null,null,null,null,null,null,null,null,null,null,null,null,null,null,null,null,null,null,null,null,null,null,null,null,null,null,null,null,{"$f":"TRANSPOSE(_xlfn.UNIQUE(Estructura[RAMO SFC],FALSE,FALSE))","v":"CUMPLIMIENTO"},"RESPONSABILIDAD CIVIL",null,null,null,{"$f":"TRANSPOSE(_xlfn.UNIQUE(_xlfn._xlws.FILTER(Estructura[COBERTURA],(Estructura[RAMO SFC]=Tabla_Pólizas[[#This Row],[Ramo SFC]])),FALSE,FALSE))","v":{"$error":"#VALUE!"}}]
[null,null,null,null,null,null,null,null,null,null,null,null,null,null,null,null,null,null,null,null,null,null,null,null,null,null,null,null,null,null,null,null,null,null,null,null,null,null,null,null,null,null,null,null,null,null,null,null,null,null,null,null,null,null,null,null,null,null,null,{"$f":"TRANSPOSE(_xlfn.UNIQUE(Estructura[RAMO SFC],FALSE,FALSE))","v":"CUMPLIMIENTO"},"RESPONSABILIDAD CIVIL",null,null,null,{"$f":"TRANSPOSE(_xlfn.UNIQUE(_xlfn._xlws.FILTER(Estructura[COBERTURA],(Estructura[RAMO SFC]=Tabla_Pólizas[[#This Row],[Ramo SFC]])),FALSE,FALSE))","v":{"$error":"#VALUE!"}}]
[null,null,null,null,null,null,null,null,null,null,null,null,null,null,null,null,null,null,null,null,null,null,null,null,null,null,null,null,null,null,null,null,null,null,null,null,null,null,null,null,null,null,null,null,null,null,null,null,null,null,null,null,null,null,null,null,null,null,null,{"$f":"TRANSPOSE(_xlfn.UNIQUE(Estructura[RAMO SFC],FALSE,FALSE))","v":"CUMPLIMIENTO"},"RESPONSABILIDAD CIVIL",null,null,null,{"$f":"TRANSPOSE(_xlfn.UNIQUE(_xlfn._xlws.FILTER(Estructura[COBERTURA],(Estructura[RAMO SFC]=Tabla_Pólizas[[#This Row],[Ramo SFC]])),FALSE,FALSE))","v":{"$error":"#VALUE!"}}]
[null,null,null,null,null,null,null,null,null,null,null,null,null,null,null,null,null,null,null,null,null,null,null,null,null,null,null,null,null,null,null,null,null,null,null,null,null,null,null,null,null,null,null,null,null,null,null,null,null,null,null,null,null,null,null,null,null,null,null,{"$f":"TRANSPOSE(_xlfn.UNIQUE(Estructura[RAMO SFC],FALSE,FALSE))","v":"CUMPLIMIENTO"},"RESPONSABILIDAD CIVIL",null,null,null,{"$f":"TRANSPOSE(_xlfn.UNIQUE(_xlfn._xlws.FILTER(Estructura[COBERTURA],(Estructura[RAMO SFC]=Tabla_Pólizas[[#This Row],[Ramo SFC]])),FALSE,FALSE))","v":{"$error":"#VALUE!"}}]
[null,null,null,null,null,null,null,null,null,null,null,null,null,null,null,null,null,null,null,null,null,null,null,null,null,null,null,null,null,null,null,null,null,null,null,null,null,null,null,null,null,null,null,null,null,null,null,null,null,null,null,null,null,null,null,null,null,null,null,{"$f":"TRANSPOSE(_xlfn.UNIQUE(Estructura[RAMO SFC],FALSE,FALSE))","v":"CUMPLIMIENTO"},"RESPONSABILIDAD CIVIL",null,null,null,{"$f":"TRANSPOSE(_xlfn.UNIQUE(_xlfn._xlws.FILTER(Estructura[COBERTURA],(Estructura[RAMO SFC]=Tabla_Pólizas[[#This Row],[Ramo SFC]])),FALSE,FALSE))","v":{"$error":"#VALUE!"}}]
[null,null,null,null,null,null,null,null,null,null,null,null,null,null,null,null,null,null,null,null,null,null,null,null,null,null,null,null,null,null,null,null,null,null,null,null,null,null,null,null,null,null,null,null,null,null,null,null,null,null,null,null,null,null,null,null,null,null,null,{"$f":"TRANSPOSE(_xlfn.UNIQUE(Estructura[RAMO SFC],FALSE,FALSE))","v":"CUMPLIMIENTO"},"RESPONSABILIDAD CIVIL",null,null,null,{"$f":"TRANSPOSE(_xlfn.UNIQUE(_xlfn._xlws.FILTER(Estructura[COBERTURA],(Estructura[RAMO SFC]=Tabla_Pólizas[[#This Row],[Ramo SFC]])),FALSE,FALSE))","v":{"$error":"#VALUE!"}}]
[null,null,null,null,null,null,null,null,null,null,null,null,null,null,null,null,null,null,null,null,null,null,null,null,null,null,null,null,null,null,null,null,null,null,null,null,null,null,null,null,null,null,null,null,null,null,null,null,null,null,null,null,null,null,null,null,null,null,null,{"$f":"TRANSPOSE(_xlfn.UNIQUE(Estructura[RAMO SFC],FALSE,FALSE))","v":"CUMPLIMIENTO"},"RESPONSABILIDAD CIVIL",null,null,null,{"$f":"TRANSPOSE(_xlfn.UNIQUE(_xlfn._xlws.FILTER(Estructura[COBERTURA],(Estructura[RAMO SFC]=Tabla_Pólizas[[#This Row],[Ramo SFC]])),FALSE,FALSE))","v":{"$error":"#VALUE!"}}]
[null,null,null,null,null,null,null,null,null,null,null,null,null,null,null,null,null,null,null,null,null,null,null,null,null,null,null,null,null,null,null,null,null,null,null,null,null,null,null,null,null,null,null,null,null,null,null,null,null,null,null,null,null,null,null,null,null,null,null,{"$f":"TRANSPOSE(_xlfn.UNIQUE(Estructura[RAMO SFC],FALSE,FALSE))","v":"CUMPLIMIENTO"},"RESPONSABILIDAD CIVIL",null,null,null,{"$f":"TRANSPOSE(_xlfn.UNIQUE(_xlfn._xlws.FILTER(Estructura[COBERTURA],(Estructura[RAMO SFC]=Tabla_Pólizas[[#This Row],[Ramo SFC]])),FALSE,FALSE))","v":{"$error":"#VALUE!"}}]
[null,null,null,null,null,null,null,null,null,null,null,null,null,null,null,null,null,null,null,null,null,null,null,null,null,null,null,null,null,null,null,null,null,null,null,null,null,null,null,null,null,null,null,null,null,null,null,null,null,null,null,null,null,null,null,null,null,null,null,{"$f":"TRANSPOSE(_xlfn.UNIQUE(Estructura[RAMO SFC],FALSE,FALSE))","v":"CUMPLIMIENTO"},"RESPONSABILIDAD CIVIL",null,null,null,{"$f":"TRANSPOSE(_xlfn.UNIQUE(_xlfn._xlws.FILTER(Estructura[COBERTURA],(Estructura[RAMO SFC]=Tabla_Pólizas[[#This Row],[Ramo SFC]])),FALSE,FALSE))","v":{"$error":"#VALUE!"}}]
[null,null,null,null,null,null,null,null,null,null,null,null,null,null,null,null,null,null,null,null,null,null,null,null,null,null,null,null,null,null,null,null,null,null,null,null,null,null,null,null,null,null,null,null,null,null,null,null,null,null,null,null,null,null,null,null,null,null,null,{"$f":"TRANSPOSE(_xlfn.UNIQUE(Estructura[RAMO SFC],FALSE,FALSE))","v":"CUMPLIMIENTO"},"RESPONSABILIDAD CIVIL",null,null,null,{"$f":"TRANSPOSE(_xlfn.UNIQUE(_xlfn._xlws.FILTER(Estructura[COBERTURA],(Estructura[RAMO SFC]=Tabla_Pólizas[[#This Row],[Ramo SFC]])),FALSE,FALSE))","v":{"$error":"#VALUE!"}}]
[null,null,null,null,null,null,null,null,null,null,null,null,null,null,null,null,null,null,null,null,null,null,null,null,null,null,null,null,null,null,null,null,null,null,null,null,null,null,null,null,null,null,null,null,null,null,null,null,null,null,null,null,null,null,null,null,null,null,null,{"$f":"TRANSPOSE(_xlfn.UNIQUE(Estructura[RAMO SFC],FALSE,FALSE))","v":"CUMPLIMIENTO"},"RESPONSABILIDAD CIVIL",null,null,null,{"$f":"TRANSPOSE(_xlfn.UNIQUE(_xlfn._xlws.FILTER(Estructura[COBERTURA],(Estructura[RAMO SFC]=Tabla_Pólizas[[#This Row],[Ramo SFC]])),FALSE,FALSE))","v":{"$error":"#VALUE!"}}]
[null,null,null,null,null,null,null,null,null,null,null,null,null,null,null,null,null,null,null,null,null,null,null,null,null,null,null,null,null,null,null,null,null,null,null,null,null,null,null,null,null,null,null,null,null,null,null,null,null,null,null,null,null,null,null,null,null,null,null,{"$f":"TRANSPOSE(_xlfn.UNIQUE(Estructura[RAMO SFC],FALSE,FALSE))","v":"CUMPLIMIENTO"},"RESPONSABILIDAD CIVIL",null,null,null,{"$f":"TRANSPOSE(_xlfn.UNIQUE(_xlfn._xlws.FILTER(Estructura[COBERTURA],(Estructura[RAMO SFC]=Tabla_Pólizas[[#This Row],[Ramo SFC]])),FALSE,FALSE))","v":{"$error":"#VALUE!"}}]
[null,null,null,null,null,null,null,null,null,null,null,null,null,null,null,null,null,null,null,null,null,null,null,null,null,null,null,null,null,null,null,null,null,null,null,null,null,null,null,null,null,null,null,null,null,null,null,null,null,null,null,null,null,null,null,null,null,null,null,{"$f":"TRANSPOSE(_xlfn.UNIQUE(Estructura[RAMO SFC],FALSE,FALSE))","v":"CUMPLIMIENTO"},"RESPONSABILIDAD CIVIL",null,null,null,{"$f":"TRANSPOSE(_xlfn.UNIQUE(_xlfn._xlws.FILTER(Estructura[COBERTURA],(Estructura[RAMO SFC]=Tabla_Pólizas[[#This Row],[Ramo SFC]])),FALSE,FALSE))","v":{"$error":"#VALUE!"}}]
[null,null,null,null,null,null,null,null,null,null,null,null,null,null,null,null,null,null,null,null,null,null,null,null,null,null,null,null,null,null,null,null,null,null,null,null,null,null,null,null,null,null,null,null,null,null,null,null,null,null,null,null,null,null,null,null,null,null,null,{"$f":"TRANSPOSE(_xlfn.UNIQUE(Estructura[RAMO SFC],FALSE,FALSE))","v":"CUMPLIMIENTO"},"RESPONSABILIDAD CIVIL",null,null,null,{"$f":"TRANSPOSE(_xlfn.UNIQUE(_xlfn._xlws.FILTER(Estructura[COBERTURA],(Estructura[RAMO SFC]=Tabla_Pólizas[[#This Row],[Ramo SFC]])),FALSE,FALSE))","v":{"$error":"#VALUE!"}}]
[null,null,null,null,null,null,null,null,null,null,null,null,null,null,null,null,null,null,null,null,null,null,null,null,null,null,null,null,null,null,null,null,null,null,null,null,null,null,null,null,null,null,null,null,null,null,null,null,null,null,null,null,null,null,null,null,null,null,null,{"$f":"TRANSPOSE(_xlfn.UNIQUE(Estructura[RAMO SFC],FALSE,FALSE))","v":"CUMPLIMIENTO"},"RESPONSABILIDAD CIVIL",null,null,null,{"$f":"TRANSPOSE(_xlfn.UNIQUE(_xlfn._xlws.FILTER(Estructura[COBERTURA],(Estructura[RAMO SFC]=Tabla_Pólizas[[#This Row],[Ramo SFC]])),FALSE,FALSE))","v":{"$error":"#VALUE!"}}]
[null,null,null,null,null,null,null,null,null,null,null,null,null,null,null,null,null,null,null,null,null,null,null,null,null,null,null,null,null,null,null,null,null,null,null,null,null,null,null,null,null,null,null,null,null,null,null,null,null,null,null,null,null,null,null,null,null,null,null,{"$f":"TRANSPOSE(_xlfn.UNIQUE(Estructura[RAMO SFC],FALSE,FALSE))","v":"CUMPLIMIENTO"},"RESPONSABILIDAD CIVIL",null,null,null,{"$f":"TRANSPOSE(_xlfn.UNIQUE(_xlfn._xlws.FILTER(Estructura[COBERTURA],(Estructura[RAMO SFC]=Tabla_Pólizas[[#This Row],[Ramo SFC]])),FALSE,FALSE))","v":{"$error":"#VALUE!"}}]
[null,null,null,null,null,null,null,null,null,null,null,null,null,null,null,null,null,null,null,null,null,null,null,null,null,null,null,null,null,null,null,null,null,null,null,null,null,null,null,null,null,null,null,null,null,null,null,null,null,null,null,null,null,null,null,null,null,null,null,{"$f":"TRANSPOSE(_xlfn.UNIQUE(Estructura[RAMO SFC],FALSE,FALSE))","v":"CUMPLIMIENTO"},"RESPONSABILIDAD CIVIL",null,null,null,{"$f":"TRANSPOSE(_xlfn.UNIQUE(_xlfn._xlws.FILTER(Estructura[COBERTURA],(Estructura[RAMO SFC]=Tabla_Pólizas[[#This Row],[Ramo SFC]])),FALSE,FALSE))","v":{"$error":"#VALUE!"}}]
[null,null,null,null,null,null,null,null,null,null,null,null,null,null,null,null,null,null,null,null,null,null,null,null,null,null,null,null,null,null,null,null,null,null,null,null,null,null,null,null,null,null,null,null,null,null,null,null,null,null,null,null,null,null,null,null,null,null,null,{"$f":"TRANSPOSE(_xlfn.UNIQUE(Estructura[RAMO SFC],FALSE,FALSE))","v":"CUMPLIMIENTO"},"RESPONSABILIDAD CIVIL",null,null,null,{"$f":"TRANSPOSE(_xlfn.UNIQUE(_xlfn._xlws.FILTER(Estructura[COBERTURA],(Estructura[RAMO SFC]=Tabla_Pólizas[[#This Row],[Ramo SFC]])),FALSE,FALSE))","v":{"$error":"#VALUE!"}}]
[null,null,null,null,null,null,null,null,null,null,null,null,null,null,null,null,null,null,null,null,null,null,null,null,null,null,null,null,null,null,null,null,null,null,null,null,null,null,null,null,null,null,null,null,null,null,null,null,null,null,null,null,null,null,null,null,null,null,null,{"$f":"TRANSPOSE(_xlfn.UNIQUE(Estructura[RAMO SFC],FALSE,FALSE))","v":"CUMPLIMIENTO"},"RESPONSABILIDAD CIVIL",null,null,null,{"$f":"TRANSPOSE(_xlfn.UNIQUE(_xlfn._xlws.FILTER(Estructura[COBERTURA],(Estructura[RAMO SFC]=Tabla_Pólizas[[#This Row],[Ramo SFC]])),FALSE,FALSE))","v":{"$error":"#VALUE!"}}]
[null,null,null,null,null,null,null,null,null,null,null,null,null,null,null,null,null,null,null,null,null,null,null,null,null,null,null,null,null,null,null,null,null,null,null,null,null,null,null,null,null,null,null,null,null,null,null,null,null,null,null,null,null,null,null,null,null,null,null,{"$f":"TRANSPOSE(_xlfn.UNIQUE(Estructura[RAMO SFC],FALSE,FALSE))","v":"CUMPLIMIENTO"},"RESPONSABILIDAD CIVIL",null,null,null,{"$f":"TRANSPOSE(_xlfn.UNIQUE(_xlfn._xlws.FILTER(Estructura[COBERTURA],(Estructura[RAMO SFC]=Tabla_Pólizas[[#This Row],[Ramo SFC]])),FALSE,FALSE))","v":{"$error":"#VALUE!"}}]
[null,null,null,null,null,null,null,null,null,null,null,null,null,null,null,null,null,null,null,null,null,null,null,null,null,null,null,null,null,null,null,null,null,null,null,null,null,null,null,null,null,null,null,null,null,null,null,null,null,null,null,null,null,null,null,null,null,null,null,{"$f":"TRANSPOSE(_xlfn.UNIQUE(Estructura[RAMO SFC],FALSE,FALSE))","v":"CUMPLIMIENTO"},"RESPONSABILIDAD CIVIL",null,null,null,{"$f":"TRANSPOSE(_xlfn.UNIQUE(_xlfn._xlws.FILTER(Estructura[COBERTURA],(Estructura[RAMO SFC]=Tabla_Pólizas[[#This Row],[Ramo SFC]])),FALSE,FALSE))","v":{"$error":"#VALUE!"}}]
[null,null,null,null,null,null,null,null,null,null,null,null,null,null,null,null,null,null,null,null,null,null,null,null,null,null,null,null,null,null,null,null,null,null,null,null,null,null,null,null,null,null,null,null,null,null,null,null,null,null,null,null,null,null,null,null,null,null,null,{"$f":"TRANSPOSE(_xlfn.UNIQUE(Estructura[RAMO SFC],FALSE,FALSE))","v":"CUMPLIMIENTO"},"RESPONSABILIDAD CIVIL",null,null,null,{"$f":"TRANSPOSE(_xlfn.UNIQUE(_xlfn._xlws.FILTER(Estructura[COBERTURA],(Estructura[RAMO SFC]=Tabla_Pólizas[[#This Row],[Ramo SFC]])),FALSE,FALSE))","v":{"$error":"#VALUE!"}}]
[null,null,null,null,null,null,null,null,null,null,null,null,null,null,null,null,null,null,null,null,null,null,null,null,null,null,null,null,null,null,null,null,null,null,null,null,null,null,null,null,null,null,null,null,null,null,null,null,null,null,null,null,null,null,null,null,null,null,null,{"$f":"TRANSPOSE(_xlfn.UNIQUE(Estructura[RAMO SFC],FALSE,FALSE))","v":"CUMPLIMIENTO"},"RESPONSABILIDAD CIVIL",null,null,null,{"$f":"TRANSPOSE(_xlfn.UNIQUE(_xlfn._xlws.FILTER(Estructura[COBERTURA],(Estructura[RAMO SFC]=Tabla_Pólizas[[#This Row],[Ramo SFC]])),FALSE,FALSE))","v":{"$error":"#VALUE!"}}]
[null,null,null,null,null,null,null,null,null,null,null,null,null,null,null,null,null,null,null,null,null,null,null,null,null,null,null,null,null,null,null,null,null,null,null,null,null,null,null,null,null,null,null,null,null,null,null,null,null,null,null,null,null,null,null,null,null,null,null,{"$f":"TRANSPOSE(_xlfn.UNIQUE(Estructura[RAMO SFC],FALSE,FALSE))","v":"CUMPLIMIENTO"},"RESPONSABILIDAD CIVIL",null,null,null,{"$f":"TRANSPOSE(_xlfn.UNIQUE(_xlfn._xlws.FILTER(Estructura[COBERTURA],(Estructura[RAMO SFC]=Tabla_Pólizas[[#This Row],[Ramo SFC]])),FALSE,FALSE))","v":{"$error":"#VALUE!"}}]
[null,null,null,null,null,null,null,null,null,null,null,null,null,null,null,null,null,null,null,null,null,null,null,null,null,null,null,null,null,null,null,null,null,null,null,null,null,null,null,null,null,null,null,null,null,null,null,null,null,null,null,null,null,null,null,null,null,null,null,{"$f":"TRANSPOSE(_xlfn.UNIQUE(Estructura[RAMO SFC],FALSE,FALSE))","v":"CUMPLIMIENTO"},"RESPONSABILIDAD CIVIL",null,null,null,{"$f":"TRANSPOSE(_xlfn.UNIQUE(_xlfn._xlws.FILTER(Estructura[COBERTURA],(Estructura[RAMO SFC]=Tabla_Pólizas[[#This Row],[Ramo SFC]])),FALSE,FALSE))","v":{"$error":"#VALUE!"}}]
[null,null,null,null,null,null,null,null,null,null,null,null,null,null,null,null,null,null,null,null,null,null,null,null,null,null,null,null,null,null,null,null,null,null,null,null,null,null,null,null,null,null,null,null,null,null,null,null,null,null,null,null,null,null,null,null,null,null,null,{"$f":"TRANSPOSE(_xlfn.UNIQUE(Estructura[RAMO SFC],FALSE,FALSE))","v":"CUMPLIMIENTO"},"RESPONSABILIDAD CIVIL",null,null,null,{"$f":"TRANSPOSE(_xlfn.UNIQUE(_xlfn._xlws.FILTER(Estructura[COBERTURA],(Estructura[RAMO SFC]=Tabla_Pólizas[[#This Row],[Ramo SFC]])),FALSE,FALSE))","v":{"$error":"#VALUE!"}}]
[null,null,null,null,null,null,null,null,null,null,null,null,null,null,null,null,null,null,null,null,null,null,null,null,null,null,null,null,null,null,null,null,null,null,null,null,null,null,null,null,null,null,null,null,null,null,null,null,null,null,null,null,null,null,null,null,null,null,null,{"$f":"TRANSPOSE(_xlfn.UNIQUE(Estructura[RAMO SFC],FALSE,FALSE))","v":"CUMPLIMIENTO"},"RESPONSABILIDAD CIVIL",null,null,null,{"$f":"TRANSPOSE(_xlfn.UNIQUE(_xlfn._xlws.FILTER(Estructura[COBERTURA],(Estructura[RAMO SFC]=Tabla_Pólizas[[#This Row],[Ramo SFC]])),FALSE,FALSE))","v":{"$error":"#VALUE!"}}]
[null,null,null,null,null,null,null,null,null,null,null,null,null,null,null,null,null,null,null,null,null,null,null,null,null,null,null,null,null,null,null,null,null,null,null,null,null,null,null,null,null,null,null,null,null,null,null,null,null,null,null,null,null,null,null,null,null,null,null,{"$f":"TRANSPOSE(_xlfn.UNIQUE(Estructura[RAMO SFC],FALSE,FALSE))","v":"CUMPLIMIENTO"},"RESPONSABILIDAD CIVIL",null,null,null,{"$f":"TRANSPOSE(_xlfn.UNIQUE(_xlfn._xlws.FILTER(Estructura[COBERTURA],(Estructura[RAMO SFC]=Tabla_Pólizas[[#This Row],[Ramo SFC]])),FALSE,FALSE))","v":{"$error":"#VALUE!"}}]
[null,null,null,null,null,null,null,null,null,null,null,null,null,null,null,null,null,null,null,null,null,null,null,null,null,null,null,null,null,null,null,null,null,null,null,null,null,null,null,null,null,null,null,null,null,null,null,null,null,null,null,null,null,null,null,null,null,null,null,{"$f":"TRANSPOSE(_xlfn.UNIQUE(Estructura[RAMO SFC],FALSE,FALSE))","v":"CUMPLIMIENTO"},"RESPONSABILIDAD CIVIL",null,null,null,{"$f":"TRANSPOSE(_xlfn.UNIQUE(_xlfn._xlws.FILTER(Estructura[COBERTURA],(Estructura[RAMO SFC]=Tabla_Pólizas[[#This Row],[Ramo SFC]])),FALSE,FALSE))","v":{"$error":"#VALUE!"}}]
[null,null,null,null,null,null,null,null,null,null,null,null,null,null,null,null,null,null,null,null,null,null,null,null,null,null,null,null,null,null,null,null,null,null,null,null,null,null,null,null,null,null,null,null,null,null,null,null,null,null,null,null,null,null,null,null,null,null,null,{"$f":"TRANSPOSE(_xlfn.UNIQUE(Estructura[RAMO SFC],FALSE,FALSE))","v":"CUMPLIMIENTO"},"RESPONSABILIDAD CIVIL",null,null,null,{"$f":"TRANSPOSE(_xlfn.UNIQUE(_xlfn._xlws.FILTER(Estructura[COBERTURA],(Estructura[RAMO SFC]=Tabla_Pólizas[[#This Row],[Ramo SFC]])),FALSE,FALSE))","v":{"$error":"#VALUE!"}}]
[null,null,null,null,null,null,null,null,null,null,null,null,null,null,null,null,null,null,null,null,null,null,null,null,null,null,null,null,null,null,null,null,null,null,null,null,null,null,null,null,null,null,null,null,null,null,null,null,null,null,null,null,null,null,null,null,null,null,null,{"$f":"TRANSPOSE(_xlfn.UNIQUE(Estructura[RAMO SFC],FALSE,FALSE))","v":"CUMPLIMIENTO"},"RESPONSABILIDAD CIVIL",null,null,null,{"$f":"TRANSPOSE(_xlfn.UNIQUE(_xlfn._xlws.FILTER(Estructura[COBERTURA],(Estructura[RAMO SFC]=Tabla_Pólizas[[#This Row],[Ramo SFC]])),FALSE,FALSE))","v":{"$error":"#VALUE!"}}]
[null,null,null,null,null,null,null,null,null,null,null,null,null,null,null,null,null,null,null,null,null,null,null,null,null,null,null,null,null,null,null,null,null,null,null,null,null,null,null,null,null,null,null,null,null,null,null,null,null,null,null,null,null,null,null,null,null,null,null,{"$f":"TRANSPOSE(_xlfn.UNIQUE(Estructura[RAMO SFC],FALSE,FALSE))","v":"CUMPLIMIENTO"},"RESPONSABILIDAD CIVIL",null,null,null,{"$f":"TRANSPOSE(_xlfn.UNIQUE(_xlfn._xlws.FILTER(Estructura[COBERTURA],(Estructura[RAMO SFC]=Tabla_Pólizas[[#This Row],[Ramo SFC]])),FALSE,FALSE))","v":{"$error":"#VALUE!"}}]
[null,null,null,null,null,null,null,null,null,null,null,null,null,null,null,null,null,null,null,null,null,null,null,null,null,null,null,null,null,null,null,null,null,null,null,null,null,null,null,null,null,null,null,null,null,null,null,null,null,null,null,null,null,null,null,null,null,null,null,{"$f":"TRANSPOSE(_xlfn.UNIQUE(Estructura[RAMO SFC],FALSE,FALSE))","v":"CUMPLIMIENTO"},"RESPONSABILIDAD CIVIL",null,null,null,{"$f":"TRANSPOSE(_xlfn.UNIQUE(_xlfn._xlws.FILTER(Estructura[COBERTURA],(Estructura[RAMO SFC]=Tabla_Pólizas[[#This Row],[Ramo SFC]])),FALSE,FALSE))","v":{"$error":"#VALUE!"}}]
[null,null,null,null,null,null,null,null,null,null,null,null,null,null,null,null,null,null,null,null,null,null,null,null,null,null,null,null,null,null,null,null,null,null,null,null,null,null,null,null,null,null,null,null,null,null,null,null,null,null,null,null,null,null,null,null,null,null,null,{"$f":"TRANSPOSE(_xlfn.UNIQUE(Estructura[RAMO SFC],FALSE,FALSE))","v":"CUMPLIMIENTO"},"RESPONSABILIDAD CIVIL",null,null,null,{"$f":"TRANSPOSE(_xlfn.UNIQUE(_xlfn._xlws.FILTER(Estructura[COBERTURA],(Estructura[RAMO SFC]=Tabla_Pólizas[[#This Row],[Ramo SFC]])),FALSE,FALSE))","v":{"$error":"#VALUE!"}}]
[null,null,null,null,null,null,null,null,null,null,null,null,null,null,null,null,null,null,null,null,null,null,null,null,null,null,null,null,null,null,null,null,null,null,null,null,null,null,null,null,null,null,null,null,null,null,null,null,null,null,null,null,null,null,null,null,null,null,null,{"$f":"TRANSPOSE(_xlfn.UNIQUE(Estructura[RAMO SFC],FALSE,FALSE))","v":"CUMPLIMIENTO"},"RESPONSABILIDAD CIVIL",null,null,null,{"$f":"TRANSPOSE(_xlfn.UNIQUE(_xlfn._xlws.FILTER(Estructura[COBERTURA],(Estructura[RAMO SFC]=Tabla_Pólizas[[#This Row],[Ramo SFC]])),FALSE,FALSE))","v":{"$error":"#VALUE!"}}]
[null,null,null,null,null,null,null,null,null,null,null,null,null,null,null,null,null,null,null,null,null,null,null,null,null,null,null,null,null,null,null,null,null,null,null,null,null,null,null,null,null,null,null,null,null,null,null,null,null,null,null,null,null,null,null,null,null,null,null,{"$f":"TRANSPOSE(_xlfn.UNIQUE(Estructura[RAMO SFC],FALSE,FALSE))","v":"CUMPLIMIENTO"},"RESPONSABILIDAD CIVIL",null,null,null,{"$f":"TRANSPOSE(_xlfn.UNIQUE(_xlfn._xlws.FILTER(Estructura[COBERTURA],(Estructura[RAMO SFC]=Tabla_Pólizas[[#This Row],[Ramo SFC]])),FALSE,FALSE))","v":{"$error":"#VALUE!"}}]
[null,null,null,null,null,null,null,null,null,null,null,null,null,null,null,null,null,null,null,null,null,null,null,null,null,null,null,null,null,null,null,null,null,null,null,null,null,null,null,null,null,null,null,null,null,null,null,null,null,null,null,null,null,null,null,null,null,null,null,{"$f":"TRANSPOSE(_xlfn.UNIQUE(Estructura[RAMO SFC],FALSE,FALSE))","v":"CUMPLIMIENTO"},"RESPONSABILIDAD CIVIL",null,null,null,{"$f":"TRANSPOSE(_xlfn.UNIQUE(_xlfn._xlws.FILTER(Estructura[COBERTURA],(Estructura[RAMO SFC]=Tabla_Pólizas[[#This Row],[Ramo SFC]])),FALSE,FALSE))","v":{"$error":"#VALUE!"}}]
[null,null,null,null,null,null,null,null,null,null,null,null,null,null,null,null,null,null,null,null,null,null,null,null,null,null,null,null,null,null,null,null,null,null,null,null,null,null,null,null,null,null,null,null,null,null,null,null,null,null,null,null,null,null,null,null,null,null,null,{"$f":"TRANSPOSE(_xlfn.UNIQUE(Estructura[RAMO SFC],FALSE,FALSE))","v":"CUMPLIMIENTO"},"RESPONSABILIDAD CIVIL",null,null,null,{"$f":"TRANSPOSE(_xlfn.UNIQUE(_xlfn._xlws.FILTER(Estructura[COBERTURA],(Estructura[RAMO SFC]=Tabla_Pólizas[[#This Row],[Ramo SFC]])),FALSE,FALSE))","v":{"$error":"#VALUE!"}}]
[null,null,null,null,null,null,null,null,null,null,null,null,null,null,null,null,null,null,null,null,null,null,null,null,null,null,null,null,null,null,null,null,null,null,null,null,null,null,null,null,null,null,null,null,null,null,null,null,null,null,null,null,null,null,null,null,null,null,null,{"$f":"TRANSPOSE(_xlfn.UNIQUE(Estructura[RAMO SFC],FALSE,FALSE))","v":"CUMPLIMIENTO"},"RESPONSABILIDAD CIVIL",null,null,null,{"$f":"TRANSPOSE(_xlfn.UNIQUE(_xlfn._xlws.FILTER(Estructura[COBERTURA],(Estructura[RAMO SFC]=Tabla_Pólizas[[#This Row],[Ramo SFC]])),FALSE,FALSE))","v":{"$error":"#VALUE!"}}]
[null,null,null,null,null,null,null,null,null,null,null,null,null,null,null,null,null,null,null,null,null,null,null,null,null,null,null,null,null,null,null,null,null,null,null,null,null,null,null,null,null,null,null,null,null,null,null,null,null,null,null,null,null,null,null,null,null,null,null,{"$f":"TRANSPOSE(_xlfn.UNIQUE(Estructura[RAMO SFC],FALSE,FALSE))","v":"CUMPLIMIENTO"},"RESPONSABILIDAD CIVIL",null,null,null,{"$f":"TRANSPOSE(_xlfn.UNIQUE(_xlfn._xlws.FILTER(Estructura[COBERTURA],(Estructura[RAMO SFC]=Tabla_Pólizas[[#This Row],[Ramo SFC]])),FALSE,FALSE))","v":{"$error":"#VALUE!"}}]
[null,null,null,null,null,null,null,null,null,null,null,null,null,null,null,null,null,null,null,null,null,null,null,null,null,null,null,null,null,null,null,null,null,null,null,null,null,null,null,null,null,null,null,null,null,null,null,null,null,null,null,null,null,null,null,null,null,null,null,{"$f":"TRANSPOSE(_xlfn.UNIQUE(Estructura[RAMO SFC],FALSE,FALSE))","v":"CUMPLIMIENTO"},"RESPONSABILIDAD CIVIL",null,null,null,{"$f":"TRANSPOSE(_xlfn.UNIQUE(_xlfn._xlws.FILTER(Estructura[COBERTURA],(Estructura[RAMO SFC]=Tabla_Pólizas[[#This Row],[Ramo SFC]])),FALSE,FALSE))","v":{"$error":"#VALUE!"}}]
[null,null,null,null,null,null,null,null,null,null,null,null,null,null,null,null,null,null,null,null,null,null,null,null,null,null,null,null,null,null,null,null,null,null,null,null,null,null,null,null,null,null,null,null,null,null,null,null,null,null,null,null,null,null,null,null,null,null,null,{"$f":"TRANSPOSE(_xlfn.UNIQUE(Estructura[RAMO SFC],FALSE,FALSE))","v":"CUMPLIMIENTO"},"RESPONSABILIDAD CIVIL",null,null,null,{"$f":"TRANSPOSE(_xlfn.UNIQUE(_xlfn._xlws.FILTER(Estructura[COBERTURA],(Estructura[RAMO SFC]=Tabla_Pólizas[[#This Row],[Ramo SFC]])),FALSE,FALSE))","v":{"$error":"#VALUE!"}}]
[null,null,null,null,null,null,null,null,null,null,null,null,null,null,null,null,null,null,null,null,null,null,null,null,null,null,null,null,null,null,null,null,null,null,null,null,null,null,null,null,null,null,null,null,null,null,null,null,null,null,null,null,null,null,null,null,null,null,null,{"$f":"TRANSPOSE(_xlfn.UNIQUE(Estructura[RAMO SFC],FALSE,FALSE))","v":"CUMPLIMIENTO"},"RESPONSABILIDAD CIVIL",null,null,null,{"$f":"TRANSPOSE(_xlfn.UNIQUE(_xlfn._xlws.FILTER(Estructura[COBERTURA],(Estructura[RAMO SFC]=Tabla_Pólizas[[#This Row],[Ramo SFC]])),FALSE,FALSE))","v":{"$error":"#VALUE!"}}]
[null,null,null,null,null,null,null,null,null,null,null,null,null,null,null,null,null,null,null,null,null,null,null,null,null,null,null,null,null,null,null,null,null,null,null,null,null,null,null,null,null,null,null,null,null,null,null,null,null,null,null,null,null,null,null,null,null,null,null,{"$f":"TRANSPOSE(_xlfn.UNIQUE(Estructura[RAMO SFC],FALSE,FALSE))","v":"CUMPLIMIENTO"},"RESPONSABILIDAD CIVIL",null,null,null,{"$f":"TRANSPOSE(_xlfn.UNIQUE(_xlfn._xlws.FILTER(Estructura[COBERTURA],(Estructura[RAMO SFC]=Tabla_Pólizas[[#This Row],[Ramo SFC]])),FALSE,FALSE))","v":{"$error":"#VALUE!"}}]
[null,null,null,null,null,null,null,null,null,null,null,null,null,null,null,null,null,null,null,null,null,null,null,null,null,null,null,null,null,null,null,null,null,null,null,null,null,null,null,null,null,null,null,null,null,null,null,null,null,null,null,null,null,null,null,null,null,null,null,{"$f":"TRANSPOSE(_xlfn.UNIQUE(Estructura[RAMO SFC],FALSE,FALSE))","v":"CUMPLIMIENTO"},"RESPONSABILIDAD CIVIL",null,null,null,{"$f":"TRANSPOSE(_xlfn.UNIQUE(_xlfn._xlws.FILTER(Estructura[COBERTURA],(Estructura[RAMO SFC]=Tabla_Pólizas[[#This Row],[Ramo SFC]])),FALSE,FALSE))","v":{"$error":"#VALUE!"}}]
[null,null,null,null,null,null,null,null,null,null,null,null,null,null,null,null,null,null,null,null,null,null,null,null,null,null,null,null,null,null,null,null,null,null,null,null,null,null,null,null,null,null,null,null,null,null,null,null,null,null,null,null,null,null,null,null,null,null,null,{"$f":"TRANSPOSE(_xlfn.UNIQUE(Estructura[RAMO SFC],FALSE,FALSE))","v":"CUMPLIMIENTO"},"RESPONSABILIDAD CIVIL",null,null,null,{"$f":"TRANSPOSE(_xlfn.UNIQUE(_xlfn._xlws.FILTER(Estructura[COBERTURA],(Estructura[RAMO SFC]=Tabla_Pólizas[[#This Row],[Ramo SFC]])),FALSE,FALSE))","v":{"$error":"#VALUE!"}}]
[null,null,null,null,null,null,null,null,null,null,null,null,null,null,null,null,null,null,null,null,null,null,null,null,null,null,null,null,null,null,null,null,null,null,null,null,null,null,null,null,null,null,null,null,null,null,null,null,null,null,null,null,null,null,null,null,null,null,null,{"$f":"TRANSPOSE(_xlfn.UNIQUE(Estructura[RAMO SFC],FALSE,FALSE))","v":"CUMPLIMIENTO"},"RESPONSABILIDAD CIVIL",null,null,null,{"$f":"TRANSPOSE(_xlfn.UNIQUE(_xlfn._xlws.FILTER(Estructura[COBERTURA],(Estructura[RAMO SFC]=Tabla_Pólizas[[#This Row],[Ramo SFC]])),FALSE,FALSE))","v":{"$error":"#VALUE!"}}]
[null,null,null,null,null,null,null,null,null,null,null,null,null,null,null,null,null,null,null,null,null,null,null,null,null,null,null,null,null,null,null,null,null,null,null,null,null,null,null,null,null,null,null,null,null,null,null,null,null,null,null,null,null,null,null,null,null,null,null,{"$f":"TRANSPOSE(_xlfn.UNIQUE(Estructura[RAMO SFC],FALSE,FALSE))","v":"CUMPLIMIENTO"},"RESPONSABILIDAD CIVIL",null,null,null,{"$f":"TRANSPOSE(_xlfn.UNIQUE(_xlfn._xlws.FILTER(Estructura[COBERTURA],(Estructura[RAMO SFC]=Tabla_Pólizas[[#This Row],[Ramo SFC]])),FALSE,FALSE))","v":{"$error":"#VALUE!"}}]
[null,null,null,null,null,null,null,null,null,null,null,null,null,null,null,null,null,null,null,null,null,null,null,null,null,null,null,null,null,null,null,null,null,null,null,null,null,null,null,null,null,null,null,null,null,null,null,null,null,null,null,null,null,null,null,null,null,null,null,{"$f":"TRANSPOSE(_xlfn.UNIQUE(Estructura[RAMO SFC],FALSE,FALSE))","v":"CUMPLIMIENTO"},"RESPONSABILIDAD CIVIL",null,null,null,{"$f":"TRANSPOSE(_xlfn.UNIQUE(_xlfn._xlws.FILTER(Estructura[COBERTURA],(Estructura[RAMO SFC]=Tabla_Pólizas[[#This Row],[Ramo SFC]])),FALSE,FALSE))","v":{"$error":"#VALUE!"}}]
[null,null,null,null,null,null,null,null,null,null,null,null,null,null,null,null,null,null,null,null,null,null,null,null,null,null,null,null,null,null,null,null,null,null,null,null,null,null,null,null,null,null,null,null,null,null,null,null,null,null,null,null,null,null,null,null,null,null,null,{"$f":"TRANSPOSE(_xlfn.UNIQUE(Estructura[RAMO SFC],FALSE,FALSE))","v":"CUMPLIMIENTO"},"RESPONSABILIDAD CIVIL",null,null,null,{"$f":"TRANSPOSE(_xlfn.UNIQUE(_xlfn._xlws.FILTER(Estructura[COBERTURA],(Estructura[RAMO SFC]=Tabla_Pólizas[[#This Row],[Ramo SFC]])),FALSE,FALSE))","v":{"$error":"#VALUE!"}}]
[null,null,null,null,null,null,null,null,null,null,null,null,null,null,null,null,null,null,null,null,null,null,null,null,null,null,null,null,null,null,null,null,null,null,null,null,null,null,null,null,null,null,null,null,null,null,null,null,null,null,null,null,null,null,null,null,null,null,null,{"$f":"TRANSPOSE(_xlfn.UNIQUE(Estructura[RAMO SFC],FALSE,FALSE))","v":"CUMPLIMIENTO"},"RESPONSABILIDAD CIVIL",null,null,null,{"$f":"TRANSPOSE(_xlfn.UNIQUE(_xlfn._xlws.FILTER(Estructura[COBERTURA],(Estructura[RAMO SFC]=Tabla_Pólizas[[#This Row],[Ramo SFC]])),FALSE,FALSE))","v":{"$error":"#VALUE!"}}]
[null,null,null,null,null,null,null,null,null,null,null,null,null,null,null,null,null,null,null,null,null,null,null,null,null,null,null,null,null,null,null,null,null,null,null,null,null,null,null,null,null,null,null,null,null,null,null,null,null,null,null,null,null,null,null,null,null,null,null,{"$f":"TRANSPOSE(_xlfn.UNIQUE(Estructura[RAMO SFC],FALSE,FALSE))","v":"CUMPLIMIENTO"},"RESPONSABILIDAD CIVIL",null,null,null,{"$f":"TRANSPOSE(_xlfn.UNIQUE(_xlfn._xlws.FILTER(Estructura[COBERTURA],(Estructura[RAMO SFC]=Tabla_Pólizas[[#This Row],[Ramo SFC]])),FALSE,FALSE))","v":{"$error":"#VALUE!"}}]
[null,null,null,null,null,null,null,null,null,null,null,null,null,null,null,null,null,null,null,null,null,null,null,null,null,null,null,null,null,null,null,null,null,null,null,null,null,null,null,null,null,null,null,null,null,null,null,null,null,null,null,null,null,null,null,null,null,null,null,{"$f":"TRANSPOSE(_xlfn.UNIQUE(Estructura[RAMO SFC],FALSE,FALSE))","v":"CUMPLIMIENTO"},"RESPONSABILIDAD CIVIL",null,null,null,{"$f":"TRANSPOSE(_xlfn.UNIQUE(_xlfn._xlws.FILTER(Estructura[COBERTURA],(Estructura[RAMO SFC]=Tabla_Pólizas[[#This Row],[Ramo SFC]])),FALSE,FALSE))","v":{"$error":"#VALUE!"}}]
[null,null,null,null,null,null,null,null,null,null,null,null,null,null,null,null,null,null,null,null,null,null,null,null,null,null,null,null,null,null,null,null,null,null,null,null,null,null,null,null,null,null,null,null,null,null,null,null,null,null,null,null,null,null,null,null,null,null,null,{"$f":"TRANSPOSE(_xlfn.UNIQUE(Estructura[RAMO SFC],FALSE,FALSE))","v":"CUMPLIMIENTO"},"RESPONSABILIDAD CIVIL",null,null,null,{"$f":"TRANSPOSE(_xlfn.UNIQUE(_xlfn._xlws.FILTER(Estructura[COBERTURA],(Estructura[RAMO SFC]=Tabla_Pólizas[[#This Row],[Ramo SFC]])),FALSE,FALSE))","v":{"$error":"#VALUE!"}}]
[null,null,null,null,null,null,null,null,null,null,null,null,null,null,null,null,null,null,null,null,null,null,null,null,null,null,null,null,null,null,null,null,null,null,null,null,null,null,null,null,null,null,null,null,null,null,null,null,null,null,null,null,null,null,null,null,null,null,null,{"$f":"TRANSPOSE(_xlfn.UNIQUE(Estructura[RAMO SFC],FALSE,FALSE))","v":"CUMPLIMIENTO"},"RESPONSABILIDAD CIVIL",null,null,null,{"$f":"TRANSPOSE(_xlfn.UNIQUE(_xlfn._xlws.FILTER(Estructura[COBERTURA],(Estructura[RAMO SFC]=Tabla_Pólizas[[#This Row],[Ramo SFC]])),FALSE,FALSE))","v":{"$error":"#VALUE!"}}]
[null,null,null,null,null,null,null,null,null,null,null,null,null,null,null,null,null,null,null,null,null,null,null,null,null,null,null,null,null,null,null,null,null,null,null,null,null,null,null,null,null,null,null,null,null,null,null,null,null,null,null,null,null,null,null,null,null,null,null,{"$f":"TRANSPOSE(_xlfn.UNIQUE(Estructura[RAMO SFC],FALSE,FALSE))","v":"CUMPLIMIENTO"},"RESPONSABILIDAD CIVIL",null,null,null,{"$f":"TRANSPOSE(_xlfn.UNIQUE(_xlfn._xlws.FILTER(Estructura[COBERTURA],(Estructura[RAMO SFC]=Tabla_Pólizas[[#This Row],[Ramo SFC]])),FALSE,FALSE))","v":{"$error":"#VALUE!"}}]
[null,null,null,null,null,null,null,null,null,null,null,null,null,null,null,null,null,null,null,null,null,null,null,null,null,null,null,null,null,null,null,null,null,null,null,null,null,null,null,null,null,null,null,null,null,null,null,null,null,null,null,null,null,null,null,null,null,null,null,{"$f":"TRANSPOSE(_xlfn.UNIQUE(Estructura[RAMO SFC],FALSE,FALSE))","v":"CUMPLIMIENTO"},"RESPONSABILIDAD CIVIL",null,null,null,{"$f":"TRANSPOSE(_xlfn.UNIQUE(_xlfn._xlws.FILTER(Estructura[COBERTURA],(Estructura[RAMO SFC]=Tabla_Pólizas[[#This Row],[Ramo SFC]])),FALSE,FALSE))","v":{"$error":"#VALUE!"}}]
[null,null,null,null,null,null,null,null,null,null,null,null,null,null,null,null,null,null,null,null,null,null,null,null,null,null,null,null,null,null,null,null,null,null,null,null,null,null,null,null,null,null,null,null,null,null,null,null,null,null,null,null,null,null,null,null,null,null,null,{"$f":"TRANSPOSE(_xlfn.UNIQUE(Estructura[RAMO SFC],FALSE,FALSE))","v":"CUMPLIMIENTO"},"RESPONSABILIDAD CIVIL",null,null,null,{"$f":"TRANSPOSE(_xlfn.UNIQUE(_xlfn._xlws.FILTER(Estructura[COBERTURA],(Estructura[RAMO SFC]=Tabla_Pólizas[[#This Row],[Ramo SFC]])),FALSE,FALSE))","v":{"$error":"#VALUE!"}}]
[null,null,null,null,null,null,null,null,null,null,null,null,null,null,null,null,null,null,null,null,null,null,null,null,null,null,null,null,null,null,null,null,null,null,null,null,null,null,null,null,null,null,null,null,null,null,null,null,null,null,null,null,null,null,null,null,null,null,null,{"$f":"TRANSPOSE(_xlfn.UNIQUE(Estructura[RAMO SFC],FALSE,FALSE))","v":"CUMPLIMIENTO"},"RESPONSABILIDAD CIVIL",null,null,null,{"$f":"TRANSPOSE(_xlfn.UNIQUE(_xlfn._xlws.FILTER(Estructura[COBERTURA],(Estructura[RAMO SFC]=Tabla_Pólizas[[#This Row],[Ramo SFC]])),FALSE,FALSE))","v":{"$error":"#VALUE!"}}]
[null,null,null,null,null,null,null,null,null,null,null,null,null,null,null,null,null,null,null,null,null,null,null,null,null,null,null,null,null,null,null,null,null,null,null,null,null,null,null,null,null,null,null,null,null,null,null,null,null,null,null,null,null,null,null,null,null,null,null,{"$f":"TRANSPOSE(_xlfn.UNIQUE(Estructura[RAMO SFC],FALSE,FALSE))","v":"CUMPLIMIENTO"},"RESPONSABILIDAD CIVIL",null,null,null,{"$f":"TRANSPOSE(_xlfn.UNIQUE(_xlfn._xlws.FILTER(Estructura[COBERTURA],(Estructura[RAMO SFC]=Tabla_Pólizas[[#This Row],[Ramo SFC]])),FALSE,FALSE))","v":{"$error":"#VALUE!"}}]

{"sheet":"Coberturas y Proceso","index":2,"n_rows":38,"n_cols":89,"rows_kept":38,"cut":false,"hidden":true,"merged":[]}
[null,null,null,null,null,null,"RAMO SFC","COBERTURA","LLAVE","HONORARIOS","GASTOS DIRECTOS","GASTOS INDIRECTOS",null,null,null,null,null,null,null,null,null,null,null,null,null,null,null,null,null,null,null,null,null,null,null,null,null,null,null,null,null,null,null,null,null,null,null,null,null,null,null,null,null,null,null,null,null,null,null,null,null,null,null,"ETAPAS Y PUNTAJES DE LOS PROCESOS JUDICIALES - RESPONSABILIDAD FISCAL - JURISDICCIÓN ORDINARIA - CONTENCIOSO ADMINISTRATIVO - TRIBUNAL ARBITRAMENTO",null,null,null,null,null,null,null,null,null,null,null,null,null,"CRITERIOS ANÁLISIS CUALITATIVO DEL PROCESO JUDICIAL"]
["TIPO DE PROCESO JUDICIAL","ÚLTIMA_INSTANCIA_FAVORABLE","SÍ","Neutral","NO",null,"CUMPLIMIENTO","ANTICIPO",{"$f":"Estructura[[#This Row],[RAMO SFC]]&\"-\"&Estructura[[#This Row],[COBERTURA]]","v":"CUMPLIMIENTO-ANTICIPO"},null,null,null,null,"Responsabilidad_Fiscal","SÍ","SÍ con atenuantes","Neutral","NO",null,"Incidente_Reparación","SÍ","Neutral","NO",null,"Proceso_Ejecutivo","SÍ","Neutral","NO",null,"Proceso_Coactivo","SÍ","Neutral","NO",null,"Tribunal_Arbitramento","SÍ","Neutral","NO",null,"Acción_Protección_Consumidor","SÍ","Neutral","NO",null,"Proceso_Contractual","SÍ","Neutral","NO",null,"Proceso_Nulidad","SÍ","Neutral","NO",null,"Reparación_Directa","SÍ","Neutral","NO",null,"Jurisdicción_Ordinaria_Civil","SÍ","Neutral","NO",null,"Jurisdicción_Ordinaria_Laboral","SÍ","Neutral","NO",null,"Calificación","Columna",null,"Perfil_afianzado","Puntaje",null,"Incumplimiento","Puntaje Inicial",null,"Territorialidad","SÍ","Neutral","NO",null,"Puntaje","CLASIFICACIÓN","Cumplimiento","Total",null,"Etapas_condena"]
["Acción_Protección_Consumidor","Resolución",0,0,0,null,"CUMPLIMIENTO","ART. 513",{"$f":"Estructura[[#This Row],[RAMO SFC]]&\"-\"&Estructura[[#This Row],[COBERTURA]]","v":"CUMPLIMIENTO-ART. 513"},null,null,null,null,"Auto de apertura",1.5,1.5,{"$f":"Tabla_Resp_Fiscal[[#This Row],[NO]]*0.6","v":1.2},2,null,"Presentación demanda - contestación",1.5,{"$f":"Tabla_Jurisd_Ord_Laboral[[#This Row],[NO]]*0.6","v":1.2},2,null,"Presentación demanda - contestación",1.5,{"$f":"Tabla_Proces_Coact[[#This Row],[NO]]*0.6","v":1.2},2,null,"Presentación demanda - contestación",1.5,{"$f":"Tabla_Proces_Coact[[#This Row],[NO]]*0.6","v":1.2},2,null,"Contestación demanda -",1.5,{"$f":"Tabla_Proces_Coact[[#This Row],[NO]]*0.6","v":1.2},2,null,"Contestación demanda -",1.5,{"$f":"Tabla_Proces_Coact[[#This Row],[NO]]*0.6","v":1.2},2,null,"Presentación demanda - contestación",1.5,{"$f":"Tabla_Proces_Coact[[#This Row],[NO]]*0.6","v":1.2},2,null,"Presentación demanda - contestación",1.5,{"$f":"Tabla_Proces_Coact[[#This Row],[NO]]*0.6","v":1.2},2,null,"Presentación demanda - contestación",1.5,{"$f":"Tabla_Jurisd_Ord_Laboral[[#This Row],[NO]]*0.6","v":1.2},2,null,"Presentación demanda - contestación",1.5,{"$f":"Tabla_Jurisd_Ord_Laboral[[#This Row],[NO]]*0.6","v":1.2},2,null,"Presentación demanda - contestación",1.5,{"$f":"Tabla_Jurisd_Ord_Laboral[[#This Row],[NO]]*0.6","v":1.2},2,null,"SÍ",2,null,"Muy solvente",1.5,null,"SÍ",0.5,null,"NO APLICA",0,{"$f":"Tabla_territorialidad[[#This Row],[NO]]/2","v":0},0,null,0,"Probable",1,1,null,"Fallo fiscal I - desfavorable"]
["Incidente_Reparación","Sentencia segunda instancia",0.25,0.5,1,null,"CUMPLIMIENTO","ART. 599",{"$f":"Estructura[[#This Row],[RAMO SFC]]&\"-\"&Estructura[[#This Row],[COBERTURA]]","v":"CUMPLIMIENTO-ART. 599"},null,null,null,null,"Auto de imputación - desfavorable",0.5,0.5,0,-1,null,"Sentencia primera instancia - favorable",3,{"$f":"Tabla_Jurisd_Ord_Laboral[[#This Row],[NO]]*0.6","v":1.7999999999999998},3,null,"Sentencia primera instancia - favorable",3,{"$f":"Tabla_Proces_Coact[[#This Row],[NO]]*0.6","v":2.4},4,null,"Sentencia primera instancia - favorable",3,{"$f":"Tabla_Proces_Coact[[#This Row],[NO]]*0.6","v":2.4},4,null,"Laudo arbitral - favorable",3,{"$f":"Tabla_Proces_Coact[[#This Row],[NO]]*0.6","v":2.4},5,null,"Resolución - favorable",3,{"$f":"Tabla_Proces_Coact[[#This Row],[NO]]*0.6","v":2.4},4,null,"Sentencia primera instancia - favorable",3,{"$f":"Tabla_Proces_Coact[[#This Row],[NO]]*0.6","v":2.4},4,null,"Sentencia primera instancia - favorable",3,{"$f":"Tabla_Proces_Coact[[#This Row],[NO]]*0.6","v":2.4},4,null,"Sentencia primera instancia - favorable",3,{"$f":"Tabla_Jurisd_Ord_Laboral[[#This Row],[NO]]*0.6","v":1.7999999999999998},3,null,"Sentencia primera instancia - favorable",3,{"$f":"Tabla_Jurisd_Ord_Laboral[[#This Row],[NO]]*0.6","v":1.7999999999999998},3,null,"Sentencia primera instancia - favorable",3,{"$f":"Tabla_Jurisd_Ord_Laboral[[#This Row],[NO]]*0.6","v":1.7999999999999998},3,null,"Neutral",3,null,"Solvente",0.75,null,"Neutral",3,null,"AMAZONAS",0,{"$f":"Tabla_territorialidad[[#This Row],[NO]]/2","v":-0.5},-1,null,1,"Probable",0.82095421763653631,0.75715413087607097,null,"Fallo fiscal II - desfavorable"]
["Jurisdicción_Ordinaria_Civil","Sentencia segunda instancia",0,0,0,null,"CUMPLIMIENTO","CALIDAD",{"$f":"Estructura[[#This Row],[RAMO SFC]]&\"-\"&Estructura[[#This Row],[COBERTURA]]","v":"CUMPLIMIENTO-CALIDAD"},null,null,null,null,"Fallo fiscal I - favorable",2.5,2.5,{"$f":"Tabla_Resp_Fiscal[[#This Row],[NO]]*0.6","v":2.4},4,null,"Sentencia primera instancia - desfavorable",0,{"$f":"Tabla_Jurisd_Ord_Laboral[[#This Row],[NO]]*0.6","v":-1.7999999999999998},-3,null,"Sentencia primera instancia - desfavorable",0,{"$f":"Tabla_Proces_Coact[[#This Row],[NO]]*0.6","v":-1.2},-2,null,"Sentencia primera instancia - desfavorable",0,{"$f":"Tabla_Proces_Coact[[#This Row],[NO]]*0.6","v":-1.2},-2,null,"Laudo arbitral - desfavorable",0,{"$f":"Tabla_Proces_Coact[[#This Row],[NO]]*0.6","v":-1.2},-5,null,"Resolución - desfavorable",0,{"$f":"Tabla_Proces_Coact[[#This Row],[NO]]*0.6","v":-1.2},-2,null,"Sentencia primera instancia - desfavorable",0,{"$f":"Tabla_Proces_Coact[[#This Row],[NO]]*0.6","v":-1.2},-2,null,"Sentencia primera instancia - desfavorable",0,{"$f":"Tabla_Proces_Coact[[#This Row],[NO]]*0.6","v":-1.2},-2,null,"Sentencia primera instancia - desfavorable",0,{"$f":"Tabla_Jurisd_Ord_Laboral[[#This Row],[NO]]*0.6","v":-1.7999999999999998},-3,null,"Sentencia primera instancia - desfavorable",0,{"$f":"Tabla_Jurisd_Ord_Laboral[[#This Row],[NO]]*0.6","v":-1.7999999999999998},-3,null,"Sentencia primera instancia - desfavorable",0,-1,-3,null,"NO",4,null,"Normal",0,null,"NO",5,null,"ANTIOQUIA",0,{"$f":"Tabla_territorialidad[[#This Row],[NO]]/2","v":0},0,null,2,"Probable",0.64190843527307251,0.54793467859099132,null,"Sentencia primera instancia - desfavorable"]
["Jurisdicción_Ordinaria_Laboral","Sentencia segunda instancia",0,0,0,null,"CUMPLIMIENTO","CALIDAD DE SERVICIO",{"$f":"Estructura[[#This Row],[RAMO SFC]]&\"-\"&Estructura[[#This Row],[COBERTURA]]","v":"CUMPLIMIENTO-CALIDAD DE SERVICIO"},null,null,null,null,"Fallo fiscal I - desfavorable",0,0,-1.5,-2,null,"Sentencia segunda instancia - favorable",4,{"$f":"Tabla_Jurisd_Ord_Laboral[[#This Row],[NO]]*0.6","v":2.4},4,null,"Sentencia segunda instancia - favorable",4,{"$f":"Tabla_Proces_Coact[[#This Row],[NO]]*0.6","v":3},5,null,"Sentencia segunda instancia - favorable",4,{"$f":"Tabla_Proces_Coact[[#This Row],[NO]]*0.6","v":3},5,null,null,null,null,null,null,"Recurso apelación - favorable",4,{"$f":"Tabla_Proces_Coact[[#This Row],[NO]]*0.6","v":3},5,null,"Sentencia segunda instancia - favorable",4,{"$f":"Tabla_Proces_Coact[[#This Row],[NO]]*0.6","v":3},5,null,"Sentencia segunda instancia - favorable",4,{"$f":"Tabla_Proces_Coact[[#This Row],[NO]]*0.6","v":3},5,null,"Sentencia segunda instancia - favorable",4,{"$f":"Tabla_Jurisd_Ord_Laboral[[#This Row],[NO]]*0.6","v":2.4},5,null,"Sentencia segunda instancia - favorable",4,{"$f":"Tabla_Jurisd_Ord_Laboral[[#This Row],[NO]]*0.6","v":2.4},4,null,"Sentencia segunda instancia - favorable",4,{"$f":"Tabla_Jurisd_Ord_Laboral[[#This Row],[NO]]*0.6","v":2.4},4,null,null,null,null,"Ausente o insolvente",-0.25,null,null,null,null,"ARAUCA",0,{"$f":"Tabla_territorialidad[[#This Row],[NO]]/2","v":0.5},1,null,3,"Eventual",0.29515184479707379,0.34220786990275265,null,"Sentencia segunda instancia - desfavorable"]
["Proceso_Coactivo","Fallo coactivo",0,0,0,null,"CUMPLIMIENTO","CALIDAD DE SUMINISTRO",{"$f":"Estructura[[#This Row],[RAMO SFC]]&\"-\"&Estructura[[#This Row],[COBERTURA]]","v":"CUMPLIMIENTO-CALIDAD DE SUMINISTRO"},null,null,null,null,"Fallo fiscal II - favorable",4,4,{"$f":"Tabla_Resp_Fiscal[[#This Row],[NO]]*0.6","v":2.4},4,null,"Sentencia segunda instancia - desfavorable",0,{"$f":"Tabla_Jurisd_Ord_Laboral[[#This Row],[NO]]*0.6","v":-2.4},-4,null,"Sentencia segunda instancia - desfavorable",0,{"$f":"Tabla_Proces_Coact[[#This Row],[NO]]*0.6","v":-3},-5,null,"Sentencia segunda instancia - desfavorable",0,{"$f":"Tabla_Proces_Coact[[#This Row],[NO]]*0.6","v":-3},-5,null,null,null,null,null,null,"Recurso apelación - desfavorable",0,{"$f":"Tabla_Proces_Coact[[#This Row],[NO]]*0.6","v":-3},-5,null,"Sentencia segunda instancia - desfavorable",0,{"$f":"Tabla_Proces_Coact[[#This Row],[NO]]*0.6","v":-3},-5,null,"Sentencia segunda instancia - desfavorable",0,{"$f":"Tabla_Proces_Coact[[#This Row],[NO]]*0.6","v":-3},-5,null,"Sentencia segunda instancia - desfavorable",0,{"$f":"Tabla_Jurisd_Ord_Laboral[[#This Row],[NO]]*0.6","v":-2.4},-5,null,"Sentencia segunda instancia - desfavorable",0,{"$f":"Tabla_Jurisd_Ord_Laboral[[#This Row],[NO]]*0.6","v":-2.4},-4,null,"Sentencia segunda instancia - desfavorable",0,-2,-4,null,null,null,null,null,null,null,null,null,null,"ATLANTICO",0,{"$f":"Tabla_territorialidad[[#This Row],[NO]]/2","v":0},0,null,4,"Eventual",0.19822135924261003,0.25957111988946258,null,"Sentencia casación - desfavorable"]
["Proceso_Contractual","Sentencia segunda instancia",-0.25,-0.5,-1,null,"CUMPLIMIENTO","CAUCION JUDICIAL",{"$f":"Estructura[[#This Row],[RAMO SFC]]&\"-\"&Estructura[[#This Row],[COBERTURA]]","v":"CUMPLIMIENTO-CAUCION JUDICIAL"},null,null,null,null,"Fallo fiscal II - desfavorable",0,0,{"$f":"Tabla_Resp_Fiscal[[#This Row],[NO]]*0.6","v":-2.4},-4,null,"Sentencia casación - favorable",4,{"$f":"Tabla_Jurisd_Ord_Laboral[[#This Row],[NO]]*0.6","v":3},5,null,null,null,null,null,null,null,null,null,null,null,null,null,null,null,null,null,null,null,null,null,null,null,null,null,null,null,null,null,null,null,null,null,null,null,null,"Sentencia casación - favorable",4,{"$f":"Tabla_Jurisd_Ord_Laboral[[#This Row],[NO]]*0.6","v":3},5,null,"Sentencia casación - favorable",4,{"$f":"Tabla_Jurisd_Ord_Laboral[[#This Row],[NO]]*0.6","v":3},5,null,null,null,null,null,null,null,null,null,null,"BOGOTA",0,{"$f":"Tabla_territorialidad[[#This Row],[NO]]/2","v":0},0,null,5,"Eventual",0.10982228847403006,0.1803694079717629,null,"Laudo arbitral - desfavorable"]
["Proceso_Ejecutivo","Sentencia segunda instancia",-0.25,-0.5,-1,null,"CUMPLIMIENTO","CONTRATISTAS Y SUBCONTRATISTAS",{"$f":"Estructura[[#This Row],[RAMO SFC]]&\"-\"&Estructura[[#This Row],[COBERTURA]]","v":"CUMPLIMIENTO-CONTRATISTAS Y SUBCONTRATISTAS"},null,null,null,null,null,null,null,null,null,null,"Sentencia casación - desfavorable",0,{"$f":"Tabla_Jurisd_Ord_Laboral[[#This Row],[NO]]*0.6","v":-3},-5,null,null,null,null,null,null,null,null,null,null,null,null,null,null,null,null,null,null,null,null,null,null,null,null,null,null,null,null,null,null,null,null,null,null,null,null,"Sentencia casación - desfavorable",0,{"$f":"Tabla_Jurisd_Ord_Laboral[[#This Row],[NO]]*0.6","v":-3},-5,null,"Sentencia casación - desfavorable",0,{"$f":"Tabla_Jurisd_Ord_Laboral[[#This Row],[NO]]*0.6","v":-3},-5,null,"Calificación_RespFiscal","Columna",null,"Contragarantía","Puntaje",null,"Incumplimiento_RespFiscal","Puntaje Inicial",null,"BOLIVAR",0,{"$f":"Tabla_territorialidad[[#This Row],[NO]]/2","v":0.25},0.5,null,6,"Eventual",9.6014729792000542E-2,0.16483802877209605,null,"Resolución - desfavorable"]
["Proceso_Nulidad","Sentencia segunda instancia",0.25,0.5,1,null,"CUMPLIMIENTO","CUMPLIMIENTO",{"$f":"Estructura[[#This Row],[RAMO SFC]]&\"-\"&Estructura[[#This Row],[COBERTURA]]","v":"CUMPLIMIENTO-CUMPLIMIENTO"},null,null,null,null,null,null,null,null,null,null,null,null,null,null,null,null,null,null,null,null,null,null,null,null,null,null,null,null,null,null,null,null,null,null,null,null,null,null,null,null,null,null,null,null,null,null,null,null,null,null,null,null,null,null,null,null,null,null,null,null,"SÍ",2,null,"Encargo fiduciario",2,null,"SÍ",0.5,null,"BOYACA",0,{"$f":"Tabla_territorialidad[[#This Row],[NO]]/2","v":0.25},0.5,null,7,"Remoto",7.7764991139376932E-2,4.2529008111061924E-2,null,"Recurso apelación - desfavorable"]
["Reparación_Directa","Sentencia segunda instancia",0,0,0,null,"CUMPLIMIENTO","DISPOSICIONES LEGALES",{"$f":"Estructura[[#This Row],[RAMO SFC]]&\"-\"&Estructura[[#This Row],[COBERTURA]]","v":"CUMPLIMIENTO-DISPOSICIONES LEGALES"},null,null,null,null,null,null,null,null,null,null,null,null,null,null,null,null,null,null,null,null,null,null,null,null,null,null,null,null,null,null,null,null,null,null,null,null,null,null,null,null,null,null,null,null,null,null,null,null,null,null,null,null,null,null,null,null,null,null,null,null,"SÍ con atenuantes",3,null,"CDT",1.5,null,"SÍ con atenuantes",1.5,null,"CALDAS",0,{"$f":"Tabla_territorialidad[[#This Row],[NO]]/2","v":-0.25},-0.5,null,8,"Remoto",6.9125548147305454E-2,3.1727933980764643E-2]
["Responsabilidad_Fiscal","Fallo Fiscal II",0,0,0,null,"CUMPLIMIENTO","ESTABILIDAD DE LA OBRA",{"$f":"Estructura[[#This Row],[RAMO SFC]]&\"-\"&Estructura[[#This Row],[COBERTURA]]","v":"CUMPLIMIENTO-ESTABILIDAD DE LA OBRA"},null,null,null,null,null,null,null,null,null,null,null,null,null,null,null,null,null,null,null,null,null,null,null,null,null,null,null,null,null,null,null,null,null,null,null,null,null,null,null,null,null,null,null,null,null,null,null,null,null,null,null,null,null,null,null,null,null,null,null,null,"Neutral",4,null,"Garantía Hipotecaria",0.5,null,"Neutral",3,null,"CAQUETA",0,{"$f":"Tabla_territorialidad[[#This Row],[NO]]/2","v":0.5},1,null,9,"Remoto",6.140321671873402E-2,2.6060739142054964E-2]
["Tribunal_Arbitramento","Laudo arbitral",-0.25,-0.5,-1,null,"CUMPLIMIENTO","OTRAS",{"$f":"Estructura[[#This Row],[RAMO SFC]]&\"-\"&Estructura[[#This Row],[COBERTURA]]","v":"CUMPLIMIENTO-OTRAS"},null,null,null,null,null,null,null,null,null,null,null,null,null,null,null,null,null,null,null,null,null,null,null,null,null,null,null,null,null,null,null,null,null,null,null,null,null,null,null,null,null,null,null,null,null,null,null,null,null,null,null,null,null,null,null,null,null,null,null,null,"NO",5,null,"Garantía Prendaria",0.5,null,"NO",5,null,"CASANARE",0,{"$f":"Tabla_territorialidad[[#This Row],[NO]]/2","v":-0.25},-0.5,null,10,"Remoto",0,0]
[null,null,null,null,null,null,"CUMPLIMIENTO","PLO",{"$f":"Estructura[[#This Row],[RAMO SFC]]&\"-\"&Estructura[[#This Row],[COBERTURA]]","v":"CUMPLIMIENTO-PLO"},null,null,null,null,null,null,null,null,null,null,null,null,null,null,null,null,null,null,null,null,null,null,null,null,null,null,null,null,null,null,null,null,null,null,null,null,null,null,null,null,null,null,null,null,null,null,null,null,null,null,null,null,null,null,null,null,null,null,null,null,null,null,null,"Pagaré Casa Matriz",0.25,null,null,null,null,"CAUCA",0,{"$f":"Tabla_territorialidad[[#This Row],[NO]]/2","v":0.25},0.5]
[null,null,null,null,null,null,"CUMPLIMIENTO","SALARIOS Y PRESTACIONES",{"$f":"Estructura[[#This Row],[RAMO SFC]]&\"-\"&Estructura[[#This Row],[COBERTURA]]","v":"CUMPLIMIENTO-SALARIOS Y PRESTACIONES"},null,null,null,null,null,null,null,null,null,null,null,null,null,null,null,null,null,null,null,null,null,null,null,null,null,null,null,null,null,null,null,null,null,null,null,null,null,null,null,null,null,null,null,null,null,null,null,null,null,null,null,null,null,null,null,null,null,null,null,null,null,null,null,"Pagaré Sucursal Col",0,null,null,null,null,"CESAR",0,{"$f":"Tabla_territorialidad[[#This Row],[NO]]/2","v":0.25},0.5]
[null,null,null,null,null,null,"CUMPLIMIENTO","SERIEDAD DE LA OFERTA",{"$f":"Estructura[[#This Row],[RAMO SFC]]&\"-\"&Estructura[[#This Row],[COBERTURA]]","v":"CUMPLIMIENTO-SERIEDAD DE LA OFERTA"},null,null,null,null,null,null,null,null,null,null,null,null,null,null,null,null,null,null,null,null,null,null,null,null,null,null,null,null,null,null,null,null,null,null,null,null,null,null,null,null,null,null,null,null,null,null,null,null,null,null,null,null,null,null,null,null,null,null,null,null,null,null,null,"No hay Contragarantía",0,null,null,null,null,"CHOCO",0,{"$f":"Tabla_territorialidad[[#This Row],[NO]]/2","v":-0.25},-0.5]
[null,null,null,null,null,null,"RESPONSABILIDAD CIVIL","BIENES BAJO TENENCIA, CUIDADO Y CONTROL",{"$f":"Estructura[[#This Row],[RAMO SFC]]&\"-\"&Estructura[[#This Row],[COBERTURA]]","v":"RESPONSABILIDAD CIVIL-BIENES BAJO TENENCIA, CUIDADO Y CONTROL"},null,null,null,null,null,null,null,null,null,null,null,null,null,null,null,null,null,null,null,null,null,null,null,null,null,null,null,null,null,null,null,null,null,null,null,null,null,null,null,null,null,null,null,null,null,null,null,null,null,null,null,null,null,null,null,null,null,null,null,null,null,null,null,null,null,null,null,null,null,"CORDOBA",0,{"$f":"Tabla_territorialidad[[#This Row],[NO]]/2","v":-0.5},-1]
[null,null,null,null,null,null,"RESPONSABILIDAD CIVIL","CONTAMINACION",{"$f":"Estructura[[#This Row],[RAMO SFC]]&\"-\"&Estructura[[#This Row],[COBERTURA]]","v":"RESPONSABILIDAD CIVIL-CONTAMINACION"},null,null,null,null,null,null,null,null,null,null,null,null,null,null,null,null,null,null,null,null,null,null,null,null,null,null,null,null,null,null,null,null,null,null,null,null,null,null,null,null,null,null,null,null,null,null,null,null,null,null,null,null,null,null,null,null,null,null,null,null,null,null,null,null,null,null,null,null,null,"CUNDINAMARCA",0,{"$f":"Tabla_territorialidad[[#This Row],[NO]]/2","v":0.25},0.5]
[null,null,null,null,null,null,"RESPONSABILIDAD CIVIL","CONTRATISTAS Y SUBCONTRATISTAS",{"$f":"Estructura[[#This Row],[RAMO SFC]]&\"-\"&Estructura[[#This Row],[COBERTURA]]","v":"RESPONSABILIDAD CIVIL-CONTRATISTAS Y SUBCONTRATISTAS"},null,null,null,null,null,null,null,null,null,null,null,null,null,null,null,null,null,null,null,null,null,null,null,null,null,null,null,null,null,null,null,null,null,null,null,null,null,null,null,null,null,null,null,null,null,null,null,null,null,null,null,null,null,null,null,null,null,null,null,null,null,null,null,null,null,null,null,null,null,"GUANIA",0,{"$f":"Tabla_territorialidad[[#This Row],[NO]]/2","v":0.5},1]
[null,null,null,null,null,null,"RESPONSABILIDAD CIVIL","DAÑO EMERGENTE",{"$f":"Estructura[[#This Row],[RAMO SFC]]&\"-\"&Estructura[[#This Row],[COBERTURA]]","v":"RESPONSABILIDAD CIVIL-DAÑO EMERGENTE"},null,null,null,null,null,null,null,null,null,null,null,null,null,null,null,null,null,null,null,null,null,null,null,null,null,null,null,null,null,null,null,null,null,null,null,null,null,null,null,null,null,null,null,null,null,null,null,null,null,null,null,null,null,null,null,null,null,null,null,null,null,null,null,null,null,null,null,null,null,"GUAVIARE",0,{"$f":"Tabla_territorialidad[[#This Row],[NO]]/2","v":0.5},1]
[null,null,null,null,null,null,"RESPONSABILIDAD CIVIL","DAÑO MORAL",{"$f":"Estructura[[#This Row],[RAMO SFC]]&\"-\"&Estructura[[#This Row],[COBERTURA]]","v":"RESPONSABILIDAD CIVIL-DAÑO MORAL"},null,null,null,null,null,null,null,null,null,null,null,null,null,null,null,null,null,null,null,null,null,null,null,null,null,null,null,null,null,null,null,null,null,null,null,null,null,null,null,null,null,null,null,null,null,null,null,null,null,null,null,null,null,null,null,null,null,null,null,null,null,null,null,null,null,null,null,null,null,"HUILA",0,{"$f":"Tabla_territorialidad[[#This Row],[NO]]/2","v":0},0]
[null,null,null,null,null,null,"RESPONSABILIDAD CIVIL","DAÑOS MATERIALES A BIENES",{"$f":"Estructura[[#This Row],[RAMO SFC]]&\"-\"&Estructura[[#This Row],[COBERTURA]]","v":"RESPONSABILIDAD CIVIL-DAÑOS MATERIALES A BIENES"},null,null,null,null,null,null,null,null,null,null,null,null,null,null,null,null,null,null,null,null,null,null,null,null,null,null,null,null,null,null,null,null,null,null,null,null,null,null,null,null,null,null,null,null,null,null,null,null,null,null,null,null,null,null,null,null,null,null,null,null,null,null,null,null,null,null,null,null,null,"LA GUAJIRA",0,{"$f":"Tabla_territorialidad[[#This Row],[NO]]/2","v":0.5},1]
[null,null,null,null,null,null,"RESPONSABILIDAD CIVIL","PERJUICIOS EXTRAPATRIMONIALES",{"$f":"Estructura[[#This Row],[RAMO SFC]]&\"-\"&Estructura[[#This Row],[COBERTURA]]","v":"RESPONSABILIDAD CIVIL-PERJUICIOS EXTRAPATRIMONIALES"},null,null,null,null,null,null,null,null,null,null,null,null,null,null,null,null,null,null,null,null,null,null,null,null,null,null,null,null,null,null,null,null,null,null,null,null,null,null,null,null,null,null,null,null,null,null,null,null,null,null,null,null,null,null,null,null,null,null,null,null,null,null,null,null,null,null,null,null,null,"MAGDALENA",0,{"$f":"Tabla_territorialidad[[#This Row],[NO]]/2","v":-0.25},-0.5]
[null,null,null,null,null,null,"RESPONSABILIDAD CIVIL","LUCRO CESANTE",{"$f":"Estructura[[#This Row],[RAMO SFC]]&\"-\"&Estructura[[#This Row],[COBERTURA]]","v":"RESPONSABILIDAD CIVIL-LUCRO CESANTE"},null,null,null,null,null,null,null,null,null,null,null,null,null,null,null,null,null,null,null,null,null,null,null,null,null,null,null,null,null,null,null,null,null,null,null,null,null,null,null,null,null,null,null,null,null,null,null,null,null,null,null,null,null,null,null,null,null,null,null,null,null,null,null,null,null,null,null,null,null,"META",0,{"$f":"Tabla_territorialidad[[#This Row],[NO]]/2","v":0.25},0.5]
[null,null,null,null,null,null,"RESPONSABILIDAD CIVIL","OTRAS",{"$f":"Estructura[[#This Row],[RAMO SFC]]&\"-\"&Estructura[[#This Row],[COBERTURA]]","v":"RESPONSABILIDAD CIVIL-OTRAS"},null,null,null,null,null,null,null,null,null,null,null,null,null,null,null,null,null,null,null,null,null,null,null,null,null,null,null,null,null,null,null,null,null,null,null,null,null,null,null,null,null,null,null,null,null,null,null,null,null,null,null,null,null,null,null,null,null,null,null,null,null,null,null,null,null,null,null,null,null,"NARIÑO",0,{"$f":"Tabla_territorialidad[[#This Row],[NO]]/2","v":0.25},0.5]
[null,null,null,null,null,null,"RESPONSABILIDAD CIVIL","PLO",{"$f":"Estructura[[#This Row],[RAMO SFC]]&\"-\"&Estructura[[#This Row],[COBERTURA]]","v":"RESPONSABILIDAD CIVIL-PLO"},null,null,null,null,null,null,null,null,null,null,null,null,null,null,null,null,null,null,null,null,null,null,null,null,null,null,null,null,null,null,null,null,null,null,null,null,null,null,null,null,null,null,null,null,null,null,null,null,null,null,null,null,null,null,null,null,null,null,null,null,null,null,null,null,null,null,null,null,null,"NORTE DE SANTANDER",0,{"$f":"Tabla_territorialidad[[#This Row],[NO]]/2","v":0.25},0.5]
[null,null,null,null,null,null,"RESPONSABILIDAD CIVIL","SUSPENSION DEL PROCEDIMIENTO ADMINISTRATIVO",{"$f":"Estructura[[#This Row],[RAMO SFC]]&\"-\"&Estructura[[#This Row],[COBERTURA]]","v":"RESPONSABILIDAD CIVIL-SUSPENSION DEL PROCEDIMIENTO ADMINISTRATIVO"},null,null,null,null,null,null,null,null,null,null,null,null,null,null,null,null,null,null,null,null,null,null,null,null,null,null,null,null,null,null,null,null,null,null,null,null,null,null,null,null,null,null,null,null,null,null,null,null,null,null,null,null,null,null,null,null,null,null,null,null,null,null,null,null,null,null,null,null,null,"PUTUMAYO",0,{"$f":"Tabla_territorialidad[[#This Row],[NO]]/2","v":0.5},1]
[null,null,null,null,null,null,"RESPONSABILIDAD CIVIL","VEHICULOS PROPIOS Y NO PROPIOS",{"$f":"Estructura[[#This Row],[RAMO SFC]]&\"-\"&Estructura[[#This Row],[COBERTURA]]","v":"RESPONSABILIDAD CIVIL-VEHICULOS PROPIOS Y NO PROPIOS"},null,null,null,null,null,null,null,null,null,null,null,null,null,null,null,null,null,null,null,null,null,null,null,null,null,null,null,null,null,null,null,null,null,null,null,null,null,null,null,null,null,null,null,null,null,null,null,null,null,null,null,null,null,null,null,null,null,null,null,null,null,null,null,null,null,null,null,null,null,"QUINDIO",0,{"$f":"Tabla_territorialidad[[#This Row],[NO]]/2","v":0},0]
[null,null,null,null,null,null,"RESPONSABILIDAD CIVIL","RC CLINICAS Y HOSPITALES",{"$f":"Estructura[[#This Row],[RAMO SFC]]&\"-\"&Estructura[[#This Row],[COBERTURA]]","v":"RESPONSABILIDAD CIVIL-RC CLINICAS Y HOSPITALES"},null,null,null,null,null,null,null,null,null,null,null,null,null,null,null,null,null,null,null,null,null,null,null,null,null,null,null,null,null,null,null,null,null,null,null,null,null,null,null,null,null,null,null,null,null,null,null,null,null,null,null,null,null,null,null,null,null,null,null,null,null,null,null,null,null,null,null,null,null,"RISARALDA",0,{"$f":"Tabla_territorialidad[[#This Row],[NO]]/2","v":0},0]
[null,null,null,null,null,null,"RESPONSABILIDAD CIVIL","RC MEDICA",{"$f":"Estructura[[#This Row],[RAMO SFC]]&\"-\"&Estructura[[#This Row],[COBERTURA]]","v":"RESPONSABILIDAD CIVIL-RC MEDICA"},null,null,null,null,null,null,null,null,null,null,null,null,null,null,null,null,null,null,null,null,null,null,null,null,null,null,null,null,null,null,null,null,null,null,null,null,null,null,null,null,null,null,null,null,null,null,null,null,null,null,null,null,null,null,null,null,null,null,null,null,null,null,null,null,null,null,null,null,null,"SAN ANDRES",0,{"$f":"Tabla_territorialidad[[#This Row],[NO]]/2","v":0.5},1]
[null,null,null,null,null,null,"RESPONSABILIDAD CIVIL","RC PATRONAL",{"$f":"Estructura[[#This Row],[RAMO SFC]]&\"-\"&Estructura[[#This Row],[COBERTURA]]","v":"RESPONSABILIDAD CIVIL-RC PATRONAL"},null,null,null,null,null,null,null,null,null,null,null,null,null,null,null,null,null,null,null,null,null,null,null,null,null,null,null,null,null,null,null,null,null,null,null,null,null,null,null,null,null,null,null,null,null,null,null,null,null,null,null,null,null,null,null,null,null,null,null,null,null,null,null,null,null,null,null,null,null,"SANTANDER",0,{"$f":"Tabla_territorialidad[[#This Row],[NO]]/2","v":0},0]
[null,null,null,null,null,null,"RESPONSABILIDAD CIVIL","RC PROFESIONAL",{"$f":"Estructura[[#This Row],[RAMO SFC]]&\"-\"&Estructura[[#This Row],[COBERTURA]]","v":"RESPONSABILIDAD CIVIL-RC PROFESIONAL"},null,null,null,null,null,null,null,null,null,null,null,null,null,null,null,null,null,null,null,null,null,null,null,null,null,null,null,null,null,null,null,null,null,null,null,null,null,null,null,null,null,null,null,null,null,null,null,null,null,null,null,null,null,null,null,null,null,null,null,null,null,null,null,null,null,null,null,null,null,"SUCRE",0,{"$f":"Tabla_territorialidad[[#This Row],[NO]]/2","v":0.5},1]
[null,null,null,null,null,null,"RESPONSABILIDAD CIVIL","RC PROFESIONAL CLINICAS Y HOSPITALES",{"$f":"Estructura[[#This Row],[RAMO SFC]]&\"-\"&Estructura[[#This Row],[COBERTURA]]","v":"RESPONSABILIDAD CIVIL-RC PROFESIONAL CLINICAS Y HOSPITALES"},null,null,null,null,null,null,null,null,null,null,null,null,null,null,null,null,null,null,null,null,null,null,null,null,null,null,null,null,null,null,null,null,null,null,null,null,null,null,null,null,null,null,null,null,null,null,null,null,null,null,null,null,null,null,null,null,null,null,null,null,null,null,null,null,null,null,null,null,null,"TOLIMA",0,{"$f":"Tabla_territorialidad[[#This Row],[NO]]/2","v":0},0]
[null,null,null,null,null,null,"RESPONSABILIDAD CIVIL","RC PROFESIONAL MEDICA",{"$f":"Estructura[[#This Row],[RAMO SFC]]&\"-\"&Estructura[[#This Row],[COBERTURA]]","v":"RESPONSABILIDAD CIVIL-RC PROFESIONAL MEDICA"},null,null,null,null,null,null,null,null,null,null,null,null,null,null,null,null,null,null,null,null,null,null,null,null,null,null,null,null,null,null,null,null,null,null,null,null,null,null,null,null,null,null,null,null,null,null,null,null,null,null,null,null,null,null,null,null,null,null,null,null,null,null,null,null,null,null,null,null,null,"VALLE DEL CAUCA",0,{"$f":"Tabla_territorialidad[[#This Row],[NO]]/2","v":-0.25},-0.5]
[null,null,null,null,null,null,"RESPONSABILIDAD CIVIL","RCE CLINICAS Y HOSPITALES",{"$f":"Estructura[[#This Row],[RAMO SFC]]&\"-\"&Estructura[[#This Row],[COBERTURA]]","v":"RESPONSABILIDAD CIVIL-RCE CLINICAS Y HOSPITALES"}]
[null,null,null,null,null,null,"RESPONSABILIDAD CIVIL","RCE MEDICA",{"$f":"Estructura[[#This Row],[RAMO SFC]]&\"-\"&Estructura[[#This Row],[COBERTURA]]","v":"RESPONSABILIDAD CIVIL-RCE MEDICA"}]
[null,null,null,null,null,null,"RESPONSABILIDAD CIVIL","RCE PATRONAL",{"$f":"Estructura[[#This Row],[RAMO SFC]]&\"-\"&Estructura[[#This Row],[COBERTURA]]","v":"RESPONSABILIDAD CIVIL-RCE PATRONAL"}]
[null,null,null,null,null,null,"RESPONSABILIDAD CIVIL","RCE PROFESIONAL MEDICA",{"$f":"Estructura[[#This Row],[RAMO SFC]]&\"-\"&Estructura[[#This Row],[COBERTURA]]","v":"RESPONSABILIDAD CIVIL-RCE PROFESIONAL MEDICA"}]

{"sheet":"Intereses","index":3,"n_rows":296,"n_cols":7,"rows_kept":296,"cut":false,"hidden":true,"merged":[]}
["Desde","Hasta","TIB corriente (%EA) por SFC","Tasa Legal Usura (%EA)","Número Dias","TIB corriente (%EM)","Tasa Legal Usura (%EM)"]
["1997-09-01","1997-09-30",0.31840000000000002,0.47760000000000002,30,{"$f":"(1+Intereses[[#This Row],[TIB corriente (%EA) por SFC]])^(1/12)-1","v":2.330225900940297E-2},{"$f":"(1+Intereses[[#This Row],[Tasa Legal Usura (%EA)]])^(1/12)-1","v":3.3069976778820731E-2}]
["1997-10-01","1997-10-31",0.31330000000000002,0.46989999999999998,31,{"$f":"(1+Intereses[[#This Row],[TIB corriente (%EA) por SFC]])^(1/12)-1","v":2.2971800539050236E-2},{"$f":"(1+Intereses[[#This Row],[Tasa Legal Usura (%EA)]])^(1/12)-1","v":3.2620277856205915E-2}]
["1997-11-01","1997-11-30",0.31469999999999998,0.47204999999999997,30,{"$f":"(1+Intereses[[#This Row],[TIB corriente (%EA) por SFC]])^(1/12)-1","v":2.3062631604311878E-2},{"$f":"(1+Intereses[[#This Row],[Tasa Legal Usura (%EA)]])^(1/12)-1","v":3.2746060030486523E-2}]
["1997-12-01","1997-12-31",0.31740000000000002,0.47610000000000002,31,{"$f":"(1+Intereses[[#This Row],[TIB corriente (%EA) por SFC]])^(1/12)-1","v":2.3237555696297152E-2},{"$f":"(1+Intereses[[#This Row],[Tasa Legal Usura (%EA)]])^(1/12)-1","v":3.2982541837264678E-2}]
["1998-01-01","1998-01-31",0.31690000000000002,0.47535000000000005,31,{"$f":"(1+Intereses[[#This Row],[TIB corriente (%EA) por SFC]])^(1/12)-1","v":2.3205187154887286E-2},{"$f":"(1+Intereses[[#This Row],[Tasa Legal Usura (%EA)]])^(1/12)-1","v":3.2938793819768719E-2}]
["1998-02-01","1998-02-28",0.3256,0.4884,28,{"$f":"(1+Intereses[[#This Row],[TIB corriente (%EA) por SFC]])^(1/12)-1","v":2.3766799270340089E-2},{"$f":"(1+Intereses[[#This Row],[Tasa Legal Usura (%EA)]])^(1/12)-1","v":3.3697117219970041E-2}]
["1998-03-01","1998-03-31",0.32150000000000001,0.48225000000000001,31,{"$f":"(1+Intereses[[#This Row],[TIB corriente (%EA) por SFC]])^(1/12)-1","v":2.3502553774858104E-2},{"$f":"(1+Intereses[[#This Row],[Tasa Legal Usura (%EA)]])^(1/12)-1","v":3.3340508973839222E-2}]
["1998-04-01","1998-04-30",0.36280000000000001,0.54420000000000002,30,{"$f":"(1+Intereses[[#This Row],[TIB corriente (%EA) por SFC]])^(1/12)-1","v":2.6130690440634652E-2},{"$f":"(1+Intereses[[#This Row],[Tasa Legal Usura (%EA)]])^(1/12)-1","v":3.6872355396805334E-2}]
["1998-05-01","1998-05-31",0.38390000000000002,0.57584999999999997,31,{"$f":"(1+Intereses[[#This Row],[TIB corriente (%EA) por SFC]])^(1/12)-1","v":2.7445337734003372E-2},{"$f":"(1+Intereses[[#This Row],[Tasa Legal Usura (%EA)]])^(1/12)-1","v":3.862691567676424E-2}]
["1998-06-01","1998-06-30",0.39510000000000001,0.59265000000000001,30,{"$f":"(1+Intereses[[#This Row],[TIB corriente (%EA) por SFC]])^(1/12)-1","v":2.8135712915492217E-2},{"$f":"(1+Intereses[[#This Row],[Tasa Legal Usura (%EA)]])^(1/12)-1","v":3.9545163423797991E-2}]
["1998-07-01","1998-07-31",0.4783,0.71745000000000003,31,{"$f":"(1+Intereses[[#This Row],[TIB corriente (%EA) por SFC]])^(1/12)-1","v":3.3110751910391922E-2},{"$f":"(1+Intereses[[#This Row],[Tasa Legal Usura (%EA)]])^(1/12)-1","v":4.6101139569494576E-2}]
["1998-08-01","1998-08-31",0.48409999999999997,0.72614999999999996,31,{"$f":"(1+Intereses[[#This Row],[TIB corriente (%EA) por SFC]])^(1/12)-1","v":3.3447923784770905E-2},{"$f":"(1+Intereses[[#This Row],[Tasa Legal Usura (%EA)]])^(1/12)-1","v":4.6541716081249351E-2}]
["1998-09-01","1998-09-30",0.432,0.64800000000000002,30,{"$f":"(1+Intereses[[#This Row],[TIB corriente (%EA) por SFC]])^(1/12)-1","v":3.0374854435791354E-2},{"$f":"(1+Intereses[[#This Row],[Tasa Legal Usura (%EA)]])^(1/12)-1","v":4.2508890408186506E-2}]
["1998-10-01","1998-10-31",0.46,0.69000000000000006,31,{"$f":"(1+Intereses[[#This Row],[TIB corriente (%EA) por SFC]])^(1/12)-1","v":3.203890980016566E-2},{"$f":"(1+Intereses[[#This Row],[Tasa Legal Usura (%EA)]])^(1/12)-1","v":4.4697507923277202E-2}]
["1998-11-01","1998-11-30",0.49990000000000001,0.74985000000000002,30,{"$f":"(1+Intereses[[#This Row],[TIB corriente (%EA) por SFC]])^(1/12)-1","v":3.4360336478082676E-2},{"$f":"(1+Intereses[[#This Row],[Tasa Legal Usura (%EA)]])^(1/12)-1","v":4.7731662448660117E-2}]
["1998-12-01","1998-12-31",0.47710000000000002,0.71565000000000001,31,{"$f":"(1+Intereses[[#This Row],[TIB corriente (%EA) por SFC]])^(1/12)-1","v":3.3040840842329722E-2},{"$f":"(1+Intereses[[#This Row],[Tasa Legal Usura (%EA)]])^(1/12)-1","v":4.6009730446818553E-2}]
["1999-01-01","1999-01-31",0.45490000000000003,0.68235000000000001,31,{"$f":"(1+Intereses[[#This Row],[TIB corriente (%EA) por SFC]])^(1/12)-1","v":3.1738005454297724E-2},{"$f":"(1+Intereses[[#This Row],[Tasa Legal Usura (%EA)]])^(1/12)-1","v":4.4302608270949451E-2}]
["1999-02-01","1999-02-28",0.4239,0.63585000000000003,28,{"$f":"(1+Intereses[[#This Row],[TIB corriente (%EA) por SFC]])^(1/12)-1","v":2.9887904239635832E-2},{"$f":"(1+Intereses[[#This Row],[Tasa Legal Usura (%EA)]])^(1/12)-1","v":4.1866218129975596E-2}]
["1999-03-01","1999-03-14",0.40989999999999999,0.61485000000000001,14,{"$f":"(1+Intereses[[#This Row],[TIB corriente (%EA) por SFC]])^(1/12)-1","v":2.9040243061789539E-2},{"$f":"(1+Intereses[[#This Row],[Tasa Legal Usura (%EA)]])^(1/12)-1","v":4.0745038061768213E-2}]
["1999-03-15","1999-03-31",0.39760000000000001,0.59640000000000004,17,{"$f":"(1+Intereses[[#This Row],[TIB corriente (%EA) por SFC]])^(1/12)-1","v":2.8289120712242877E-2},{"$f":"(1+Intereses[[#This Row],[Tasa Legal Usura (%EA)]])^(1/12)-1","v":3.9748916797837763E-2}]
["1999-04-01","1999-04-30",0.3357,0.50354999999999994,30,{"$f":"(1+Intereses[[#This Row],[TIB corriente (%EA) por SFC]])^(1/12)-1","v":2.4414563219954388E-2},{"$f":"(1+Intereses[[#This Row],[Tasa Legal Usura (%EA)]])^(1/12)-1","v":3.4569862160126474E-2}]
["1999-05-01","1999-05-31",0.31140000000000001,0.46710000000000002,31,{"$f":"(1+Intereses[[#This Row],[TIB corriente (%EA) por SFC]])^(1/12)-1","v":2.2848387735302067E-2},{"$f":"(1+Intereses[[#This Row],[Tasa Legal Usura (%EA)]])^(1/12)-1","v":3.2456215436479363E-2}]
["1999-06-01","1999-06-30",0.27460000000000001,0.41190000000000004,30,{"$f":"(1+Intereses[[#This Row],[TIB corriente (%EA) por SFC]])^(1/12)-1","v":2.0425163074243358E-2},{"$f":"(1+Intereses[[#This Row],[Tasa Legal Usura (%EA)]])^(1/12)-1","v":2.9161808634234454E-2}]
["1999-07-01","1999-07-31",0.2422,0.36330000000000001,31,{"$f":"(1+Intereses[[#This Row],[TIB corriente (%EA) por SFC]])^(1/12)-1","v":1.8237983922120504E-2},{"$f":"(1+Intereses[[#This Row],[Tasa Legal Usura (%EA)]])^(1/12)-1","v":2.6162058401758781E-2}]
["1999-08-01","1999-08-31",0.26250000000000001,0.39375000000000004,31,{"$f":"(1+Intereses[[#This Row],[TIB corriente (%EA) por SFC]])^(1/12)-1","v":1.9614373056648926E-2},{"$f":"(1+Intereses[[#This Row],[Tasa Legal Usura (%EA)]])^(1/12)-1","v":2.8052767894414243E-2}]
["1999-09-01","1999-09-30",0.2601,0.39015,30,{"$f":"(1+Intereses[[#This Row],[TIB corriente (%EA) por SFC]])^(1/12)-1","v":1.9452709083518149E-2},{"$f":"(1+Intereses[[#This Row],[Tasa Legal Usura (%EA)]])^(1/12)-1","v":2.783122059100851E-2}]
["1999-10-01","1999-10-31",0.26960000000000001,0.40439999999999998,31,{"$f":"(1+Intereses[[#This Row],[TIB corriente (%EA) por SFC]])^(1/12)-1","v":2.0090984885176022E-2},{"$f":"(1+Intereses[[#This Row],[Tasa Legal Usura (%EA)]])^(1/12)-1","v":2.8705120834537468E-2}]
["1999-11-01","1999-11-30",0.25700000000000001,0.38550000000000001,30,{"$f":"(1+Intereses[[#This Row],[TIB corriente (%EA) por SFC]])^(1/12)-1","v":1.9243474867443267E-2},{"$f":"(1+Intereses[[#This Row],[Tasa Legal Usura (%EA)]])^(1/12)-1","v":2.7544275643077931E-2}]
["1999-12-01","1999-12-31",0.2422,0.36330000000000001,31,{"$f":"(1+Intereses[[#This Row],[TIB corriente (%EA) por SFC]])^(1/12)-1","v":1.8237983922120504E-2},{"$f":"(1+Intereses[[#This Row],[Tasa Legal Usura (%EA)]])^(1/12)-1","v":2.6162058401758781E-2}]
["2000-01-01","2000-01-31",0.224,0.33600000000000002,31,{"$f":"(1+Intereses[[#This Row],[TIB corriente (%EA) por SFC]])^(1/12)-1","v":1.6986336636870991E-2},{"$f":"(1+Intereses[[#This Row],[Tasa Legal Usura (%EA)]])^(1/12)-1","v":2.4433734986121447E-2}]
["2000-02-01","2000-02-29",0.1946,0.29189999999999999,29,{"$f":"(1+Intereses[[#This Row],[TIB corriente (%EA) por SFC]])^(1/12)-1","v":1.4927941904765651E-2},{"$f":"(1+Intereses[[#This Row],[Tasa Legal Usura (%EA)]])^(1/12)-1","v":2.1572220872975834E-2}]
["2000-03-01","2000-03-31",0.17449999999999999,0.26174999999999998,31,{"$f":"(1+Intereses[[#This Row],[TIB corriente (%EA) por SFC]])^(1/12)-1","v":1.3493773936414488E-2},{"$f":"(1+Intereses[[#This Row],[Tasa Legal Usura (%EA)]])^(1/12)-1","v":1.9563883348914013E-2}]
["2000-04-01","2000-04-30",0.1787,0.26805000000000001,30,{"$f":"(1+Intereses[[#This Row],[TIB corriente (%EA) por SFC]])^(1/12)-1","v":1.3795300336293614E-2},{"$f":"(1+Intereses[[#This Row],[Tasa Legal Usura (%EA)]])^(1/12)-1","v":1.9987144669119328E-2}]
["2000-05-01","2000-05-31",0.17899999999999999,0.26849999999999996,31,{"$f":"(1+Intereses[[#This Row],[TIB corriente (%EA) por SFC]])^(1/12)-1","v":1.381680023143983E-2},{"$f":"(1+Intereses[[#This Row],[Tasa Legal Usura (%EA)]])^(1/12)-1","v":2.0017303809532372E-2}]
["2000-06-01","2000-06-30",0.19769999999999999,0.29654999999999998,30,{"$f":"(1+Intereses[[#This Row],[TIB corriente (%EA) por SFC]])^(1/12)-1","v":1.5147160380537761E-2},{"$f":"(1+Intereses[[#This Row],[Tasa Legal Usura (%EA)]])^(1/12)-1","v":2.1878132850398968E-2}]
["2000-07-01","2000-07-31",0.19439999999999999,0.29159999999999997,31,{"$f":"(1+Intereses[[#This Row],[TIB corriente (%EA) por SFC]])^(1/12)-1","v":1.4913780876947058E-2},{"$f":"(1+Intereses[[#This Row],[Tasa Legal Usura (%EA)]])^(1/12)-1","v":2.1552449974195476E-2}]
["2000-08-01","2000-08-31",0.19919999999999999,0.29879999999999995,31,{"$f":"(1+Intereses[[#This Row],[TIB corriente (%EA) por SFC]])^(1/12)-1","v":1.5253047175500578E-2},{"$f":"(1+Intereses[[#This Row],[Tasa Legal Usura (%EA)]])^(1/12)-1","v":2.2025793890954715E-2}]
["2000-09-01","2000-09-30",0.2293,0.34394999999999998,30,{"$f":"(1+Intereses[[#This Row],[TIB corriente (%EA) por SFC]])^(1/12)-1","v":1.7352578464452817E-2},{"$f":"(1+Intereses[[#This Row],[Tasa Legal Usura (%EA)]])^(1/12)-1","v":2.4940354247332097E-2}]
["2000-10-01","2000-10-31",0.23080000000000001,0.34620000000000001,31,{"$f":"(1+Intereses[[#This Row],[TIB corriente (%EA) por SFC]])^(1/12)-1","v":1.745596901757529E-2},{"$f":"(1+Intereses[[#This Row],[Tasa Legal Usura (%EA)]])^(1/12)-1","v":2.5083238291942367E-2}]
["2000-11-01","2000-11-30",0.23799999999999999,0.35699999999999998,30,{"$f":"(1+Intereses[[#This Row],[TIB corriente (%EA) por SFC]])^(1/12)-1","v":1.7950641491917496E-2},{"$f":"(1+Intereses[[#This Row],[Tasa Legal Usura (%EA)]])^(1/12)-1","v":2.5766049075942155E-2}]
["2000-12-01","2000-12-31",0.2369,0.35535,31,{"$f":"(1+Intereses[[#This Row],[TIB corriente (%EA) por SFC]])^(1/12)-1","v":1.7875237481879802E-2},{"$f":"(1+Intereses[[#This Row],[Tasa Legal Usura (%EA)]])^(1/12)-1","v":2.5662053869310197E-2}]
["2001-01-01","2001-01-31",0.24160000000000001,0.3624,31,{"$f":"(1+Intereses[[#This Row],[TIB corriente (%EA) por SFC]])^(1/12)-1","v":1.8196989578517231E-2},{"$f":"(1+Intereses[[#This Row],[Tasa Legal Usura (%EA)]])^(1/12)-1","v":2.6105588475108465E-2}]
["2001-02-01","2001-02-28",0.26029999999999998,0.39044999999999996,28,{"$f":"(1+Intereses[[#This Row],[TIB corriente (%EA) por SFC]])^(1/12)-1","v":1.946619185678955E-2},{"$f":"(1+Intereses[[#This Row],[Tasa Legal Usura (%EA)]])^(1/12)-1","v":2.7849702941323606E-2}]
["2001-03-01","2001-03-31",0.25109999999999999,0.37664999999999998,31,{"$f":"(1+Intereses[[#This Row],[TIB corriente (%EA) por SFC]])^(1/12)-1","v":1.8843944751614661E-2},{"$f":"(1+Intereses[[#This Row],[Tasa Legal Usura (%EA)]])^(1/12)-1","v":2.6995707177810413E-2}]
["2001-04-01","2001-04-30",0.24829999999999999,0.37245,30,{"$f":"(1+Intereses[[#This Row],[TIB corriente (%EA) por SFC]])^(1/12)-1","v":1.8653732571807247E-2},{"$f":"(1+Intereses[[#This Row],[Tasa Legal Usura (%EA)]])^(1/12)-1","v":2.6734237592840993E-2}]
["2001-05-01","2001-05-31",0.2424,0.36360000000000003,31,{"$f":"(1+Intereses[[#This Row],[TIB corriente (%EA) por SFC]])^(1/12)-1","v":1.8251644669879719E-2},{"$f":"(1+Intereses[[#This Row],[Tasa Legal Usura (%EA)]])^(1/12)-1","v":2.6180874116863206E-2}]
["2001-06-01","2001-06-30",0.25169999999999998,0.37754999999999994,30,{"$f":"(1+Intereses[[#This Row],[TIB corriente (%EA) por SFC]])^(1/12)-1","v":1.8884653730303347E-2},{"$f":"(1+Intereses[[#This Row],[Tasa Legal Usura (%EA)]])^(1/12)-1","v":2.7051641226381706E-2}]
["2001-07-01","2001-07-31",0.26079999999999998,0.39119999999999999,31,{"$f":"(1+Intereses[[#This Row],[TIB corriente (%EA) por SFC]])^(1/12)-1","v":1.9499890211155613E-2},{"$f":"(1+Intereses[[#This Row],[Tasa Legal Usura (%EA)]])^(1/12)-1","v":2.7895892829637337E-2}]
["2001-08-01","2001-08-31",0.24249999999999999,0.36375000000000002,31,{"$f":"(1+Intereses[[#This Row],[TIB corriente (%EA) por SFC]])^(1/12)-1","v":1.825847428783911E-2},{"$f":"(1+Intereses[[#This Row],[Tasa Legal Usura (%EA)]])^(1/12)-1","v":2.6190280551482648E-2}]
["2001-09-01","2001-09-30",0.2306,0.34589999999999999,30,{"$f":"(1+Intereses[[#This Row],[TIB corriente (%EA) por SFC]])^(1/12)-1","v":1.7442190286204751E-2},{"$f":"(1+Intereses[[#This Row],[Tasa Legal Usura (%EA)]])^(1/12)-1","v":2.5064199739822657E-2}]
["2001-10-01","2001-10-31",0.23219999999999999,0.3483,31,{"$f":"(1+Intereses[[#This Row],[TIB corriente (%EA) por SFC]])^(1/12)-1","v":1.7552362709858382E-2},{"$f":"(1+Intereses[[#This Row],[Tasa Legal Usura (%EA)]])^(1/12)-1","v":2.5216399364027087E-2}]
["2001-11-01","2001-11-30",0.2298,0.34470000000000001,30,{"$f":"(1+Intereses[[#This Row],[TIB corriente (%EA) por SFC]])^(1/12)-1","v":1.7387054825403592E-2},{"$f":"(1+Intereses[[#This Row],[Tasa Legal Usura (%EA)]])^(1/12)-1","v":2.4988006610359603E-2}]
["2001-12-01","2001-12-31",0.2248,0.3372,31,{"$f":"(1+Intereses[[#This Row],[TIB corriente (%EA) por SFC]])^(1/12)-1","v":1.7041711463179343E-2},{"$f":"(1+Intereses[[#This Row],[Tasa Legal Usura (%EA)]])^(1/12)-1","v":2.451038260898053E-2}]
["2002-01-01","2002-01-31",0.2281,0.34215000000000001,31,{"$f":"(1+Intereses[[#This Row],[TIB corriente (%EA) por SFC]])^(1/12)-1","v":1.7269782724166793E-2},{"$f":"(1+Intereses[[#This Row],[Tasa Legal Usura (%EA)]])^(1/12)-1","v":2.4825889044176153E-2}]
["2002-02-01","2002-02-28",0.2235,0.33524999999999999,28,{"$f":"(1+Intereses[[#This Row],[TIB corriente (%EA) por SFC]])^(1/12)-1","v":1.6951710520506369E-2},{"$f":"(1+Intereses[[#This Row],[Tasa Legal Usura (%EA)]])^(1/12)-1","v":2.4385798168465422E-2}]
["2002-03-01","2002-03-31",0.2097,0.31455,31,{"$f":"(1+Intereses[[#This Row],[TIB corriente (%EA) por SFC]])^(1/12)-1","v":1.5990873406817929E-2},{"$f":"(1+Intereses[[#This Row],[Tasa Legal Usura (%EA)]])^(1/12)-1","v":2.3052903946530368E-2}]
["2002-04-01","2002-04-30",0.21029999999999999,0.31545000000000001,30,{"$f":"(1+Intereses[[#This Row],[TIB corriente (%EA) por SFC]])^(1/12)-1","v":1.6032857369051801E-2},{"$f":"(1+Intereses[[#This Row],[Tasa Legal Usura (%EA)]])^(1/12)-1","v":2.3111254637725231E-2}]
["2002-05-01","2002-05-31",0.2,0.30000000000000004,31,{"$f":"(1+Intereses[[#This Row],[TIB corriente (%EA) por SFC]])^(1/12)-1","v":1.5309470499731193E-2},{"$f":"(1+Intereses[[#This Row],[Tasa Legal Usura (%EA)]])^(1/12)-1","v":2.2104450593615876E-2}]
["2002-06-01","2002-06-30",0.1996,0.2994,30,{"$f":"(1+Intereses[[#This Row],[TIB corriente (%EA) por SFC]])^(1/12)-1","v":1.5281263149168334E-2},{"$f":"(1+Intereses[[#This Row],[Tasa Legal Usura (%EA)]])^(1/12)-1","v":2.2065130565586122E-2}]
["2002-07-01","2002-07-31",0.19769999999999999,0.29654999999999998,31,{"$f":"(1+Intereses[[#This Row],[TIB corriente (%EA) por SFC]])^(1/12)-1","v":1.5147160380537761E-2},{"$f":"(1+Intereses[[#This Row],[Tasa Legal Usura (%EA)]])^(1/12)-1","v":2.1878132850398968E-2}]
["2002-08-01","2002-08-31",0.2001,0.30015000000000003,31,{"$f":"(1+Intereses[[#This Row],[TIB corriente (%EA) por SFC]])^(1/12)-1","v":1.531652099065739E-2},{"$f":"(1+Intereses[[#This Row],[Tasa Legal Usura (%EA)]])^(1/12)-1","v":2.2114278001317489E-2}]
["2002-09-01","2002-09-30",0.20180000000000001,0.30270000000000002,30,{"$f":"(1+Intereses[[#This Row],[TIB corriente (%EA) por SFC]])^(1/12)-1","v":1.5436297013912359E-2},{"$f":"(1+Intereses[[#This Row],[Tasa Legal Usura (%EA)]])^(1/12)-1","v":2.2281185112344559E-2}]
["2002-10-01","2002-10-31",0.20300000000000001,0.30449999999999999,31,{"$f":"(1+Intereses[[#This Row],[TIB corriente (%EA) por SFC]])^(1/12)-1","v":1.552075132261721E-2},{"$f":"(1+Intereses[[#This Row],[Tasa Legal Usura (%EA)]])^(1/12)-1","v":2.2398821676248071E-2}]
["2002-11-01","2002-11-30",0.1976,0.2964,30,{"$f":"(1+Intereses[[#This Row],[TIB corriente (%EA) por SFC]])^(1/12)-1","v":1.5140096939429082E-2},{"$f":"(1+Intereses[[#This Row],[Tasa Legal Usura (%EA)]])^(1/12)-1","v":2.1868280431264653E-2}]
["2002-12-01","2002-12-31",0.19689999999999999,0.29535,31,{"$f":"(1+Intereses[[#This Row],[TIB corriente (%EA) por SFC]])^(1/12)-1","v":1.5090637708049526E-2},{"$f":"(1+Intereses[[#This Row],[Tasa Legal Usura (%EA)]])^(1/12)-1","v":2.1799284223442461E-2}]
["2003-01-01","2003-01-31",0.19639999999999999,0.29459999999999997,31,{"$f":"(1+Intereses[[#This Row],[TIB corriente (%EA) por SFC]])^(1/12)-1","v":1.5055293449068197E-2},{"$f":"(1+Intereses[[#This Row],[Tasa Legal Usura (%EA)]])^(1/12)-1","v":2.174996982280808E-2}]
["2003-02-01","2003-02-28",0.1978,0.29670000000000002,28,{"$f":"(1+Intereses[[#This Row],[TIB corriente (%EA) por SFC]])^(1/12)-1","v":1.5154223281062418E-2},{"$f":"(1+Intereses[[#This Row],[Tasa Legal Usura (%EA)]])^(1/12)-1","v":2.1887984224732815E-2}]
["2003-03-01","2003-03-31",0.19489999999999999,0.29235,31,{"$f":"(1+Intereses[[#This Row],[TIB corriente (%EA) por SFC]])^(1/12)-1","v":1.4949179372142352E-2},{"$f":"(1+Intereses[[#This Row],[Tasa Legal Usura (%EA)]])^(1/12)-1","v":2.1601869331581591E-2}]
["2003-04-01","2003-04-30",0.1981,0.29715000000000003,30,{"$f":"(1+Intereses[[#This Row],[TIB corriente (%EA) por SFC]])^(1/12)-1","v":1.5175408739998009E-2},{"$f":"(1+Intereses[[#This Row],[Tasa Legal Usura (%EA)]])^(1/12)-1","v":2.1917532081249247E-2}]
["2003-05-01","2003-05-31",0.19889999999999999,0.29835,31,{"$f":"(1+Intereses[[#This Row],[TIB corriente (%EA) por SFC]])^(1/12)-1","v":1.5231879533020853E-2},{"$f":"(1+Intereses[[#This Row],[Tasa Legal Usura (%EA)]])^(1/12)-1","v":2.1996280451781258E-2}]
["2003-06-01","2003-06-30",0.192,0.28800000000000003,30,{"$f":"(1+Intereses[[#This Row],[TIB corriente (%EA) por SFC]])^(1/12)-1","v":1.4743678786836689E-2},{"$f":"(1+Intereses[[#This Row],[Tasa Legal Usura (%EA)]])^(1/12)-1","v":2.1314870275334519E-2}]
["2003-07-01","2003-07-31",0.19439999999999999,0.29159999999999997,31,{"$f":"(1+Intereses[[#This Row],[TIB corriente (%EA) por SFC]])^(1/12)-1","v":1.4913780876947058E-2},{"$f":"(1+Intereses[[#This Row],[Tasa Legal Usura (%EA)]])^(1/12)-1","v":2.1552449974195476E-2}]
["2003-08-01","2003-08-31",0.1988,0.29820000000000002,31,{"$f":"(1+Intereses[[#This Row],[TIB corriente (%EA) por SFC]])^(1/12)-1","v":1.522482257321478E-2},{"$f":"(1+Intereses[[#This Row],[Tasa Legal Usura (%EA)]])^(1/12)-1","v":2.1986440554979447E-2}]
["2003-09-01","2003-09-30",0.20119999999999999,0.30179999999999996,30,{"$f":"(1+Intereses[[#This Row],[TIB corriente (%EA) por SFC]])^(1/12)-1","v":1.5394040867849235E-2},{"$f":"(1+Intereses[[#This Row],[Tasa Legal Usura (%EA)]])^(1/12)-1","v":2.22223109452242E-2}]
["2003-10-01","2003-10-31",0.20039999999999999,0.30059999999999998,31,{"$f":"(1+Intereses[[#This Row],[TIB corriente (%EA) por SFC]])^(1/12)-1","v":1.5337669232697859E-2},{"$f":"(1+Intereses[[#This Row],[Tasa Legal Usura (%EA)]])^(1/12)-1","v":2.2143753989766646E-2}]
["2003-11-01","2003-11-30",0.19869999999999999,0.29799999999999999,30,{"$f":"(1+Intereses[[#This Row],[TIB corriente (%EA) por SFC]])^(1/12)-1","v":1.5217765073775036E-2},{"$f":"(1+Intereses[[#This Row],[Tasa Legal Usura (%EA)]])^(1/12)-1","v":2.1973319071248998E-2}]
["2003-12-01","2003-12-31",0.1981,0.29715000000000003,31,{"$f":"(1+Intereses[[#This Row],[TIB corriente (%EA) por SFC]])^(1/12)-1","v":1.5175408739998009E-2},{"$f":"(1+Intereses[[#This Row],[Tasa Legal Usura (%EA)]])^(1/12)-1","v":2.1917532081249247E-2}]
["2004-01-01","2004-01-31",0.19670000000000001,0.29499999999999998,31,{"$f":"(1+Intereses[[#This Row],[TIB corriente (%EA) por SFC]])^(1/12)-1","v":1.5076501628893846E-2},{"$f":"(1+Intereses[[#This Row],[Tasa Legal Usura (%EA)]])^(1/12)-1","v":2.1776274094511106E-2}]
["2004-02-01","2004-02-29",0.19739999999999999,0.29609999999999997,29,{"$f":"(1+Intereses[[#This Row],[TIB corriente (%EA) por SFC]])^(1/12)-1","v":1.5125968435114157E-2},{"$f":"(1+Intereses[[#This Row],[Tasa Legal Usura (%EA)]])^(1/12)-1","v":2.1848572457668247E-2}]
["2004-03-01","2004-03-31",0.19800000000000001,0.29700000000000004,31,{"$f":"(1+Intereses[[#This Row],[TIB corriente (%EA) por SFC]])^(1/12)-1","v":1.5168347460706055E-2},{"$f":"(1+Intereses[[#This Row],[Tasa Legal Usura (%EA)]])^(1/12)-1","v":2.1907683839926584E-2}]
["2004-04-01","2004-04-30",0.1978,0.29670000000000002,30,{"$f":"(1+Intereses[[#This Row],[TIB corriente (%EA) por SFC]])^(1/12)-1","v":1.5154223281062418E-2},{"$f":"(1+Intereses[[#This Row],[Tasa Legal Usura (%EA)]])^(1/12)-1","v":2.1887984224732815E-2}]
["2004-05-01","2004-05-31",0.1971,0.29559999999999997,31,{"$f":"(1+Intereses[[#This Row],[TIB corriente (%EA) por SFC]])^(1/12)-1","v":1.5104771622098889E-2},{"$f":"(1+Intereses[[#This Row],[Tasa Legal Usura (%EA)]])^(1/12)-1","v":2.1815716540796171E-2}]
["2004-06-01","2004-06-30",0.19670000000000001,0.29499999999999998,30,{"$f":"(1+Intereses[[#This Row],[TIB corriente (%EA) por SFC]])^(1/12)-1","v":1.5076501628893846E-2},{"$f":"(1+Intereses[[#This Row],[Tasa Legal Usura (%EA)]])^(1/12)-1","v":2.1776274094511106E-2}]
["2004-07-01","2004-07-31",0.19439999999999999,0.29159999999999997,31,{"$f":"(1+Intereses[[#This Row],[TIB corriente (%EA) por SFC]])^(1/12)-1","v":1.4913780876947058E-2},{"$f":"(1+Intereses[[#This Row],[Tasa Legal Usura (%EA)]])^(1/12)-1","v":2.1552449974195476E-2}]
["2004-08-01","2004-08-31",0.1928,0.28920000000000001,31,{"$f":"(1+Intereses[[#This Row],[TIB corriente (%EA) por SFC]])^(1/12)-1","v":1.4800414338908885E-2},{"$f":"(1+Intereses[[#This Row],[Tasa Legal Usura (%EA)]])^(1/12)-1","v":2.1394131067975497E-2}]
["2004-09-01","2004-09-30",0.19500000000000001,0.29249999999999998,30,{"$f":"(1+Intereses[[#This Row],[TIB corriente (%EA) por SFC]])^(1/12)-1","v":1.4956257441789633E-2},{"$f":"(1+Intereses[[#This Row],[Tasa Legal Usura (%EA)]])^(1/12)-1","v":2.1611750048168954E-2}]
["2004-10-01","2004-10-31",0.19089999999999999,0.2863,31,{"$f":"(1+Intereses[[#This Row],[TIB corriente (%EA) por SFC]])^(1/12)-1","v":1.4665610383646221E-2},{"$f":"(1+Intereses[[#This Row],[Tasa Legal Usura (%EA)]])^(1/12)-1","v":2.1202468199150504E-2}]
["2004-11-01","2004-11-30",0.19589999999999999,0.29385,30,{"$f":"(1+Intereses[[#This Row],[TIB corriente (%EA) por SFC]])^(1/12)-1","v":1.5019935647328397E-2},{"$f":"(1+Intereses[[#This Row],[Tasa Legal Usura (%EA)]])^(1/12)-1","v":2.170062922670235E-2}]
["2004-12-01","2004-12-31",0.19489999999999999,0.2923,31,{"$f":"(1+Intereses[[#This Row],[TIB corriente (%EA) por SFC]])^(1/12)-1","v":1.4949179372142352E-2},{"$f":"(1+Intereses[[#This Row],[Tasa Legal Usura (%EA)]])^(1/12)-1","v":2.1598575525771047E-2}]
["2005-01-01","2005-01-31",0.19450000000000001,0.29175000000000001,31,{"$f":"(1+Intereses[[#This Row],[TIB corriente (%EA) por SFC]])^(1/12)-1","v":1.492086166253781E-2},{"$f":"(1+Intereses[[#This Row],[Tasa Legal Usura (%EA)]])^(1/12)-1","v":2.1562335949712796E-2}]
["2005-02-01","2005-02-28",0.19400000000000001,0.29100000000000004,28,{"$f":"(1+Intereses[[#This Row],[TIB corriente (%EA) por SFC]])^(1/12)-1","v":1.48854522992099E-2},{"$f":"(1+Intereses[[#This Row],[Tasa Legal Usura (%EA)]])^(1/12)-1","v":2.1512895544899102E-2}]
["2005-03-01","2005-03-31",0.1915,0.28725000000000001,31,{"$f":"(1+Intereses[[#This Row],[TIB corriente (%EA) por SFC]])^(1/12)-1","v":1.4708201339286076E-2},{"$f":"(1+Intereses[[#This Row],[Tasa Legal Usura (%EA)]])^(1/12)-1","v":2.1265297898246827E-2}]
["2005-04-01","2005-04-30",0.19189999999999999,0.28784999999999999,30,{"$f":"(1+Intereses[[#This Row],[TIB corriente (%EA) por SFC]])^(1/12)-1","v":1.4736584388776341E-2},{"$f":"(1+Intereses[[#This Row],[Tasa Legal Usura (%EA)]])^(1/12)-1","v":2.1304957917130052E-2}]
["2005-05-01","2005-05-31",0.19020000000000001,0.2853,31,{"$f":"(1+Intereses[[#This Row],[TIB corriente (%EA) por SFC]])^(1/12)-1","v":1.4615896067603273E-2},{"$f":"(1+Intereses[[#This Row],[Tasa Legal Usura (%EA)]])^(1/12)-1","v":2.1136285703942326E-2}]
["2005-06-01","2005-06-30",0.1885,0.28275,30,{"$f":"(1+Intereses[[#This Row],[TIB corriente (%EA) por SFC]])^(1/12)-1","v":1.4495049625187661E-2},{"$f":"(1+Intereses[[#This Row],[Tasa Legal Usura (%EA)]])^(1/12)-1","v":2.0967306457055912E-2}]
["2005-07-01","2005-07-31",0.185,0.27749999999999997,31,{"$f":"(1+Intereses[[#This Row],[TIB corriente (%EA) por SFC]])^(1/12)-1","v":1.4245748385667056E-2},{"$f":"(1+Intereses[[#This Row],[Tasa Legal Usura (%EA)]])^(1/12)-1","v":2.0618436227328729E-2}]
["2005-08-01","2005-08-31",0.18240000000000001,0.27360000000000001,31,{"$f":"(1+Intereses[[#This Row],[TIB corriente (%EA) por SFC]])^(1/12)-1","v":1.4060115857979394E-2},{"$f":"(1+Intereses[[#This Row],[Tasa Legal Usura (%EA)]])^(1/12)-1","v":2.0358423686610339E-2}]
["2005-09-01","2005-09-30",0.1822,0.27329999999999999,30,{"$f":"(1+Intereses[[#This Row],[TIB corriente (%EA) por SFC]])^(1/12)-1","v":1.4045820938883846E-2},{"$f":"(1+Intereses[[#This Row],[Tasa Legal Usura (%EA)]])^(1/12)-1","v":2.0338392503352676E-2}]
["2005-10-01","2005-10-31",0.17929999999999999,0.26894999999999997,31,{"$f":"(1+Intereses[[#This Row],[TIB corriente (%EA) por SFC]])^(1/12)-1","v":1.3838295112351906E-2},{"$f":"(1+Intereses[[#This Row],[Tasa Legal Usura (%EA)]])^(1/12)-1","v":2.0047453144172334E-2}]
["2005-11-01","2005-11-30",0.17810000000000001,0.26715,30,{"$f":"(1+Intereses[[#This Row],[TIB corriente (%EA) por SFC]])^(1/12)-1","v":1.3752285493512595E-2},{"$f":"(1+Intereses[[#This Row],[Tasa Legal Usura (%EA)]])^(1/12)-1","v":1.9926796944283565E-2}]
["2005-12-01","2005-12-31",0.1749,0.26234999999999997,31,{"$f":"(1+Intereses[[#This Row],[TIB corriente (%EA) por SFC]])^(1/12)-1","v":1.3522533283860216E-2},{"$f":"(1+Intereses[[#This Row],[Tasa Legal Usura (%EA)]])^(1/12)-1","v":1.9604277315056429E-2}]
["2006-01-01","2006-01-31",0.17349999999999999,0.26024999999999998,31,{"$f":"(1+Intereses[[#This Row],[TIB corriente (%EA) por SFC]])^(1/12)-1","v":1.3421836268473486E-2},{"$f":"(1+Intereses[[#This Row],[Tasa Legal Usura (%EA)]])^(1/12)-1","v":1.9462821347354664E-2}]
["2006-02-01","2006-02-28",0.17510000000000001,0.26264999999999999,28,{"$f":"(1+Intereses[[#This Row],[TIB corriente (%EA) por SFC]])^(1/12)-1","v":1.3536909592000379E-2},{"$f":"(1+Intereses[[#This Row],[Tasa Legal Usura (%EA)]])^(1/12)-1","v":1.9624467698764914E-2}]
["2006-03-01","2006-03-31",0.17249999999999999,0.25874999999999998,31,{"$f":"(1+Intereses[[#This Row],[TIB corriente (%EA) por SFC]])^(1/12)-1","v":1.33498423852485E-2},{"$f":"(1+Intereses[[#This Row],[Tasa Legal Usura (%EA)]])^(1/12)-1","v":1.9361649021546912E-2}]
["2006-04-01","2006-04-30",0.16750000000000001,0.25125000000000003,30,{"$f":"(1+Intereses[[#This Row],[TIB corriente (%EA) por SFC]])^(1/12)-1","v":1.2989026514275581E-2},{"$f":"(1+Intereses[[#This Row],[Tasa Legal Usura (%EA)]])^(1/12)-1","v":1.8854123673782031E-2}]
["2006-05-01","2006-05-31",0.16070000000000001,0.24105000000000001,31,{"$f":"(1+Intereses[[#This Row],[TIB corriente (%EA) por SFC]])^(1/12)-1","v":1.2496037032953655E-2},{"$f":"(1+Intereses[[#This Row],[Tasa Legal Usura (%EA)]])^(1/12)-1","v":1.815939547443568E-2}]
["2006-06-01","2006-06-30",0.15609999999999999,0.23414999999999997,30,{"$f":"(1+Intereses[[#This Row],[TIB corriente (%EA) por SFC]])^(1/12)-1","v":1.2161040676234691E-2},{"$f":"(1+Intereses[[#This Row],[Tasa Legal Usura (%EA)]])^(1/12)-1","v":1.7686458185695697E-2}]
["2006-07-01","2006-07-31",0.15079999999999999,0.22619999999999998,31,{"$f":"(1+Intereses[[#This Row],[TIB corriente (%EA) por SFC]])^(1/12)-1","v":1.177354836822686E-2},{"$f":"(1+Intereses[[#This Row],[Tasa Legal Usura (%EA)]])^(1/12)-1","v":1.7138537678886179E-2}]
["2006-08-01","2006-08-31",0.1502,0.2253,31,{"$f":"(1+Intereses[[#This Row],[TIB corriente (%EA) por SFC]])^(1/12)-1","v":1.1729578286258091E-2},{"$f":"(1+Intereses[[#This Row],[Tasa Legal Usura (%EA)]])^(1/12)-1","v":1.7076303895518841E-2}]
["2006-09-01","2006-09-30",0.15049999999999999,0.22575000000000001,30,{"$f":"(1+Intereses[[#This Row],[TIB corriente (%EA) por SFC]])^(1/12)-1","v":1.1751565954746246E-2},{"$f":"(1+Intereses[[#This Row],[Tasa Legal Usura (%EA)]])^(1/12)-1","v":1.7107426023065475E-2}]
["2006-10-01","2006-10-31",0.1507,0.22605,31,{"$f":"(1+Intereses[[#This Row],[TIB corriente (%EA) por SFC]])^(1/12)-1","v":1.1766221480794314E-2},{"$f":"(1+Intereses[[#This Row],[Tasa Legal Usura (%EA)]])^(1/12)-1","v":1.7128168290016177E-2}]
["2006-11-01","2006-11-30",0.1507,0.22605,30,{"$f":"(1+Intereses[[#This Row],[TIB corriente (%EA) por SFC]])^(1/12)-1","v":1.1766221480794314E-2},{"$f":"(1+Intereses[[#This Row],[Tasa Legal Usura (%EA)]])^(1/12)-1","v":1.7128168290016177E-2}]
["2006-12-01","2006-12-31",0.1507,0.22605,31,{"$f":"(1+Intereses[[#This Row],[TIB corriente (%EA) por SFC]])^(1/12)-1","v":1.1766221480794314E-2},{"$f":"(1+Intereses[[#This Row],[Tasa Legal Usura (%EA)]])^(1/12)-1","v":1.7128168290016177E-2}]
["2007-01-01","2007-01-31",0.13830000000000001,0.20749999999999999,31,{"$f":"(1+Intereses[[#This Row],[TIB corriente (%EA) por SFC]])^(1/12)-1","v":1.0853132663596332E-2},{"$f":"(1+Intereses[[#This Row],[Tasa Legal Usura (%EA)]])^(1/12)-1","v":1.5836768725148165E-2}]
["2007-02-01","2007-02-28",0.13830000000000001,0.20749999999999999,28,{"$f":"(1+Intereses[[#This Row],[TIB corriente (%EA) por SFC]])^(1/12)-1","v":1.0853132663596332E-2},{"$f":"(1+Intereses[[#This Row],[Tasa Legal Usura (%EA)]])^(1/12)-1","v":1.5836768725148165E-2}]
["2007-03-01","2007-03-31",0.13830000000000001,0.20749999999999999,31,{"$f":"(1+Intereses[[#This Row],[TIB corriente (%EA) por SFC]])^(1/12)-1","v":1.0853132663596332E-2},{"$f":"(1+Intereses[[#This Row],[Tasa Legal Usura (%EA)]])^(1/12)-1","v":1.5836768725148165E-2}]
["2007-04-01","2007-04-30",0.16750000000000001,0.25119999999999998,30,{"$f":"(1+Intereses[[#This Row],[TIB corriente (%EA) por SFC]])^(1/12)-1","v":1.2989026514275581E-2},{"$f":"(1+Intereses[[#This Row],[Tasa Legal Usura (%EA)]])^(1/12)-1","v":1.885073082401667E-2}]
["2007-05-01","2007-05-31",0.16750000000000001,0.25119999999999998,31,{"$f":"(1+Intereses[[#This Row],[TIB corriente (%EA) por SFC]])^(1/12)-1","v":1.2989026514275581E-2},{"$f":"(1+Intereses[[#This Row],[Tasa Legal Usura (%EA)]])^(1/12)-1","v":1.885073082401667E-2}]
["2007-06-01","2007-06-30",0.16750000000000001,0.25119999999999998,30,{"$f":"(1+Intereses[[#This Row],[TIB corriente (%EA) por SFC]])^(1/12)-1","v":1.2989026514275581E-2},{"$f":"(1+Intereses[[#This Row],[Tasa Legal Usura (%EA)]])^(1/12)-1","v":1.885073082401667E-2}]
["2007-07-01","2007-07-31",0.19009999999999999,0.28510000000000002,31,{"$f":"(1+Intereses[[#This Row],[TIB corriente (%EA) por SFC]])^(1/12)-1","v":1.4608791834631596E-2},{"$f":"(1+Intereses[[#This Row],[Tasa Legal Usura (%EA)]])^(1/12)-1","v":2.1123043541027675E-2}]
["2007-08-01","2007-08-31",0.19009999999999999,0.28510000000000002,31,{"$f":"(1+Intereses[[#This Row],[TIB corriente (%EA) por SFC]])^(1/12)-1","v":1.4608791834631596E-2},{"$f":"(1+Intereses[[#This Row],[Tasa Legal Usura (%EA)]])^(1/12)-1","v":2.1123043541027675E-2}]
["2007-09-01","2007-09-30",0.19009999999999999,0.28510000000000002,30,{"$f":"(1+Intereses[[#This Row],[TIB corriente (%EA) por SFC]])^(1/12)-1","v":1.4608791834631596E-2},{"$f":"(1+Intereses[[#This Row],[Tasa Legal Usura (%EA)]])^(1/12)-1","v":2.1123043541027675E-2}]
["2007-10-01","2007-10-31",0.21260000000000001,0.31890000000000002,31,{"$f":"(1+Intereses[[#This Row],[TIB corriente (%EA) por SFC]])^(1/12)-1","v":1.6193619344738064E-2},{"$f":"(1+Intereses[[#This Row],[Tasa Legal Usura (%EA)]])^(1/12)-1","v":2.3334593797462055E-2}]
["2007-11-01","2007-11-30",0.21260000000000001,0.31890000000000002,30,{"$f":"(1+Intereses[[#This Row],[TIB corriente (%EA) por SFC]])^(1/12)-1","v":1.6193619344738064E-2},{"$f":"(1+Intereses[[#This Row],[Tasa Legal Usura (%EA)]])^(1/12)-1","v":2.3334593797462055E-2}]
["2007-12-01","2007-12-31",0.21260000000000001,0.31890000000000002,31,{"$f":"(1+Intereses[[#This Row],[TIB corriente (%EA) por SFC]])^(1/12)-1","v":1.6193619344738064E-2},{"$f":"(1+Intereses[[#This Row],[Tasa Legal Usura (%EA)]])^(1/12)-1","v":2.3334593797462055E-2}]
["2008-01-01","2008-01-31",0.21829999999999999,0.32745000000000002,31,{"$f":"(1+Intereses[[#This Row],[TIB corriente (%EA) por SFC]])^(1/12)-1","v":1.6590827938177899E-2},{"$f":"(1+Intereses[[#This Row],[Tasa Legal Usura (%EA)]])^(1/12)-1","v":2.3885786784519469E-2}]
["2008-02-01","2008-02-29",0.21829999999999999,0.32745000000000002,29,{"$f":"(1+Intereses[[#This Row],[TIB corriente (%EA) por SFC]])^(1/12)-1","v":1.6590827938177899E-2},{"$f":"(1+Intereses[[#This Row],[Tasa Legal Usura (%EA)]])^(1/12)-1","v":2.3885786784519469E-2}]
["2008-03-01","2008-03-31",0.21829999999999999,0.32745000000000002,31,{"$f":"(1+Intereses[[#This Row],[TIB corriente (%EA) por SFC]])^(1/12)-1","v":1.6590827938177899E-2},{"$f":"(1+Intereses[[#This Row],[Tasa Legal Usura (%EA)]])^(1/12)-1","v":2.3885786784519469E-2}]
["2008-04-01","2008-04-30",0.21920000000000001,0.32879999999999998,30,{"$f":"(1+Intereses[[#This Row],[TIB corriente (%EA) por SFC]])^(1/12)-1","v":1.6653389301531707E-2},{"$f":"(1+Intereses[[#This Row],[Tasa Legal Usura (%EA)]])^(1/12)-1","v":2.3972519614323895E-2}]
["2008-05-01","2008-05-31",0.21920000000000001,0.32879999999999998,31,{"$f":"(1+Intereses[[#This Row],[TIB corriente (%EA) por SFC]])^(1/12)-1","v":1.6653389301531707E-2},{"$f":"(1+Intereses[[#This Row],[Tasa Legal Usura (%EA)]])^(1/12)-1","v":2.3972519614323895E-2}]
["2008-06-01","2008-06-30",0.21920000000000001,0.32879999999999998,30,{"$f":"(1+Intereses[[#This Row],[TIB corriente (%EA) por SFC]])^(1/12)-1","v":1.6653389301531707E-2},{"$f":"(1+Intereses[[#This Row],[Tasa Legal Usura (%EA)]])^(1/12)-1","v":2.3972519614323895E-2}]
["2008-07-01","2008-07-31",0.21510000000000001,0.32264999999999999,31,{"$f":"(1+Intereses[[#This Row],[TIB corriente (%EA) por SFC]])^(1/12)-1","v":1.6368043900965246E-2},{"$f":"(1+Intereses[[#This Row],[Tasa Legal Usura (%EA)]])^(1/12)-1","v":2.3576747162256773E-2}]
["2008-08-01","2008-08-31",0.21510000000000001,0.32264999999999999,31,{"$f":"(1+Intereses[[#This Row],[TIB corriente (%EA) por SFC]])^(1/12)-1","v":1.6368043900965246E-2},{"$f":"(1+Intereses[[#This Row],[Tasa Legal Usura (%EA)]])^(1/12)-1","v":2.3576747162256773E-2}]
["2008-09-01","2008-09-30",0.21510000000000001,0.32264999999999999,30,{"$f":"(1+Intereses[[#This Row],[TIB corriente (%EA) por SFC]])^(1/12)-1","v":1.6368043900965246E-2},{"$f":"(1+Intereses[[#This Row],[Tasa Legal Usura (%EA)]])^(1/12)-1","v":2.3576747162256773E-2}]
["2008-10-01","2008-10-31",0.2102,0.31530000000000002,31,{"$f":"(1+Intereses[[#This Row],[TIB corriente (%EA) por SFC]])^(1/12)-1","v":1.602586136712425E-2},{"$f":"(1+Intereses[[#This Row],[Tasa Legal Usura (%EA)]])^(1/12)-1","v":2.3101532064367492E-2}]
["2008-11-01","2008-11-30",0.2102,0.31530000000000002,30,{"$f":"(1+Intereses[[#This Row],[TIB corriente (%EA) por SFC]])^(1/12)-1","v":1.602586136712425E-2},{"$f":"(1+Intereses[[#This Row],[Tasa Legal Usura (%EA)]])^(1/12)-1","v":2.3101532064367492E-2}]
["2008-12-01","2008-12-31",0.2102,0.31530000000000002,31,{"$f":"(1+Intereses[[#This Row],[TIB corriente (%EA) por SFC]])^(1/12)-1","v":1.602586136712425E-2},{"$f":"(1+Intereses[[#This Row],[Tasa Legal Usura (%EA)]])^(1/12)-1","v":2.3101532064367492E-2}]
["2009-01-01","2009-01-31",0.20469999999999999,0.30704999999999999,31,{"$f":"(1+Intereses[[#This Row],[TIB corriente (%EA) por SFC]])^(1/12)-1","v":1.5640262830622254E-2},{"$f":"(1+Intereses[[#This Row],[Tasa Legal Usura (%EA)]])^(1/12)-1","v":2.2565219024870409E-2}]
["2009-02-01","2009-02-28",0.20469999999999999,0.30704999999999999,28,{"$f":"(1+Intereses[[#This Row],[TIB corriente (%EA) por SFC]])^(1/12)-1","v":1.5640262830622254E-2},{"$f":"(1+Intereses[[#This Row],[Tasa Legal Usura (%EA)]])^(1/12)-1","v":2.2565219024870409E-2}]
["2009-03-01","2009-03-31",0.20469999999999999,0.30704999999999999,31,{"$f":"(1+Intereses[[#This Row],[TIB corriente (%EA) por SFC]])^(1/12)-1","v":1.5640262830622254E-2},{"$f":"(1+Intereses[[#This Row],[Tasa Legal Usura (%EA)]])^(1/12)-1","v":2.2565219024870409E-2}]
["2009-04-01","2009-04-30",0.20280000000000001,0.30420000000000003,30,{"$f":"(1+Intereses[[#This Row],[TIB corriente (%EA) por SFC]])^(1/12)-1","v":1.5506680968771391E-2},{"$f":"(1+Intereses[[#This Row],[Tasa Legal Usura (%EA)]])^(1/12)-1","v":2.2379225919199275E-2}]
["2009-05-01","2009-05-31",0.20280000000000001,0.30420000000000003,31,{"$f":"(1+Intereses[[#This Row],[TIB corriente (%EA) por SFC]])^(1/12)-1","v":1.5506680968771391E-2},{"$f":"(1+Intereses[[#This Row],[Tasa Legal Usura (%EA)]])^(1/12)-1","v":2.2379225919199275E-2}]
["2009-06-01","2009-06-30",0.20280000000000001,0.30420000000000003,30,{"$f":"(1+Intereses[[#This Row],[TIB corriente (%EA) por SFC]])^(1/12)-1","v":1.5506680968771391E-2},{"$f":"(1+Intereses[[#This Row],[Tasa Legal Usura (%EA)]])^(1/12)-1","v":2.2379225919199275E-2}]
["2009-07-01","2009-07-31",0.1865,0.27975,31,{"$f":"(1+Intereses[[#This Row],[TIB corriente (%EA) por SFC]])^(1/12)-1","v":1.4352674312893887E-2},{"$f":"(1+Intereses[[#This Row],[Tasa Legal Usura (%EA)]])^(1/12)-1","v":2.0768112667255201E-2}]
["2009-08-01","2009-08-31",0.1865,0.27975,31,{"$f":"(1+Intereses[[#This Row],[TIB corriente (%EA) por SFC]])^(1/12)-1","v":1.4352674312893887E-2},{"$f":"(1+Intereses[[#This Row],[Tasa Legal Usura (%EA)]])^(1/12)-1","v":2.0768112667255201E-2}]
["2009-09-01","2009-09-30",0.1865,0.27975,30,{"$f":"(1+Intereses[[#This Row],[TIB corriente (%EA) por SFC]])^(1/12)-1","v":1.4352674312893887E-2},{"$f":"(1+Intereses[[#This Row],[Tasa Legal Usura (%EA)]])^(1/12)-1","v":2.0768112667255201E-2}]
["2009-10-01","2009-10-31",0.17280000000000001,0.25919999999999999,31,{"$f":"(1+Intereses[[#This Row],[TIB corriente (%EA) por SFC]])^(1/12)-1","v":1.3371446458286362E-2},{"$f":"(1+Intereses[[#This Row],[Tasa Legal Usura (%EA)]])^(1/12)-1","v":1.9392012318319551E-2}]
["2009-11-01","2009-11-30",0.17280000000000001,0.25919999999999999,30,{"$f":"(1+Intereses[[#This Row],[TIB corriente (%EA) por SFC]])^(1/12)-1","v":1.3371446458286362E-2},{"$f":"(1+Intereses[[#This Row],[Tasa Legal Usura (%EA)]])^(1/12)-1","v":1.9392012318319551E-2}]
["2009-12-01","2009-12-31",0.17280000000000001,0.25919999999999999,31,{"$f":"(1+Intereses[[#This Row],[TIB corriente (%EA) por SFC]])^(1/12)-1","v":1.3371446458286362E-2},{"$f":"(1+Intereses[[#This Row],[Tasa Legal Usura (%EA)]])^(1/12)-1","v":1.9392012318319551E-2}]
["2010-01-01","2010-01-31",0.16139999999999999,0.24209999999999998,31,{"$f":"(1+Intereses[[#This Row],[TIB corriente (%EA) por SFC]])^(1/12)-1","v":1.2546908015547587E-2},{"$f":"(1+Intereses[[#This Row],[Tasa Legal Usura (%EA)]])^(1/12)-1","v":1.8231152792165028E-2}]
["2010-02-01","2010-02-28",0.16139999999999999,0.24209999999999998,28,{"$f":"(1+Intereses[[#This Row],[TIB corriente (%EA) por SFC]])^(1/12)-1","v":1.2546908015547587E-2},{"$f":"(1+Intereses[[#This Row],[Tasa Legal Usura (%EA)]])^(1/12)-1","v":1.8231152792165028E-2}]
["2010-03-01","2010-03-31",0.16139999999999999,0.24209999999999998,31,{"$f":"(1+Intereses[[#This Row],[TIB corriente (%EA) por SFC]])^(1/12)-1","v":1.2546908015547587E-2},{"$f":"(1+Intereses[[#This Row],[Tasa Legal Usura (%EA)]])^(1/12)-1","v":1.8231152792165028E-2}]
["2010-04-01","2010-04-30",0.15310000000000001,0.22965000000000002,30,{"$f":"(1+Intereses[[#This Row],[TIB corriente (%EA) por SFC]])^(1/12)-1","v":1.1941905902565386E-2},{"$f":"(1+Intereses[[#This Row],[Tasa Legal Usura (%EA)]])^(1/12)-1","v":1.7376713266464616E-2}]
["2010-05-01","2010-05-31",0.15310000000000001,0.22965000000000002,31,{"$f":"(1+Intereses[[#This Row],[TIB corriente (%EA) por SFC]])^(1/12)-1","v":1.1941905902565386E-2},{"$f":"(1+Intereses[[#This Row],[Tasa Legal Usura (%EA)]])^(1/12)-1","v":1.7376713266464616E-2}]
["2010-06-01","2010-06-30",0.15310000000000001,0.22965000000000002,30,{"$f":"(1+Intereses[[#This Row],[TIB corriente (%EA) por SFC]])^(1/12)-1","v":1.1941905902565386E-2},{"$f":"(1+Intereses[[#This Row],[Tasa Legal Usura (%EA)]])^(1/12)-1","v":1.7376713266464616E-2}]
["2010-07-01","2010-07-31",0.14940000000000001,0.22410000000000002,31,{"$f":"(1+Intereses[[#This Row],[TIB corriente (%EA) por SFC]])^(1/12)-1","v":1.1670918792487051E-2},{"$f":"(1+Intereses[[#This Row],[Tasa Legal Usura (%EA)]])^(1/12)-1","v":1.6993260304198232E-2}]
["2010-08-01","2010-08-31",0.14940000000000001,0.22410000000000002,31,{"$f":"(1+Intereses[[#This Row],[TIB corriente (%EA) por SFC]])^(1/12)-1","v":1.1670918792487051E-2},{"$f":"(1+Intereses[[#This Row],[Tasa Legal Usura (%EA)]])^(1/12)-1","v":1.6993260304198232E-2}]
["2010-09-01","2010-09-30",0.14940000000000001,0.22410000000000002,30,{"$f":"(1+Intereses[[#This Row],[TIB corriente (%EA) por SFC]])^(1/12)-1","v":1.1670918792487051E-2},{"$f":"(1+Intereses[[#This Row],[Tasa Legal Usura (%EA)]])^(1/12)-1","v":1.6993260304198232E-2}]
["2010-10-01","2010-10-31",0.1421,0.21315000000000001,31,{"$f":"(1+Intereses[[#This Row],[TIB corriente (%EA) por SFC]])^(1/12)-1","v":1.1133915196060995E-2},{"$f":"(1+Intereses[[#This Row],[Tasa Legal Usura (%EA)]])^(1/12)-1","v":1.6232021011618469E-2}]
["2010-11-01","2010-11-30",0.1421,0.21315000000000001,30,{"$f":"(1+Intereses[[#This Row],[TIB corriente (%EA) por SFC]])^(1/12)-1","v":1.1133915196060995E-2},{"$f":"(1+Intereses[[#This Row],[Tasa Legal Usura (%EA)]])^(1/12)-1","v":1.6232021011618469E-2}]
["2010-12-01","2010-12-31",0.1421,0.21315000000000001,31,{"$f":"(1+Intereses[[#This Row],[TIB corriente (%EA) por SFC]])^(1/12)-1","v":1.1133915196060995E-2},{"$f":"(1+Intereses[[#This Row],[Tasa Legal Usura (%EA)]])^(1/12)-1","v":1.6232021011618469E-2}]
["2011-01-01","2011-01-31",0.15609999999999999,0.23414999999999997,31,{"$f":"(1+Intereses[[#This Row],[TIB corriente (%EA) por SFC]])^(1/12)-1","v":1.2161040676234691E-2},{"$f":"(1+Intereses[[#This Row],[Tasa Legal Usura (%EA)]])^(1/12)-1","v":1.7686458185695697E-2}]
["2011-02-01","2011-02-28",0.15609999999999999,0.23414999999999997,28,{"$f":"(1+Intereses[[#This Row],[TIB corriente (%EA) por SFC]])^(1/12)-1","v":1.2161040676234691E-2},{"$f":"(1+Intereses[[#This Row],[Tasa Legal Usura (%EA)]])^(1/12)-1","v":1.7686458185695697E-2}]
["2011-03-01","2011-03-31",0.15609999999999999,0.23414999999999997,31,{"$f":"(1+Intereses[[#This Row],[TIB corriente (%EA) por SFC]])^(1/12)-1","v":1.2161040676234691E-2},{"$f":"(1+Intereses[[#This Row],[Tasa Legal Usura (%EA)]])^(1/12)-1","v":1.7686458185695697E-2}]
["2011-04-01","2011-04-30",0.1769,0.26534999999999997,30,{"$f":"(1+Intereses[[#This Row],[TIB corriente (%EA) por SFC]])^(1/12)-1","v":1.3666195529381975E-2},{"$f":"(1+Intereses[[#This Row],[Tasa Legal Usura (%EA)]])^(1/12)-1","v":1.9805983531357541E-2}]
["2011-05-01","2011-05-31",0.1769,0.26534999999999997,31,{"$f":"(1+Intereses[[#This Row],[TIB corriente (%EA) por SFC]])^(1/12)-1","v":1.3666195529381975E-2},{"$f":"(1+Intereses[[#This Row],[Tasa Legal Usura (%EA)]])^(1/12)-1","v":1.9805983531357541E-2}]
["2011-06-01","2011-06-30",0.1769,0.26534999999999997,30,{"$f":"(1+Intereses[[#This Row],[TIB corriente (%EA) por SFC]])^(1/12)-1","v":1.3666195529381975E-2},{"$f":"(1+Intereses[[#This Row],[Tasa Legal Usura (%EA)]])^(1/12)-1","v":1.9805983531357541E-2}]
["2011-07-01","2011-07-31",0.18629999999999999,0.27944999999999998,31,{"$f":"(1+Intereses[[#This Row],[TIB corriente (%EA) por SFC]])^(1/12)-1","v":1.4338424684439577E-2},{"$f":"(1+Intereses[[#This Row],[Tasa Legal Usura (%EA)]])^(1/12)-1","v":2.0748169752558221E-2}]
["2011-08-01","2011-08-31",0.18629999999999999,0.27944999999999998,31,{"$f":"(1+Intereses[[#This Row],[TIB corriente (%EA) por SFC]])^(1/12)-1","v":1.4338424684439577E-2},{"$f":"(1+Intereses[[#This Row],[Tasa Legal Usura (%EA)]])^(1/12)-1","v":2.0748169752558221E-2}]
["2011-09-01","2011-09-30",0.18629999999999999,0.27944999999999998,30,{"$f":"(1+Intereses[[#This Row],[TIB corriente (%EA) por SFC]])^(1/12)-1","v":1.4338424684439577E-2},{"$f":"(1+Intereses[[#This Row],[Tasa Legal Usura (%EA)]])^(1/12)-1","v":2.0748169752558221E-2}]
["2011-10-01","2011-10-31",0.19389999999999999,0.29085,31,{"$f":"(1+Intereses[[#This Row],[TIB corriente (%EA) por SFC]])^(1/12)-1","v":1.4878368795495867E-2},{"$f":"(1+Intereses[[#This Row],[Tasa Legal Usura (%EA)]])^(1/12)-1","v":2.1503004304595841E-2}]
["2011-11-01","2011-11-30",0.19389999999999999,0.29085,30,{"$f":"(1+Intereses[[#This Row],[TIB corriente (%EA) por SFC]])^(1/12)-1","v":1.4878368795495867E-2},{"$f":"(1+Intereses[[#This Row],[Tasa Legal Usura (%EA)]])^(1/12)-1","v":2.1503004304595841E-2}]
["2011-12-01","2011-12-31",0.19389999999999999,0.29085,31,{"$f":"(1+Intereses[[#This Row],[TIB corriente (%EA) por SFC]])^(1/12)-1","v":1.4878368795495867E-2},{"$f":"(1+Intereses[[#This Row],[Tasa Legal Usura (%EA)]])^(1/12)-1","v":2.1503004304595841E-2}]
["2012-01-01","2012-01-31",0.19919999999999999,0.29879999999999995,31,{"$f":"(1+Intereses[[#This Row],[TIB corriente (%EA) por SFC]])^(1/12)-1","v":1.5253047175500578E-2},{"$f":"(1+Intereses[[#This Row],[Tasa Legal Usura (%EA)]])^(1/12)-1","v":2.2025793890954715E-2}]
["2012-02-01","2012-02-29",0.19919999999999999,0.29879999999999995,29,{"$f":"(1+Intereses[[#This Row],[TIB corriente (%EA) por SFC]])^(1/12)-1","v":1.5253047175500578E-2},{"$f":"(1+Intereses[[#This Row],[Tasa Legal Usura (%EA)]])^(1/12)-1","v":2.2025793890954715E-2}]
["2012-03-01","2012-03-31",0.19919999999999999,0.29879999999999995,31,{"$f":"(1+Intereses[[#This Row],[TIB corriente (%EA) por SFC]])^(1/12)-1","v":1.5253047175500578E-2},{"$f":"(1+Intereses[[#This Row],[Tasa Legal Usura (%EA)]])^(1/12)-1","v":2.2025793890954715E-2}]
["2012-04-01","2012-04-30",0.20519999999999999,0.30779999999999996,30,{"$f":"(1+Intereses[[#This Row],[TIB corriente (%EA) por SFC]])^(1/12)-1","v":1.5675383853549052E-2},{"$f":"(1+Intereses[[#This Row],[Tasa Legal Usura (%EA)]])^(1/12)-1","v":2.261410278917575E-2}]
["2012-05-01","2012-05-31",0.20519999999999999,0.30779999999999996,31,{"$f":"(1+Intereses[[#This Row],[TIB corriente (%EA) por SFC]])^(1/12)-1","v":1.5675383853549052E-2},{"$f":"(1+Intereses[[#This Row],[Tasa Legal Usura (%EA)]])^(1/12)-1","v":2.261410278917575E-2}]
["2012-06-01","2012-06-30",0.20519999999999999,0.30779999999999996,30,{"$f":"(1+Intereses[[#This Row],[TIB corriente (%EA) por SFC]])^(1/12)-1","v":1.5675383853549052E-2},{"$f":"(1+Intereses[[#This Row],[Tasa Legal Usura (%EA)]])^(1/12)-1","v":2.261410278917575E-2}]
["2012-07-01","2012-07-31",0.20860000000000001,0.31290000000000001,31,{"$f":"(1+Intereses[[#This Row],[TIB corriente (%EA) por SFC]])^(1/12)-1","v":1.5913853208319173E-2},{"$f":"(1+Intereses[[#This Row],[Tasa Legal Usura (%EA)]])^(1/12)-1","v":2.2945832503501462E-2}]
["2012-08-01","2012-08-31",0.20860000000000001,0.31290000000000001,31,{"$f":"(1+Intereses[[#This Row],[TIB corriente (%EA) por SFC]])^(1/12)-1","v":1.5913853208319173E-2},{"$f":"(1+Intereses[[#This Row],[Tasa Legal Usura (%EA)]])^(1/12)-1","v":2.2945832503501462E-2}]
["2012-09-01","2012-09-30",0.20860000000000001,0.31290000000000001,30,{"$f":"(1+Intereses[[#This Row],[TIB corriente (%EA) por SFC]])^(1/12)-1","v":1.5913853208319173E-2},{"$f":"(1+Intereses[[#This Row],[Tasa Legal Usura (%EA)]])^(1/12)-1","v":2.2945832503501462E-2}]
["2012-10-01","2012-10-31",0.2089,0.31335000000000002,31,{"$f":"(1+Intereses[[#This Row],[TIB corriente (%EA) por SFC]])^(1/12)-1","v":1.5934865087622763E-2},{"$f":"(1+Intereses[[#This Row],[Tasa Legal Usura (%EA)]])^(1/12)-1","v":2.2975046033702595E-2}]
["2012-11-01","2012-11-30",0.2089,0.31335000000000002,30,{"$f":"(1+Intereses[[#This Row],[TIB corriente (%EA) por SFC]])^(1/12)-1","v":1.5934865087622763E-2},{"$f":"(1+Intereses[[#This Row],[Tasa Legal Usura (%EA)]])^(1/12)-1","v":2.2975046033702595E-2}]
["2012-12-01","2012-12-31",0.2089,0.31335000000000002,31,{"$f":"(1+Intereses[[#This Row],[TIB corriente (%EA) por SFC]])^(1/12)-1","v":1.5934865087622763E-2},{"$f":"(1+Intereses[[#This Row],[Tasa Legal Usura (%EA)]])^(1/12)-1","v":2.2975046033702595E-2}]
["2013-01-01","2013-01-31",0.20749999999999999,0.31124999999999997,31,{"$f":"(1+Intereses[[#This Row],[TIB corriente (%EA) por SFC]])^(1/12)-1","v":1.5836768725148165E-2},{"$f":"(1+Intereses[[#This Row],[Tasa Legal Usura (%EA)]])^(1/12)-1","v":2.2838637639847281E-2}]
["2013-02-01","2013-02-28",0.20749999999999999,0.31124999999999997,28,{"$f":"(1+Intereses[[#This Row],[TIB corriente (%EA) por SFC]])^(1/12)-1","v":1.5836768725148165E-2},{"$f":"(1+Intereses[[#This Row],[Tasa Legal Usura (%EA)]])^(1/12)-1","v":2.2838637639847281E-2}]
["2013-03-01","2013-03-31",0.20749999999999999,0.31124999999999997,31,{"$f":"(1+Intereses[[#This Row],[TIB corriente (%EA) por SFC]])^(1/12)-1","v":1.5836768725148165E-2},{"$f":"(1+Intereses[[#This Row],[Tasa Legal Usura (%EA)]])^(1/12)-1","v":2.2838637639847281E-2}]
["2013-04-01","2013-04-30",0.20830000000000001,0.31245000000000001,30,{"$f":"(1+Intereses[[#This Row],[TIB corriente (%EA) por SFC]])^(1/12)-1","v":1.5892836547512834E-2},{"$f":"(1+Intereses[[#This Row],[Tasa Legal Usura (%EA)]])^(1/12)-1","v":2.2916609793260045E-2}]
["2013-05-01","2013-05-31",0.20830000000000001,0.31245000000000001,31,{"$f":"(1+Intereses[[#This Row],[TIB corriente (%EA) por SFC]])^(1/12)-1","v":1.5892836547512834E-2},{"$f":"(1+Intereses[[#This Row],[Tasa Legal Usura (%EA)]])^(1/12)-1","v":2.2916609793260045E-2}]
["2013-06-01","2013-06-30",0.20830000000000001,0.31245000000000001,30,{"$f":"(1+Intereses[[#This Row],[TIB corriente (%EA) por SFC]])^(1/12)-1","v":1.5892836547512834E-2},{"$f":"(1+Intereses[[#This Row],[Tasa Legal Usura (%EA)]])^(1/12)-1","v":2.2916609793260045E-2}]
["2013-07-01","2013-07-31",0.2034,0.30509999999999998,31,{"$f":"(1+Intereses[[#This Row],[TIB corriente (%EA) por SFC]])^(1/12)-1","v":1.5548885598652085E-2},{"$f":"(1+Intereses[[#This Row],[Tasa Legal Usura (%EA)]])^(1/12)-1","v":2.2438000800601765E-2}]
["2013-08-01","2013-08-31",0.2034,0.30509999999999998,31,{"$f":"(1+Intereses[[#This Row],[TIB corriente (%EA) por SFC]])^(1/12)-1","v":1.5548885598652085E-2},{"$f":"(1+Intereses[[#This Row],[Tasa Legal Usura (%EA)]])^(1/12)-1","v":2.2438000800601765E-2}]
["2013-09-01","2013-09-30",0.2034,0.30509999999999998,30,{"$f":"(1+Intereses[[#This Row],[TIB corriente (%EA) por SFC]])^(1/12)-1","v":1.5548885598652085E-2},{"$f":"(1+Intereses[[#This Row],[Tasa Legal Usura (%EA)]])^(1/12)-1","v":2.2438000800601765E-2}]
["2013-10-01","2013-10-31",0.19850000000000001,0.29775000000000001,31,{"$f":"(1+Intereses[[#This Row],[TIB corriente (%EA) por SFC]])^(1/12)-1","v":1.5203648455649699E-2},{"$f":"(1+Intereses[[#This Row],[Tasa Legal Usura (%EA)]])^(1/12)-1","v":2.1956914610111067E-2}]
["2013-11-01","2013-11-30",0.19850000000000001,0.29775000000000001,30,{"$f":"(1+Intereses[[#This Row],[TIB corriente (%EA) por SFC]])^(1/12)-1","v":1.5203648455649699E-2},{"$f":"(1+Intereses[[#This Row],[Tasa Legal Usura (%EA)]])^(1/12)-1","v":2.1956914610111067E-2}]
["2013-12-01","2013-12-31",0.19850000000000001,0.29775000000000001,31,{"$f":"(1+Intereses[[#This Row],[TIB corriente (%EA) por SFC]])^(1/12)-1","v":1.5203648455649699E-2},{"$f":"(1+Intereses[[#This Row],[Tasa Legal Usura (%EA)]])^(1/12)-1","v":2.1956914610111067E-2}]
["2014-01-01","2014-01-31",0.19650000000000001,0.29475000000000001,31,{"$f":"(1+Intereses[[#This Row],[TIB corriente (%EA) por SFC]])^(1/12)-1","v":1.506236338393796E-2},{"$f":"(1+Intereses[[#This Row],[Tasa Legal Usura (%EA)]])^(1/12)-1","v":2.1759834797641986E-2}]
["2014-02-01","2014-02-28",0.19650000000000001,0.29475000000000001,28,{"$f":"(1+Intereses[[#This Row],[TIB corriente (%EA) por SFC]])^(1/12)-1","v":1.506236338393796E-2},{"$f":"(1+Intereses[[#This Row],[Tasa Legal Usura (%EA)]])^(1/12)-1","v":2.1759834797641986E-2}]
["2014-03-01","2014-03-31",0.19650000000000001,0.29475000000000001,31,{"$f":"(1+Intereses[[#This Row],[TIB corriente (%EA) por SFC]])^(1/12)-1","v":1.506236338393796E-2},{"$f":"(1+Intereses[[#This Row],[Tasa Legal Usura (%EA)]])^(1/12)-1","v":2.1759834797641986E-2}]
["2014-04-01","2014-04-30",0.1963,0.29444999999999999,30,{"$f":"(1+Intereses[[#This Row],[TIB corriente (%EA) por SFC]])^(1/12)-1","v":1.5048222972487979E-2},{"$f":"(1+Intereses[[#This Row],[Tasa Legal Usura (%EA)]])^(1/12)-1","v":2.1740103800155453E-2}]
["2014-05-01","2014-05-31",0.1963,0.29444999999999999,31,{"$f":"(1+Intereses[[#This Row],[TIB corriente (%EA) por SFC]])^(1/12)-1","v":1.5048222972487979E-2},{"$f":"(1+Intereses[[#This Row],[Tasa Legal Usura (%EA)]])^(1/12)-1","v":2.1740103800155453E-2}]
["2014-06-01","2014-06-30",0.1963,0.28994999999999999,30,{"$f":"(1+Intereses[[#This Row],[TIB corriente (%EA) por SFC]])^(1/12)-1","v":1.5048222972487979E-2},{"$f":"(1+Intereses[[#This Row],[Tasa Legal Usura (%EA)]])^(1/12)-1","v":2.1443634727683625E-2}]
["2014-07-01","2014-07-30",0.1933,0.28994999999999999,30,{"$f":"(1+Intereses[[#This Row],[TIB corriente (%EA) por SFC]])^(1/12)-1","v":1.4835856348537346E-2},{"$f":"(1+Intereses[[#This Row],[Tasa Legal Usura (%EA)]])^(1/12)-1","v":2.1443634727683625E-2}]
["2014-08-01","2014-08-30",0.1933,0.28994999999999999,30,{"$f":"(1+Intereses[[#This Row],[TIB corriente (%EA) por SFC]])^(1/12)-1","v":1.4835856348537346E-2},{"$f":"(1+Intereses[[#This Row],[Tasa Legal Usura (%EA)]])^(1/12)-1","v":2.1443634727683625E-2}]
["2014-09-01","2014-09-30",0.1933,0.28994999999999999,30,{"$f":"(1+Intereses[[#This Row],[TIB corriente (%EA) por SFC]])^(1/12)-1","v":1.4835856348537346E-2},{"$f":"(1+Intereses[[#This Row],[Tasa Legal Usura (%EA)]])^(1/12)-1","v":2.1443634727683625E-2}]
["2014-10-01","2014-10-31",0.19170000000000001,0.28755000000000003,31,{"$f":"(1+Intereses[[#This Row],[TIB corriente (%EA) por SFC]])^(1/12)-1","v":1.4722393955656443E-2},{"$f":"(1+Intereses[[#This Row],[Tasa Legal Usura (%EA)]])^(1/12)-1","v":2.1285130025374244E-2}]
["2014-11-01","2014-11-30",0.19170000000000001,0.28755000000000003,30,{"$f":"(1+Intereses[[#This Row],[TIB corriente (%EA) por SFC]])^(1/12)-1","v":1.4722393955656443E-2},{"$f":"(1+Intereses[[#This Row],[Tasa Legal Usura (%EA)]])^(1/12)-1","v":2.1285130025374244E-2}]
["2014-12-01","2014-12-31",0.19170000000000001,0.28755000000000003,31,{"$f":"(1+Intereses[[#This Row],[TIB corriente (%EA) por SFC]])^(1/12)-1","v":1.4722393955656443E-2},{"$f":"(1+Intereses[[#This Row],[Tasa Legal Usura (%EA)]])^(1/12)-1","v":2.1285130025374244E-2}]
["2015-01-01","2015-01-31",0.19209999999999999,0.28815000000000002,31,{"$f":"(1+Intereses[[#This Row],[TIB corriente (%EA) por SFC]])^(1/12)-1","v":1.4750772639347876E-2},{"$f":"(1+Intereses[[#This Row],[Tasa Legal Usura (%EA)]])^(1/12)-1","v":2.1324781575405183E-2}]
["2015-02-01","2015-02-28",0.19209999999999999,0.28815000000000002,28,{"$f":"(1+Intereses[[#This Row],[TIB corriente (%EA) por SFC]])^(1/12)-1","v":1.4750772639347876E-2},{"$f":"(1+Intereses[[#This Row],[Tasa Legal Usura (%EA)]])^(1/12)-1","v":2.1324781575405183E-2}]
["2015-03-01","2015-03-31",0.19209999999999999,0.28815000000000002,31,{"$f":"(1+Intereses[[#This Row],[TIB corriente (%EA) por SFC]])^(1/12)-1","v":1.4750772639347876E-2},{"$f":"(1+Intereses[[#This Row],[Tasa Legal Usura (%EA)]])^(1/12)-1","v":2.1324781575405183E-2}]
["2015-04-01","2015-04-30",0.19370000000000001,0.29055000000000003,30,{"$f":"(1+Intereses[[#This Row],[TIB corriente (%EA) por SFC]])^(1/12)-1","v":1.4864200156320839E-2},{"$f":"(1+Intereses[[#This Row],[Tasa Legal Usura (%EA)]])^(1/12)-1","v":2.1483218662772696E-2}]
["2015-05-01","2015-05-31",0.19370000000000001,0.29055000000000003,31,{"$f":"(1+Intereses[[#This Row],[TIB corriente (%EA) por SFC]])^(1/12)-1","v":1.4864200156320839E-2},{"$f":"(1+Intereses[[#This Row],[Tasa Legal Usura (%EA)]])^(1/12)-1","v":2.1483218662772696E-2}]
["2015-06-01","2015-06-30",0.19370000000000001,0.29055000000000003,30,{"$f":"(1+Intereses[[#This Row],[TIB corriente (%EA) por SFC]])^(1/12)-1","v":1.4864200156320839E-2},{"$f":"(1+Intereses[[#This Row],[Tasa Legal Usura (%EA)]])^(1/12)-1","v":2.1483218662772696E-2}]
["2015-07-01","2015-07-31",0.19259999999999999,0.28889999999999999,31,{"$f":"(1+Intereses[[#This Row],[TIB corriente (%EA) por SFC]])^(1/12)-1","v":1.4786233721732378E-2},{"$f":"(1+Intereses[[#This Row],[Tasa Legal Usura (%EA)]])^(1/12)-1","v":2.1374322212011299E-2}]
["2015-08-01","2015-08-31",0.19259999999999999,0.28889999999999999,31,{"$f":"(1+Intereses[[#This Row],[TIB corriente (%EA) por SFC]])^(1/12)-1","v":1.4786233721732378E-2},{"$f":"(1+Intereses[[#This Row],[Tasa Legal Usura (%EA)]])^(1/12)-1","v":2.1374322212011299E-2}]
["2015-09-01","2015-09-30",0.19259999999999999,0.28889999999999999,30,{"$f":"(1+Intereses[[#This Row],[TIB corriente (%EA) por SFC]])^(1/12)-1","v":1.4786233721732378E-2},{"$f":"(1+Intereses[[#This Row],[Tasa Legal Usura (%EA)]])^(1/12)-1","v":2.1374322212011299E-2}]
["2015-10-01","2015-10-31",0.1933,0.28994999999999999,31,{"$f":"(1+Intereses[[#This Row],[TIB corriente (%EA) por SFC]])^(1/12)-1","v":1.4835856348537346E-2},{"$f":"(1+Intereses[[#This Row],[Tasa Legal Usura (%EA)]])^(1/12)-1","v":2.1443634727683625E-2}]
["2015-11-01","2015-11-30",0.1933,0.28994999999999999,30,{"$f":"(1+Intereses[[#This Row],[TIB corriente (%EA) por SFC]])^(1/12)-1","v":1.4835856348537346E-2},{"$f":"(1+Intereses[[#This Row],[Tasa Legal Usura (%EA)]])^(1/12)-1","v":2.1443634727683625E-2}]
["2015-12-01","2015-12-31",0.1933,0.28994999999999999,31,{"$f":"(1+Intereses[[#This Row],[TIB corriente (%EA) por SFC]])^(1/12)-1","v":1.4835856348537346E-2},{"$f":"(1+Intereses[[#This Row],[Tasa Legal Usura (%EA)]])^(1/12)-1","v":2.1443634727683625E-2}]
["2016-01-01","2016-01-31",0.1968,0.29520000000000002,31,{"$f":"(1+Intereses[[#This Row],[TIB corriente (%EA) por SFC]])^(1/12)-1","v":1.5083569939153385E-2},{"$f":"(1+Intereses[[#This Row],[Tasa Legal Usura (%EA)]])^(1/12)-1","v":2.1789423437557742E-2}]
["2016-02-01","2016-02-29",0.1968,0.29520000000000002,29,{"$f":"(1+Intereses[[#This Row],[TIB corriente (%EA) por SFC]])^(1/12)-1","v":1.5083569939153385E-2},{"$f":"(1+Intereses[[#This Row],[Tasa Legal Usura (%EA)]])^(1/12)-1","v":2.1789423437557742E-2}]
["2016-03-01","2016-03-31",0.1968,0.29520000000000002,31,{"$f":"(1+Intereses[[#This Row],[TIB corriente (%EA) por SFC]])^(1/12)-1","v":1.5083569939153385E-2},{"$f":"(1+Intereses[[#This Row],[Tasa Legal Usura (%EA)]])^(1/12)-1","v":2.1789423437557742E-2}]
["2016-04-01","2016-04-30",0.2054,0.30809999999999998,30,{"$f":"(1+Intereses[[#This Row],[TIB corriente (%EA) por SFC]])^(1/12)-1","v":1.5689428523043558E-2},{"$f":"(1+Intereses[[#This Row],[Tasa Legal Usura (%EA)]])^(1/12)-1","v":2.2633649099822239E-2}]
["2016-05-01","2016-05-31",0.2054,0.30809999999999998,31,{"$f":"(1+Intereses[[#This Row],[TIB corriente (%EA) por SFC]])^(1/12)-1","v":1.5689428523043558E-2},{"$f":"(1+Intereses[[#This Row],[Tasa Legal Usura (%EA)]])^(1/12)-1","v":2.2633649099822239E-2}]
["2016-06-01","2016-06-30",0.2054,0.30809999999999998,30,{"$f":"(1+Intereses[[#This Row],[TIB corriente (%EA) por SFC]])^(1/12)-1","v":1.5689428523043558E-2},{"$f":"(1+Intereses[[#This Row],[Tasa Legal Usura (%EA)]])^(1/12)-1","v":2.2633649099822239E-2}]
["2016-07-01","2016-07-31",0.21340000000000001,0.3201,31,{"$f":"(1+Intereses[[#This Row],[TIB corriente (%EA) por SFC]])^(1/12)-1","v":1.6249471039257113E-2},{"$f":"(1+Intereses[[#This Row],[Tasa Legal Usura (%EA)]])^(1/12)-1","v":2.3412151466478903E-2}]
["2016-08-01","2016-08-31",0.21340000000000001,0.3201,31,{"$f":"(1+Intereses[[#This Row],[TIB corriente (%EA) por SFC]])^(1/12)-1","v":1.6249471039257113E-2},{"$f":"(1+Intereses[[#This Row],[Tasa Legal Usura (%EA)]])^(1/12)-1","v":2.3412151466478903E-2}]
["2016-09-01","2016-09-30",0.21340000000000001,0.3201,30,{"$f":"(1+Intereses[[#This Row],[TIB corriente (%EA) por SFC]])^(1/12)-1","v":1.6249471039257113E-2},{"$f":"(1+Intereses[[#This Row],[Tasa Legal Usura (%EA)]])^(1/12)-1","v":2.3412151466478903E-2}]
["2016-10-01","2016-10-31",0.21990000000000001,0.32985000000000003,31,{"$f":"(1+Intereses[[#This Row],[TIB corriente (%EA) por SFC]])^(1/12)-1","v":1.670201887885292E-2},{"$f":"(1+Intereses[[#This Row],[Tasa Legal Usura (%EA)]])^(1/12)-1","v":2.4039922656450941E-2}]
["2016-11-01","2016-11-30",0.21990000000000001,0.32985000000000003,30,{"$f":"(1+Intereses[[#This Row],[TIB corriente (%EA) por SFC]])^(1/12)-1","v":1.670201887885292E-2},{"$f":"(1+Intereses[[#This Row],[Tasa Legal Usura (%EA)]])^(1/12)-1","v":2.4039922656450941E-2}]
["2016-12-01","2016-12-31",0.21990000000000001,0.32985000000000003,31,{"$f":"(1+Intereses[[#This Row],[TIB corriente (%EA) por SFC]])^(1/12)-1","v":1.670201887885292E-2},{"$f":"(1+Intereses[[#This Row],[Tasa Legal Usura (%EA)]])^(1/12)-1","v":2.4039922656450941E-2}]
["2017-01-01","2017-01-31",0.22339999999999999,0.33509999999999995,31,{"$f":"(1+Intereses[[#This Row],[TIB corriente (%EA) por SFC]])^(1/12)-1","v":1.694478374071906E-2},{"$f":"(1+Intereses[[#This Row],[Tasa Legal Usura (%EA)]])^(1/12)-1","v":2.4376207843189057E-2}]
["2017-02-01","2017-02-28",0.22339999999999999,0.33509999999999995,28,{"$f":"(1+Intereses[[#This Row],[TIB corriente (%EA) por SFC]])^(1/12)-1","v":1.694478374071906E-2},{"$f":"(1+Intereses[[#This Row],[Tasa Legal Usura (%EA)]])^(1/12)-1","v":2.4376207843189057E-2}]
["2017-03-01","2017-03-31",0.22339999999999999,0.33509999999999995,31,{"$f":"(1+Intereses[[#This Row],[TIB corriente (%EA) por SFC]])^(1/12)-1","v":1.694478374071906E-2},{"$f":"(1+Intereses[[#This Row],[Tasa Legal Usura (%EA)]])^(1/12)-1","v":2.4376207843189057E-2}]
["2017-04-01","2017-04-30",0.2233,0.33494999999999997,30,{"$f":"(1+Intereses[[#This Row],[TIB corriente (%EA) por SFC]])^(1/12)-1","v":1.6937856441904042E-2},{"$f":"(1+Intereses[[#This Row],[Tasa Legal Usura (%EA)]])^(1/12)-1","v":2.4366616530168139E-2}]
["2017-05-01","2017-05-31",0.2233,0.33494999999999997,31,{"$f":"(1+Intereses[[#This Row],[TIB corriente (%EA) por SFC]])^(1/12)-1","v":1.6937856441904042E-2},{"$f":"(1+Intereses[[#This Row],[Tasa Legal Usura (%EA)]])^(1/12)-1","v":2.4366616530168139E-2}]
["2017-06-01","2017-06-30",0.2233,0.33494999999999997,30,{"$f":"(1+Intereses[[#This Row],[TIB corriente (%EA) por SFC]])^(1/12)-1","v":1.6937856441904042E-2},{"$f":"(1+Intereses[[#This Row],[Tasa Legal Usura (%EA)]])^(1/12)-1","v":2.4366616530168139E-2}]
["2017-07-01","2017-07-31",0.2198,0.32969999999999999,31,{"$f":"(1+Intereses[[#This Row],[TIB corriente (%EA) por SFC]])^(1/12)-1","v":1.6695073362691826E-2},{"$f":"(1+Intereses[[#This Row],[Tasa Legal Usura (%EA)]])^(1/12)-1","v":2.4030296637850723E-2}]
["2017-08-01","2017-08-31",0.2198,0.32969999999999999,31,{"$f":"(1+Intereses[[#This Row],[TIB corriente (%EA) por SFC]])^(1/12)-1","v":1.6695073362691826E-2},{"$f":"(1+Intereses[[#This Row],[Tasa Legal Usura (%EA)]])^(1/12)-1","v":2.4030296637850723E-2}]
["2017-09-01","2017-09-30",0.21479999999999999,0.32219999999999999,30,{"$f":"(1+Intereses[[#This Row],[TIB corriente (%EA) por SFC]])^(1/12)-1","v":1.6347130332665216E-2},{"$f":"(1+Intereses[[#This Row],[Tasa Legal Usura (%EA)]])^(1/12)-1","v":2.3547722012123629E-2}]
["2017-10-01","2017-10-31",0.21149999999999999,0.31724999999999998,31,{"$f":"(1+Intereses[[#This Row],[TIB corriente (%EA) por SFC]])^(1/12)-1","v":1.6116768087963917E-2},{"$f":"(1+Intereses[[#This Row],[Tasa Legal Usura (%EA)]])^(1/12)-1","v":2.3227846316473233E-2}]
["2017-11-01","2017-11-30",0.20960000000000001,0.31440000000000001,30,{"$f":"(1+Intereses[[#This Row],[TIB corriente (%EA) por SFC]])^(1/12)-1","v":1.5983874224035022E-2},{"$f":"(1+Intereses[[#This Row],[Tasa Legal Usura (%EA)]])^(1/12)-1","v":2.3043175271197036E-2}]
["2017-12-01","2017-12-31",0.2077,0.31154999999999999,31,{"$f":"(1+Intereses[[#This Row],[TIB corriente (%EA) por SFC]])^(1/12)-1","v":1.5850788872287191E-2},{"$f":"(1+Intereses[[#This Row],[Tasa Legal Usura (%EA)]])^(1/12)-1","v":2.2858136808515228E-2}]
["2018-01-12","2018-01-31",0.2069,0.31035000000000001,20,{"$f":"(1+Intereses[[#This Row],[TIB corriente (%EA) por SFC]])^(1/12)-1","v":1.5794695508080547E-2},{"$f":"(1+Intereses[[#This Row],[Tasa Legal Usura (%EA)]])^(1/12)-1","v":2.2780115587483163E-2}]
["2018-02-01","2018-02-28",0.21010000000000001,0.31515000000000004,28,{"$f":"(1+Intereses[[#This Row],[TIB corriente (%EA) por SFC]])^(1/12)-1","v":1.6018864835264157E-2},{"$f":"(1+Intereses[[#This Row],[Tasa Legal Usura (%EA)]])^(1/12)-1","v":2.3091808474569486E-2}]
["2018-03-01","2018-03-31",0.20680000000000001,0.31020000000000003,31,{"$f":"(1+Intereses[[#This Row],[TIB corriente (%EA) por SFC]])^(1/12)-1","v":1.5787681441232548E-2},{"$f":"(1+Intereses[[#This Row],[Tasa Legal Usura (%EA)]])^(1/12)-1","v":2.2770358330055807E-2}]
["2018-04-01","2018-04-30",0.20480000000000001,0.30720000000000003,30,{"$f":"(1+Intereses[[#This Row],[TIB corriente (%EA) por SFC]])^(1/12)-1","v":1.564728810402638E-2},{"$f":"(1+Intereses[[#This Row],[Tasa Legal Usura (%EA)]])^(1/12)-1","v":2.2574997834371668E-2}]
["2018-05-01","2018-05-31",0.2044,0.30659999999999998,31,{"$f":"(1+Intereses[[#This Row],[TIB corriente (%EA) por SFC]])^(1/12)-1","v":1.5619183802592529E-2},{"$f":"(1+Intereses[[#This Row],[Tasa Legal Usura (%EA)]])^(1/12)-1","v":2.2535876422826506E-2}]
["2018-06-01","2018-06-30",0.20280000000000001,0.30420000000000003,30,{"$f":"(1+Intereses[[#This Row],[TIB corriente (%EA) por SFC]])^(1/12)-1","v":1.5506680968771391E-2},{"$f":"(1+Intereses[[#This Row],[Tasa Legal Usura (%EA)]])^(1/12)-1","v":2.2379225919199275E-2}]
["2018-07-01","2018-07-31",0.20030000000000001,0.30044999999999999,31,{"$f":"(1+Intereses[[#This Row],[TIB corriente (%EA) por SFC]])^(1/12)-1","v":1.5330620357054903E-2},{"$f":"(1+Intereses[[#This Row],[Tasa Legal Usura (%EA)]])^(1/12)-1","v":2.2133929699163168E-2}]
["2018-08-01","2018-08-31",0.19939999999999999,0.29909999999999998,31,{"$f":"(1+Intereses[[#This Row],[TIB corriente (%EA) por SFC]])^(1/12)-1","v":1.526715624056707E-2},{"$f":"(1+Intereses[[#This Row],[Tasa Legal Usura (%EA)]])^(1/12)-1","v":2.2045464310016527E-2}]
["2018-09-01","2018-09-30",0.1981,0.29715000000000003,30,{"$f":"(1+Intereses[[#This Row],[TIB corriente (%EA) por SFC]])^(1/12)-1","v":1.5175408739998009E-2},{"$f":"(1+Intereses[[#This Row],[Tasa Legal Usura (%EA)]])^(1/12)-1","v":2.1917532081249247E-2}]
["2018-10-01","2018-10-31",0.1963,0.29449999999999998,31,{"$f":"(1+Intereses[[#This Row],[TIB corriente (%EA) por SFC]])^(1/12)-1","v":1.5048222972487979E-2},{"$f":"(1+Intereses[[#This Row],[Tasa Legal Usura (%EA)]])^(1/12)-1","v":2.1743392590811705E-2}]
["2018-11-01","2018-11-30",0.19489999999999999,0.29239999999999999,30,{"$f":"(1+Intereses[[#This Row],[TIB corriente (%EA) por SFC]])^(1/12)-1","v":1.4949179372142352E-2},{"$f":"(1+Intereses[[#This Row],[Tasa Legal Usura (%EA)]])^(1/12)-1","v":2.160516302057891E-2}]
["2018-12-01","2018-12-31",0.19400000000000001,0.29099999999999998,31,{"$f":"(1+Intereses[[#This Row],[TIB corriente (%EA) por SFC]])^(1/12)-1","v":1.48854522992099E-2},{"$f":"(1+Intereses[[#This Row],[Tasa Legal Usura (%EA)]])^(1/12)-1","v":2.1512895544899102E-2}]
["2019-01-01","2019-01-31",0.19159999999999999,0.28739999999999999,31,{"$f":"(1+Intereses[[#This Row],[TIB corriente (%EA) por SFC]])^(1/12)-1","v":1.4715297920421477E-2},{"$f":"(1+Intereses[[#This Row],[Tasa Legal Usura (%EA)]])^(1/12)-1","v":2.127521449135017E-2}]
["2019-02-01","2019-02-28",0.19700000000000001,0.29549999999999998,28,{"$f":"(1+Intereses[[#This Row],[TIB corriente (%EA) por SFC]])^(1/12)-1","v":1.5097704935669087E-2},{"$f":"(1+Intereses[[#This Row],[Tasa Legal Usura (%EA)]])^(1/12)-1","v":2.1809143962671307E-2}]
["2019-03-01","2019-03-31",0.19370000000000001,0.29060000000000002,31,{"$f":"(1+Intereses[[#This Row],[TIB corriente (%EA) por SFC]])^(1/12)-1","v":1.4864200156320839E-2},{"$f":"(1+Intereses[[#This Row],[Tasa Legal Usura (%EA)]])^(1/12)-1","v":2.1486516562506441E-2}]
["2019-04-01","2019-04-30",0.19320000000000001,0.2898,30,{"$f":"(1+Intereses[[#This Row],[TIB corriente (%EA) por SFC]])^(1/12)-1","v":1.4828769035783118E-2},{"$f":"(1+Intereses[[#This Row],[Tasa Legal Usura (%EA)]])^(1/12)-1","v":2.1433736106823309E-2}]
["2019-05-01","2019-05-31",0.19339999999999999,0.29010000000000002,31,{"$f":"(1+Intereses[[#This Row],[TIB corriente (%EA) por SFC]])^(1/12)-1","v":1.4842943116880836E-2},{"$f":"(1+Intereses[[#This Row],[Tasa Legal Usura (%EA)]])^(1/12)-1","v":2.1453532293473465E-2}]
["2019-06-01","2019-06-30",0.193,0.28949999999999998,30,{"$f":"(1+Intereses[[#This Row],[TIB corriente (%EA) por SFC]])^(1/12)-1","v":1.4814592776692503E-2},{"$f":"(1+Intereses[[#This Row],[Tasa Legal Usura (%EA)]])^(1/12)-1","v":2.1413935698951558E-2}]
["2019-07-01","2019-07-31",0.1928,0.28920000000000001,31,{"$f":"(1+Intereses[[#This Row],[TIB corriente (%EA) por SFC]])^(1/12)-1","v":1.4800414338908885E-2},{"$f":"(1+Intereses[[#This Row],[Tasa Legal Usura (%EA)]])^(1/12)-1","v":2.1394131067975497E-2}]
["2019-08-01","2019-08-31",0.19320000000000001,0.2898,31,{"$f":"(1+Intereses[[#This Row],[TIB corriente (%EA) por SFC]])^(1/12)-1","v":1.4828769035783118E-2},{"$f":"(1+Intereses[[#This Row],[Tasa Legal Usura (%EA)]])^(1/12)-1","v":2.1433736106823309E-2}]
["2019-09-01","2019-09-30",0.19320000000000001,0.2898,30,{"$f":"(1+Intereses[[#This Row],[TIB corriente (%EA) por SFC]])^(1/12)-1","v":1.4828769035783118E-2},{"$f":"(1+Intereses[[#This Row],[Tasa Legal Usura (%EA)]])^(1/12)-1","v":2.1433736106823309E-2}]
["2019-10-01","2019-10-31",0.191,0.28649999999999998,31,{"$f":"(1+Intereses[[#This Row],[TIB corriente (%EA) por SFC]])^(1/12)-1","v":1.4672710242028764E-2},{"$f":"(1+Intereses[[#This Row],[Tasa Legal Usura (%EA)]])^(1/12)-1","v":2.1215699038257929E-2}]
["2019-11-01","2019-11-30",0.1903,0.28549999999999998,30,{"$f":"(1+Intereses[[#This Row],[TIB corriente (%EA) por SFC]])^(1/12)-1","v":1.4622999753443056E-2},{"$f":"(1+Intereses[[#This Row],[Tasa Legal Usura (%EA)]])^(1/12)-1","v":2.1149525978148453E-2}]
["2019-12-01","2019-12-31",0.18909999999999999,0.28370000000000001,31,{"$f":"(1+Intereses[[#This Row],[TIB corriente (%EA) por SFC]])^(1/12)-1","v":1.4537719393268755E-2},{"$f":"(1+Intereses[[#This Row],[Tasa Legal Usura (%EA)]])^(1/12)-1","v":2.1030295469433913E-2}]
["2020-01-01","2020-01-31",0.18770000000000001,0.28160000000000002,31,{"$f":"(1+Intereses[[#This Row],[TIB corriente (%EA) por SFC]])^(1/12)-1","v":1.4438125874335572E-2},{"$f":"(1+Intereses[[#This Row],[Tasa Legal Usura (%EA)]])^(1/12)-1","v":2.0890999361430129E-2}]
["2020-02-01","2020-02-29",0.19059999999999999,0.28589999999999999,29,{"$f":"(1+Intereses[[#This Row],[TIB corriente (%EA) por SFC]])^(1/12)-1","v":1.4644307529052547E-2},{"$f":"(1+Intereses[[#This Row],[Tasa Legal Usura (%EA)]])^(1/12)-1","v":2.1176000862688671E-2}]
["2020-03-01","2020-03-31",0.1895,0.2843,31,{"$f":"(1+Intereses[[#This Row],[TIB corriente (%EA) por SFC]])^(1/12)-1","v":1.4566154942097675E-2},{"$f":"(1+Intereses[[#This Row],[Tasa Legal Usura (%EA)]])^(1/12)-1","v":2.1070055991014192E-2}]
["2020-04-01","2020-04-30",0.18690000000000001,0.28039999999999998,30,{"$f":"(1+Intereses[[#This Row],[TIB corriente (%EA) por SFC]])^(1/12)-1","v":1.4381166965633296E-2},{"$f":"(1+Intereses[[#This Row],[Tasa Legal Usura (%EA)]])^(1/12)-1","v":2.0811307618446184E-2}]
["2020-05-01","2020-05-31",0.18190000000000001,0.27289999999999998,31,{"$f":"(1+Intereses[[#This Row],[TIB corriente (%EA) por SFC]])^(1/12)-1","v":1.4024374403139195E-2},{"$f":"(1+Intereses[[#This Row],[Tasa Legal Usura (%EA)]])^(1/12)-1","v":2.0311677528269456E-2}]
["2020-06-01","2020-06-30",0.1812,0.27179999999999999,30,{"$f":"(1+Intereses[[#This Row],[TIB corriente (%EA) por SFC]])^(1/12)-1","v":1.3974313074007094E-2},{"$f":"(1+Intereses[[#This Row],[Tasa Legal Usura (%EA)]])^(1/12)-1","v":2.0238171647650516E-2}]
["2020-07-01","2020-07-31",0.1812,0.27179999999999999,31,{"$f":"(1+Intereses[[#This Row],[TIB corriente (%EA) por SFC]])^(1/12)-1","v":1.3974313074007094E-2},{"$f":"(1+Intereses[[#This Row],[Tasa Legal Usura (%EA)]])^(1/12)-1","v":2.0238171647650516E-2}]
["2020-08-01","2020-08-31",0.18290000000000001,0.27439999999999998,31,{"$f":"(1+Intereses[[#This Row],[TIB corriente (%EA) por SFC]])^(1/12)-1","v":1.4095843461055191E-2},{"$f":"(1+Intereses[[#This Row],[Tasa Legal Usura (%EA)]])^(1/12)-1","v":2.0411819037455814E-2}]
["2020-09-01","2020-09-30",0.1835,0.27529999999999999,30,{"$f":"(1+Intereses[[#This Row],[TIB corriente (%EA) por SFC]])^(1/12)-1","v":1.4138698316213505E-2},{"$f":"(1+Intereses[[#This Row],[Tasa Legal Usura (%EA)]])^(1/12)-1","v":2.0471852092971421E-2}]
["2020-10-01","2020-10-31",0.18090000000000001,0.27139999999999997,31,{"$f":"(1+Intereses[[#This Row],[TIB corriente (%EA) por SFC]])^(1/12)-1","v":1.3952849893216657E-2},{"$f":"(1+Intereses[[#This Row],[Tasa Legal Usura (%EA)]])^(1/12)-1","v":2.0211427786686054E-2}]
["2020-11-01","2020-11-30",0.1784,0.2676,30,{"$f":"(1+Intereses[[#This Row],[TIB corriente (%EA) por SFC]])^(1/12)-1","v":1.3773795424467439E-2},{"$f":"(1+Intereses[[#This Row],[Tasa Legal Usura (%EA)]])^(1/12)-1","v":1.9956975716262315E-2}]
["2020-12-01","2020-12-31",0.17460000000000001,0.26190000000000002,31,{"$f":"(1+Intereses[[#This Row],[TIB corriente (%EA) por SFC]])^(1/12)-1","v":1.3500964614900468E-2},{"$f":"(1+Intereses[[#This Row],[Tasa Legal Usura (%EA)]])^(1/12)-1","v":1.9573983490916769E-2}]
["2021-01-01","2021-01-31",0.17319999999999999,0.25979999999999998,31,{"$f":"(1+Intereses[[#This Row],[TIB corriente (%EA) por SFC]])^(1/12)-1","v":1.3400244010289386E-2},{"$f":"(1+Intereses[[#This Row],[Tasa Legal Usura (%EA)]])^(1/12)-1","v":1.9432481245112987E-2}]
["2021-02-01","2021-02-28",0.1754,0.2631,28,{"$f":"(1+Intereses[[#This Row],[TIB corriente (%EA) por SFC]])^(1/12)-1","v":1.3558469849289878E-2},{"$f":"(1+Intereses[[#This Row],[Tasa Legal Usura (%EA)]])^(1/12)-1","v":1.9654745030757592E-2}]
["2021-03-01","2021-03-31",0.1741,0.26119999999999999,31,{"$f":"(1+Intereses[[#This Row],[TIB corriente (%EA) por SFC]])^(1/12)-1","v":1.3465005609198277E-2},{"$f":"(1+Intereses[[#This Row],[Tasa Legal Usura (%EA)]])^(1/12)-1","v":1.952684007564498E-2}]
["2021-04-01","2021-04-30",0.1731,0.25969999999999999,30,{"$f":"(1+Intereses[[#This Row],[TIB corriente (%EA) por SFC]])^(1/12)-1","v":1.3393045466160602E-2},{"$f":"(1+Intereses[[#This Row],[Tasa Legal Usura (%EA)]])^(1/12)-1","v":1.9425737651080022E-2}]
["2021-05-01","2021-05-31",0.17219999999999999,0.25829999999999997,31,{"$f":"(1+Intereses[[#This Row],[TIB corriente (%EA) por SFC]])^(1/12)-1","v":1.3328233244563004E-2},{"$f":"(1+Intereses[[#This Row],[Tasa Legal Usura (%EA)]])^(1/12)-1","v":1.9331275772907164E-2}]
["2021-06-01","2021-06-30",0.1721,0.25819999999999999,30,{"$f":"(1+Intereses[[#This Row],[TIB corriente (%EA) por SFC]])^(1/12)-1","v":1.3321029071094337E-2},{"$f":"(1+Intereses[[#This Row],[Tasa Legal Usura (%EA)]])^(1/12)-1","v":1.9324524809924082E-2}]
["2021-07-01","2021-07-15",0.17180000000000001,0.25769999999999998,15,{"$f":"(1+Intereses[[#This Row],[TIB corriente (%EA) por SFC]])^(1/12)-1","v":1.3299413169677532E-2},{"$f":"(1+Intereses[[#This Row],[Tasa Legal Usura (%EA)]])^(1/12)-1","v":1.9290762615578938E-2}]
["2021-08-01","2021-08-31",0.1724,0.2586,31,{"$f":"(1+Intereses[[#This Row],[TIB corriente (%EA) por SFC]])^(1/12)-1","v":1.3342639901547937E-2},{"$f":"(1+Intereses[[#This Row],[Tasa Legal Usura (%EA)]])^(1/12)-1","v":1.9351525711433615E-2}]
["2021-09-01","2021-09-30",0.1719,0.25790000000000002,30,{"$f":"(1+Intereses[[#This Row],[TIB corriente (%EA) por SFC]])^(1/12)-1","v":1.3306619033743639E-2},{"$f":"(1+Intereses[[#This Row],[Tasa Legal Usura (%EA)]])^(1/12)-1","v":1.9304268969502658E-2}]
["2021-10-01","2021-10-31",0.17080000000000001,0.25619999999999998,31,{"$f":"(1+Intereses[[#This Row],[TIB corriente (%EA) por SFC]])^(1/12)-1","v":1.3227323509367173E-2},{"$f":"(1+Intereses[[#This Row],[Tasa Legal Usura (%EA)]])^(1/12)-1","v":1.9189402159464075E-2}]
["2021-11-01","2021-11-30",0.17269999999999999,0.2591,30,{"$f":"(1+Intereses[[#This Row],[TIB corriente (%EA) por SFC]])^(1/12)-1","v":1.3364245663525676E-2},{"$f":"(1+Intereses[[#This Row],[Tasa Legal Usura (%EA)]])^(1/12)-1","v":1.9385265778725458E-2}]
["2021-12-01","2021-12-31",0.17460000000000001,0.26190000000000002,31,{"$f":"(1+Intereses[[#This Row],[TIB corriente (%EA) por SFC]])^(1/12)-1","v":1.3500964614900468E-2},{"$f":"(1+Intereses[[#This Row],[Tasa Legal Usura (%EA)]])^(1/12)-1","v":1.9573983490916769E-2}]
["2022-01-01","2022-01-31",0.17660000000000001,0.26490000000000002,31,{"$f":"(1+Intereses[[#This Row],[TIB corriente (%EA) por SFC]])^(1/12)-1","v":1.364466046599877E-2},{"$f":"(1+Intereses[[#This Row],[Tasa Legal Usura (%EA)]])^(1/12)-1","v":1.9775755563363528E-2}]
["2022-02-01","2022-02-28",0.183,0.27450000000000002,28,{"$f":"(1+Intereses[[#This Row],[TIB corriente (%EA) por SFC]])^(1/12)-1","v":1.4102987320446125E-2},{"$f":"(1+Intereses[[#This Row],[Tasa Legal Usura (%EA)]])^(1/12)-1","v":2.0418491295787433E-2}]